Workbook

Sheet Index
A1: Sheet | B1: Magazine PDF | C1: Journal | D1: Title | E1: Citation | F1: F_Name | G1: L_Name | H1: Year | I1: Volcanoe | J1: Full Citation
A2: None | B2: None | C2: http://www.bgc.org/isoplot_etc/isoplot/Isoplot3_75-4_15manual.pdf | D2: Isoplot User Manual | E2: ="(" & G2 & ", " & H2 & ", P. )" -> (Ludwig, 2010, P. ) | F2: Kenneth | G2: Ludwig | H2: 2010 | I2: . | J2: =G2 & ", " & F2 & ", " & H2 & ", " & D2 & ", " & C2 -> Ludwig, Kenneth, 2010, Isoplot User Manual, http://www.bgc.org/isoplot_etc/isoplot/Isoplot3_75-4_15manual.pdf
A3: None | B3: None | C3: http://www.bgc.org/isoplot_etc/isoplot/Isoplot3_75files.zip | D3: Isoplot Excel Add In | E3: (Ludwig, 2012, P. ) | F3: Kenneth | G3: Ludwig | H3: 2012 | I3: . | J3: Ludwig, Kenneth, 2012, Isoplot Excel Add In, http://www.bgc.org/isoplot_etc/isoplot/Isoplot3_75files.zip
A4: None | B4: None | C4: http://adsabs.harvard.edu/abs/2006AGUFM.V34B..02K | D4: New 40Ar/39Ar Ages for Savai'i Island | E4: (Koppers, 2006, P. ) | F4: A. A | G4: Koppers | H4: 2006 | I4: . | J4: Koppers, A. A, 2006, New 40Ar/39Ar Ages for Savai'i Island, http://adsabs.harvard.edu/abs/2006AGUFM.V34B..02K
A5: None | B5: None | C5: Chapman And Hall Publishers | D5: Radioactive and Stable Isotope Geology, P. 1-305 | E5: (Attendon, 1997, P. ) | F5: H. G. | G5: Attendon | H5: 1997 | I5: . | J5: Attendon, H. G., 1997, Radioactive and Stable Isotope Geology, P. 1-305, Chapman And Hall Publishers
A6: H24 | B6: C:\Essays\Geo_Dating\Historic\Historic_24.pdf | C6: Journal Of Geophysical Research, 108:(B5-2252):1-25 | D6: Transport rates along the Alaska-Aleutian | E6: (George, 2003, P. ) | F6: Rhiannon | G6: George | H6: 2003 | I6: Aleutian Arc | J6: George, Rhiannon, 2003, Transport rates along the Alaska-Aleutian, Journal Of Geophysical Research, 108:(B5-2252):1-25
A7: H38 | B7: C:\Essays\Geo_Dating\Historic\Historic_38.pdf | C7: Journal Of Petrology, 45(1):203-219 | D7: Two Volcanoes in the Alaska-Aleutian Arc | E7: (George, 2004, P. ) | F7: Rhiannon | G7: George | H7: 2004 | I7: Aleutian Arc | J7: George, Rhiannon, 2004, Two Volcanoes in the Alaska-Aleutian Arc, Journal Of Petrology, 45(1):203-219
A8: H01 | B8: C:\Essays\Geo_Dating\Historic\Historic_01.pdf | C8: Journal Of Petrology, 45(9)1845–1875 | D8: Aleutian Island Arc Magma Sources | E8: (Jicha, 2004, P. ) | F8: B. R. | G8: Jicha | H8: 2004 | I8: Aleutian Arc | J8: Jicha, B. R., 2004, Aleutian Island Arc Magma Sources, Journal Of Petrology, 45(9)1845–1875
A9: H25 | B9: C:\Essays\Geo_Dating\Historic\Historic_25.pdf | C9: Journal Of Petrology, 37(1):95-115 | D9: Geochemistry of Augustine Volcano | E9: (Johnson, 1996, P. ) | F9: K. E. | G9: Johnson | H9: 1996 | I9: Aleutian Arc | J9: Johnson, K. E., 1996, Geochemistry of Augustine Volcano, Journal Of Petrology, 37(1):95-115
A10: H05 | B10: C:\Essays\Geo_Dating\Historic\Historic_05.pdf | C10: Journal of Volcanology and Geothermal Research 146:139-170 | D10: The May 2003 eruption of Anatahan volcano | E10: (Wade, 2005, P. ) | F10: Jennifer A. | G10: Wade | H10: 2005 | I10: Anatahan Volcano | J10: Wade, Jennifer A., 2005, The May 2003 eruption of Anatahan volcano, Journal of Volcanology and Geothermal Research 146:139-170
A11: H28 | B11: C:\Essays\Geo_Dating\Historic\Historic_28.pdf | C11: Journal Of Petrology, 53(1):27-65 | D11: Eastern Mediterranean K-rich Lavas | E11: (Kirchenbaur, 2012, P. ) | F11: Maria | G11: Kirchenbaur | H11: 2012 | I11: Bulgaria | J11: Kirchenbaur, Maria, 2012, Eastern Mediterranean K-rich Lavas, Journal Of Petrology, 53(1):27-65
A12: H29 | B12: C:\Essays\Geo_Dating\Historic\Historic_29.pdf | C12: Journal Of Petrology, 39(5):859-880 | D12: Jurassic Oceanic Crust beneath Grand Canaria | E12: (Hoernle, 1998, P. ) | F12: Kaj | G12: Hoernle | H12: 1998 | I12: Canary Islands | J12: Hoernle, Kaj, 1998, Jurassic Oceanic Crust beneath Grand Canaria, Journal Of Petrology, 39(5):859-880
A13: H30 | B13: C:\Essays\Geo_Dating\Historic\Historic_30.pdf | C13: PhD Thesis, University of Bremen, http://d-nb.info/1072301873/34 | D13: Evolution of La Palma (Canary Islands) | E13: (Galipp, 2005, P. ) | F13: Karsten | G13: Galipp | H13: 2005 | I13: Canary Islands | J13: Galipp, Karsten, 2005, Evolution of La Palma (Canary Islands), PhD Thesis, University of Bremen, http://d-nb.info/1072301873/34
A14: H53 | B14: C:\Essays\Geo_Dating\Historic\Historic_53.pdf | C14: Geology, 33:897-900 | D14: 1585 eruption on La Palma, Canary Islands | E14: (Johansen, 2005, P. ) | F14: T. S. | G14: Johansen | H14: 2005 | I14: Canary Islands | J14: Johansen, T. S., 2005, 1585 eruption on La Palma, Canary Islands , Geology, 33:897-900
A15: H23 | B15: C:\Essays\Geo_Dating\Historic\Historic_23.pdf | C15: Earth and Planetary Science Letters, 303:37–47 | D15: Disequilibria at Volcan Llaima, Chile | E15: (Reubi, 2011, P. ) | F15: O. | G15: Reubi | H15: 2011 | I15: Chile | J15: Reubi, O., 2011, Disequilibria at Volcan Llaima, Chile, Earth and Planetary Science Letters, 303:37–47
A16: H14 | B16: C:\Essays\Geo_Dating\Historic\Historic_14.pdf | C16: Geochemica Et Cosmochemica Acta, 61(18):3789-3801 | D16: Excess Argon In Melt Inclusions | E16: (Esser, 1997, P. ) | F16: R. P. | G16: Esser | H16: 1997 | I16: Erebus | J16: Esser, R. P., 1997, Excess Argon In Melt Inclusions, Geochemica Et Cosmochemica Acta, 61(18):3789-3801
A17: H15 | B17: C:\Essays\Geo_Dating\Historic\Historic_15.pdf | C17: Journal of Volcanology and Geothermal Research, 177:606-618 | D17: Alkaline magmas from Erebus volcano | E17: (Sims, 2008, P. ) | F17: Kenneth W.W. | G17: Sims | H17: 2008 | I17: Erebus | J17: Sims, Kenneth W.W., 2008, Alkaline magmas from Erebus volcano, Journal of Volcanology and Geothermal Research, 177:606-618
A18: H16 | B18: C:\Essays\Geo_Dating\Historic\Historic_16.pdf | C18: Earth and Planetary Science Letters, 245:743-761 | D18: Comparison of Th, Sr, Nd and Pb isotopes | E18: (Sims, 2006, P. ) | F18: Kenneth W.W. | G18: Sims | H18: 2006 | I18: Erebus | J18: Sims, Kenneth W.W., 2006, Comparison of Th, Sr, Nd and Pb isotopes, Earth and Planetary Science Letters, 245:743-761
A19: H48 | B19: C:\Essays\Geo_Dating\Historic\Historic_48.pdf | C19: Journal Of Geophysical Research, 117(B05202):1-18 | D19: 2010 Eyjafjallajökull explosive eruption | E19: (Borisova, 2012, P. ) | F19: Anastassia Y. | G19: Borisova | H19: 2012 | I19: Eyjafjallajökull | J19: Borisova, Anastassia Y., 2012, 2010 Eyjafjallajökull explosive eruption, Journal Of Geophysical Research, 117(B05202):1-18
A20: H17 | B20: C:\Essays\Geo_Dating\Historic\Historic_17.pdf | C20: Journal Of Geophysical Research, 73(14):4601-4607 | D20: Ultramafic Inclusions from Hawaii | E20: (Funkhouser, 1968, P. ) | F20: John G. | G20: Funkhouser | H20: 1968 | I20: Hualalai | J20: Funkhouser, John G., 1968, Ultramafic Inclusions from Hawaii, Journal Of Geophysical Research, 73(14):4601-4607
A21: H42 | B21: C:\Essays\Geo_Dating\Historic\Historic_42.pdf | C21: Proc. Radiochim. Acta 1:335-338 | D21: Izu arc volcanoes, Japan | E21: (Kurihara, 2011, P. ) | F21: Yuichi | G21: Kurihara | H21: 2011 | I21: Izu Arc | J21: Kurihara, Yuichi, 2011, Izu arc volcanoes, Japan, Proc. Radiochim. Acta 1:335-338
A22: H44 | B22: C:\Essays\Geo_Dating\Historic\Historic_44.pdf | C22: Radio Isotopes, 56:795-809 | D22: Volcanic Products from Izu arc volcanoes | E22: (Kurihara, 2007, P. ) | F22: Yuichi | G22: Kurihara | H22: 2007 | I22: Izu Arc | J22: Kurihara, Yuichi, 2007, Volcanic Products from Izu arc volcanoes, Radio Isotopes, 56:795-809
A23: H55 | B23: C:\Essays\Geo_Dating\Historic\Historic_55.pdf | C23: Geochemical Journal, 42:461-479 | D23: 238U–230Th radioactive disequilibrium | E23: (Fukuda, 2008, P. ) | F23: Satoru | G23: Fukuda | H23: 2008 | I23: Izu Arc | J23: Fukuda, Satoru, 2008, 238U–230Th radioactive disequilibrium, Geochemical Journal, 42:461-479
A24: H40 | B24: C:\Essays\Geo_Dating\Historic\Historic_40.pdf | C24: Contributions Mineralogy Petrology, 168(1067):1-28 | D24: Bezymianny and Klyuchevskoy Volcanoes | E24: (Kayzar, 2014, P. ) | F24: Theresa M. | G24: Kayzar | H24: 2014 | I24: Kamchatka | J24: Kayzar, Theresa M., 2014, Bezymianny and Klyuchevskoy Volcanoes, Contributions Mineralogy Petrology, 168(1067):1-28
A25: H47 | B25: C:\Essays\Geo_Dating\Historic\Historic_47.pdf | C25: Earth and Planetary Science Letters, 175:69-86 | D25: The Kluchevskoy volcano | E25: (Dorendorf, 2000, P. ) | F25: Frank | G25: Dorendorf | H25: 2000 | I25: Kamchatka | J25: Dorendorf, Frank, 2000, The Kluchevskoy volcano, Earth and Planetary Science Letters, 175:69-86
A26: H51 | B26: C:\Essays\Geo_Dating\Historic\Historic_51.pdf | C26: Journal Of Petrology, 51(7):1507-1540 | D26: Kaua‘i Lavas over 4.5 million years | E26: (Garcia, 2010, P. ) | F26: M. O. | G26: Garcia | H26: 2010 | I26: Kaua‘i
A27: H03 | B27: C:\Essays\Geo_Dating\Historic\Historic_03.pdf | C27: Geochemistry, Geophysics, Geosystems, 14(1):4849-4873 | D27: Kılauea’s Puu Oo eruption (1983–2010) | E27: (Greene, 2013, P. ) | F27: Andrew R. | G27: Greene | H27: 2013 | I27: Kilauea | J27: =G27 & ", " & F27 & ", " & H27 & ", " & D27 & ", " & C27 -> Greene, Andrew R., 2013, Kılauea’s Puu Oo eruption (1983–2010), Geochemistry, Geophysics, Geosystems, 14(1):4849-4873
A28: H04 | B28: C:\Essays\Geo_Dating\Historic\Historic_04.pdf | C28: Journal Of Petrology, 49(7):1297-1318 | D28: Kilauea’s Puu Oo Eruption | E28: (Marske, 2008, P. ) | F28: Jared P. | G28: Marske | H28: 2008 | I28: Kilauea | J28: Marske, Jared P. , 2008, Kilauea’s Puu Oo Eruption, Journal Of Petrology, 49(7):1297-1318
A29: H09 | B29: C:\Essays\Geo_Dating\Historic\Historic_09.pdf | C29: Journal Of Petrology, 40(8)1321–1342 | D29: Melting History of Kilauea Volcano | E29: (Pietruszka, 1999, P. ) | F29: Aaron J. | G29: Pietruszka | H29: 1999 | I29: Kilauea | J29: Pietruszka, Aaron J. , 1999, Melting History of Kilauea Volcano, Journal Of Petrology, 40(8)1321–1342
A30: H39 | B30: C:\Essays\Geo_Dating\Historic\Historic_39.pdf | C30: Journal Of Petrology, 41(7):961-990 | D30: Puu Oo Eruption of Kilauea Volcano | E30: (Garcia, 2000, P. ) | F30: M. O. | G30: Garcia | H30: 2000 | I30: Kilauea | J30: Garcia, M. O., 2000, Puu Oo Eruption of Kilauea Volcano, Journal Of Petrology, 41(7):961-990
A31: H32 | B31: C:\Essays\Geo_Dating\Historic\Historic_32.pdf | C31: Journal of Volcanology and Geothermal Research 158:281-295 | D31: Crystallization ages of Las Tres Vírgenes | E31: (Schmitt, 2006, P. ) | F31: Axel K. | G31: Schmitt | H31: 2006 | I31: Las Tres Vírgenes | J31: Schmitt, Axel K., 2006, Crystallization ages of Las Tres Vírgenes, Journal of Volcanology and Geothermal Research 158:281-295
A32: None | B32: None | C32: https://en.wikipedia.org/wiki/Volcanoes_of_east-central_Baja_California | D32: Wikipedia, Volcanoes of east-central Baja California, | H32: 2015 | I32: Las Tres Vírgenes | J32: , , 2015, Wikipedia, Volcanoes of east-central Baja California,, https://en.wikipedia.org/wiki/Volcanoes_of_east-central_Baja_California
A33: H43 | B33: C:\Essays\Geo_Dating\Historic\Historic_43.pdf | C33: Chemical Geology 265:272–278 | D33: Contributions to Lesser Antilles magmas | E33: ="(" & G33 & ", " & H33 & ", P. )" -> (DuFrane, 2009, P. ) | F33: S. Andy | G33: DuFrane | H33: 2009 | I33: Lesser Antilles | J33: DuFrane, S. Andy, 2009, Contributions to Lesser Antilles magmas, Chemical Geology 265:272–278
A34: H02 | B34: C:\Essays\Geo_Dating\Historic\Historic_02.pdf | C34: Bulletin Volcanology, 59:577–592 | D34: Earthquake swarm of Loihi seamount | E34: (Garcia, 1998, P. ) | F34: M. O. | G34: Garcia | H34: 1998 | I34: Lohi Seamount | J34: Garcia, M. O., 1998, Earthquake swarm of Loihi seamount, Bulletin Volcanology, 59:577–592
A35: H34 | B35: C:\Essays\Geo_Dating\Historic\Historic_34.pdf | C35: http://perso.ens-lyon.fr/francis.albarede/JBT_Rev_text.pdf | D35: Isotope evolution of Mauna Kea volcano | E35: (Blichert-Toft, 2002, P. ) | F35: Janne | G35: Blichert-Toft | H35: 2002 | I35: Mauna Loa | J35: Blichert-Toft, Janne, 2002, Isotope evolution of Mauna Kea volcano, http://perso.ens-lyon.fr/francis.albarede/JBT_Rev_text.pdf
A36: H31 | B36: C:\Essays\Geo_Dating\Historic\Historic_31.pdf | C36: Journal Of Petrology, 44(3):457-489 | D36: Volcanic rocks from Merapi Volcano | E36: (Gertisser, 2003, P. ) | F36: R. | G36: Gertisser | H36: 2003 | I36: Merapi | J36: Gertisser, R., 2003, Volcanic rocks from Merapi Volcano, Journal Of Petrology, 44(3):457-489
A37: H18 | B37: C:\Essays\Geo_Dating\Historic\Historic_18.pdf | C37: Fifth International Conference on Creationism | D37: Recent Andesite Flows at Mt. Ngauruhoe | E37: (Snelling, 2003, P. ) | F37: Andrew | G37: Snelling | H37: 2003 | I37: Ngauruhoe | J37: Snelling, Andrew, 2003, Recent Andesite Flows at Mt. Ngauruhoe, Fifth International Conference on Creationism
A38: H33 | B38: C:\Essays\Geo_Dating\Historic\Historic_33.pdf | C38: Contributions Mineralogy Petrology, 156:103-118 | D38: Melting beneath Niuafo’ou Island | E38: (Regelous, 2008, P. ) | F38: Marcel | G38: Regelous | H38: 2008 | I38: Niuafo’ou Island | J38: Regelous, Marcel, 2008, Melting beneath Niuafo’ou Island, Contributions Mineralogy Petrology, 156:103-118
A39: H08 | B39: C:\Essays\Geo_Dating\Historic\Historic_08.pdf | C39: Journal Of Geophysical Research, 115(B12201):1-22 | D39: The 1912 Katmai‐Novarupta Eruption | E39: (Turner, 2010, P. ) | F39: Simon | G39: Turner | H39: 2010 | I39: Novarupta | J39: Turner, Simon, 2010, The 1912 Katmai‐Novarupta Eruption, Journal Of Geophysical Research, 115(B12201):1-22
A40: H26 | B40: C:\Essays\Geo_Dating\Historic\Historic_26.pdf | C40: http://pubs.usgs.gov/pp/1791/ | D40: The Novarupta-Katmai Eruption of 1912, P. 1-259 | E40: (Hildreth, 2012, P. ) | F40: Wes | G40: Hildreth | H40: 2012 | I40: Novarupta | J40: Hildreth, Wes, 2012, The Novarupta-Katmai Eruption of 1912, P. 1-259, http://pubs.usgs.gov/pp/1791/
A41: H27 | B41: C:\Essays\Geo_Dating\Historic\Historic_27.pdf | C41: Journal Of Petrology, 44(9):1703-1726 | D41: Rhyolite in North American Continental Arcs | E41: (Reagan, 2003, P. ) | F41: M. K. | G41: Reagan | H41: 2003 | I41: Novarupta | J41: Reagan, M. K., 2003, Rhyolite in North American Continental Arcs, Journal Of Petrology, 44(9):1703-1726
A42: H06 | B42: C:\Essays\Geo_Dating\Historic\Historic_06.pdf | C42: http://pubs.usgs.gov/pinatubo/bernard/table9.html | D42: 1991 Eruption Products of Mount Pinatubo | E42: (Bernard, 1999, P. ) | F42: Alain | G42: Bernard | H42: 1999 | I42: Pinatubo | J42: Bernard, Alain, 1999, 1991 Eruption Products of Mount Pinatubo, http://pubs.usgs.gov/pinatubo/bernard/table9.html
A43: H06 | B43: C:\Essays\Geo_Dating\Historic\Historic_06.pdf | C43: http://pubs.usgs.gov/pinatubo/castillo/index.html | D43: Geochemistry of Mount Pinatubo Volcanic Rocks | E43: (Castillo, 1999, P. ) | F43: Paterno R. | G43: Castillo | H43: 1999 | I43: Pinatubo | J43: Castillo, Paterno R., 1999, Geochemistry of Mount Pinatubo Volcanic Rocks, http://pubs.usgs.gov/pinatubo/castillo/index.html
A44: H12 | B44: C:\Essays\Geo_Dating\Historic\Historic_12.pdf | C44: Geochimica et Cosmochimica Acta 70:3401-3420 | D44: Bicol and Bataan arcs, Philippines | E44: (DuFrane, 2006, P. ) | F44: S. Andrew | G44: DuFrane | H44: 2006 | I44: Pinatubo | J44: DuFrane, S. Andrew , 2006, Bicol and Bataan arcs, Philippines, Geochimica et Cosmochimica Acta 70:3401-3420
A45: H37 | B45: C:\Essays\Geo_Dating\Historic\Historic_37.pdf | C45: Journal of Petrology, 50(3):507-529 | D45: Active Caldera, Rabaul, Papua New Guinea | E45: (Cunningham, 2009, P. ) | F45: H. S. | G45: Cunningham | H45: 2009 | I45: Rabaul | J45: Cunningham, H. S., 2009, Active Caldera, Rabaul, Papua New Guinea, Journal of Petrology, 50(3):507-529
A46: H35 | B46: C:\Essays\Geo_Dating\Historic\Historic_35.pdf | C46: Earth and Planetary Science Letters 265:748-765 | D46: The two Réunion Island volcanoes | E46: (Bosch, 2008, P. ) | F46: Delphine | G46: Bosch | H46: 2008 | I46: Réunion Island | J46: Bosch, Delphine, 2008, The two Réunion Island volcanoes, Earth and Planetary Science Letters 265:748-765
A47: H46 | B47: C:\Essays\Geo_Dating\Historic\Historic_46.pdf | C47: Journal of Volcanology 184:63-78 | D47: Piton de la Fournaise historical lavas | E47: (Vlastélic, 2009, P. ) | F47: Ivan | G47: Vlastélic | H47: 2009 | I47: Réunion island | J47: Vlastélic, Ivan, 2009, Piton de la Fournaise historical lavas, Journal of Volcanology 184:63-78
A48: H54 | B48: C:\Essays\Geo_Dating\Historic\Historic_54.pdf | C48: http://pubs.usgs.gov/pp/1750/chapters/pp2008-1750_chapter36.pdf | D48: Eruption of Mount St. Helens, 2004–2006 | E48: (Cooper, 2008, P. ) | F48: Kari M. | G48: Cooper | H48: 2008 | I48: Saint Helens | J48: Cooper, Kari M., 2008, Eruption of Mount St. Helens, 2004–2006, http://pubs.usgs.gov/pp/1750/chapters/pp2008-1750_chapter36.pdf
A49: H45 | B49: C:\Essays\Geo_Dating\Historic\Historic_45.pdf | C49: Phd Thesis, San Diego State University | D49: Lavas from the islands of Upolu and Savaii | E49: (Bühler, 2011, P. ) | F49: Alena | G49: Bühler | H49: 2011 | I49: Samoa | J49: Bühler, Alena, 2011, Lavas from the islands of Upolu and Savaii, Phd Thesis, San Diego State University
A50: H10 | B50: C:\Essays\Geo_Dating\Historic\Historic_10.pdf | C50: Journal Of Petrology, 44(3)491–515 | D50: Evolution Beneath the Sangeang Api Volcano | E50: (Turner, 2003, P. ) | F50: Simon | G50: Turner | H50: 2003 | I50: Sangeang Api | J50: Turner, Simon, 2003, Evolution Beneath the Sangeang Api Volcano, Journal Of Petrology, 44(3)491–515
A51: H36 | B51: C:\Essays\Geo_Dating\Historic\Historic_36.pdf | C51: Chemical Geology 265:289-302 | D51: Isotopic variations in Ocean Island Basalts | E51: (Millet, 2009, P. ) | F51: Marc-Alban | G51: Millet | H51: 2009 | I51: São Jorge Island | J51: Millet, Marc-Alban, 2009, Isotopic variations in Ocean Island Basalts, Chemical Geology 265:289-302
A52: H20 | B52: C:\Essays\Geo_Dating\Historic\Historic_20.pdf | C52: Lithos, 81:255-277 | D52: Glass-bearing crustal xenoliths | E52: (Salvioli-Mariani, 2005, P. ) | F52: E. | G52: Salvioli-Mariani | H52: 2005 | I52: Stromboli | J52: Salvioli-Mariani, E., 2005, Glass-bearing crustal xenoliths, Lithos, 81:255-277
A53: H21 | B53: C:\Essays\Geo_Dating\Historic\Historic_21.pdf | C53: Journal Of Petrology, 48(12): 2407-2430 | D53: Study of Stromboli Volcano | E53: (Tommasini, 2007, P. ) | F53: Simone | G53: Tommasini | H53: 2007 | I53: Stromboli | J53: Tommasini, Simone, 2007, Study of Stromboli Volcano, Journal Of Petrology, 48(12): 2407-2430
A54: H41 | B54: C:\Essays\Geo_Dating\Historic\Historic_41.pdf | C54: Contributions Mineralogy Petrology, 142:43-57 | D54: Element Variations in Sunda arc Lavas | E54: (Turner, 2001, P. ) | F54: S. | G54: Turner | H54: 2001 | I54: Sunda Arc | J54: Turner, S., 2001, Element Variations in Sunda arc Lavas, Contributions Mineralogy Petrology, 142:43-57
A55: H07 | B55: C:\Essays\Geo_Dating\Historic\Historic_07.pdf | C55: Journal of Petrology, 53(2):271-297 | D55: The Great Tambora Eruption in 1815 | E55: (Gertisser, 2012, P. ) | F55: R. | G55: Gertisser | H55: 2012 | I55: Tambora | J55: Gertisser, R., 2012, The Great Tambora Eruption in 1815, Journal of Petrology, 53(2):271-297
A56: H13 | B56: C:\Essays\Geo_Dating\Historic\Historic_13.pdf | C56: Lithos 126 (2011) 198–211 | D56: A Toba-scale eruption in the Early Miocene | E56: (Smyth, 2011, P. ) | F56: Helen R. | G56: Smyth | H56: 2011 | I56: Toba Miocene | J56: Smyth, Helen R., 2011, A Toba-scale eruption in the Early Miocene, Lithos 126 (2011) 198–211
A57: H11 | B57: C:\Essays\Geo_Dating\Historic\Historic_11.pdf | C57: Bulletin Volcanology, 69:259-263 | D57: 40Ar/39Ar ages of the AD 79 eruption of Vesuvius | E57: (Lanphere, 2007, P. ) | F57: Marvin | G57: Lanphere | H57: 2007 | I57: Vesuvius | J57: Lanphere, Marvin, 2007, 40Ar/39Ar ages of the AD 79 eruption of Vesuvius, Bulletin Volcanology, 69:259-263
A58: H49 | B58: C:\Essays\Geo_Dating\Historic\Historic_49.pdf | C58: Mineralogy and Petrology, 73:121-143 | D58: (Sr-Nd-Pb) of interplinian magmas | E58: (Somma, 2001, P. ) | F58: R. | G58: Somma | H58: 2001 | I58: Vesuvius | J58: Somma, R., 2001, (Sr-Nd-Pb) of interplinian magmas, Mineralogy and Petrology, 73:121-143
A59: H50 | B59: C:\Essays\Geo_Dating\Historic\Historic_50.pdf | C59: Mineralogy and Petrology, 73:145-176 | D59: Skarns from Vesuvius | E59: (Gilg, 2001, P. ) | F59: H. A. | G59: Gilg | H59: 2001 | I59: Vesuvius | J59: Gilg, H. A., 2001, Skarns from Vesuvius, Mineralogy and Petrology, 73:145-176
A60: H19 | B60: C:\Essays\Geo_Dating\Historic\Historic_19.pdf | C60: Volcanism in Hawaii, 26:723-744 | D60: Origin of the West Maui volcanic rocks | E60: (Tatsumoto, 1987, P. ) | F60: Mitsunobu | G60: Tatsumoto | H60: 1987 | I60: West Maui | J60: Tatsumoto, Mitsunobu, 1987, Origin of the West Maui volcanic rocks, Volcanism in Hawaii, 26:723-744
A61: H22 | B61: C:\Essays\Geo_Dating\Historic\Historic_22.pdf | C61: Geochimica et Cosmochimica Acta, 68(4):841-865 | D61: Volcanic arc of Kamchatka | E61: (Bindeman, 2004, P. ) | F61: Ilya N. | G61: Bindeman | H61: 2004 | I61: Kamchatka | J61: Bindeman, Ilya N., 2004, Volcanic arc of Kamchatka, Geochimica et Cosmochimica Acta, 68(4):841-865
C64: 1. Lots of data from multiple sources, if possible | D64: Well Known/ Lots of data | E64: Volcano | F64: Journal Articles | G64: CRSQ Essay
C65: 2. Easy to get background history of volcano | E65: Anatahan Volcano | F65: 1
C66: 3. Familiar to readers (been in news or media) | E66: Bulgaria | F66: 1
C67: 4. Like Surtsey forming new island or Vesuvius burying Pompeii | E67: Eyjafjallajökull | F67: 1
E68: Hualalai | F68: 1
E69: Kaua‘i | F69: 1
E70: Lesser Antilles | F70: 1
E71: Merapi | F71: 1
E72: Ngauruhoe | F72: 1
E73: Niuafo’ou Island | F73: 1
E74: Rabaul | F74: 1
D75: Very | E75: Saint Helens | F75: 1 | H75: H54
E76: Sangeang Api | F76: 1
E77: São Jorge Island | F77: 1
E78: Sunda Arc | F78: 1
E79: Toba Miocene | F79: 1
E80: West Maui | F80: 1
E81: Samoa | F81: 1
D82: Very | E82: Tambora | F82: 1
E83: Kamchatka | F83: 3
E84: Las Tres Vírgenes | F84: 2
E85: Lohi Seamount | F85: 2
E86: Mauna Loa | F86: 2
E87: Réunion Island | F87: 2
E88: Stromboli | F88: 2
D89: Very | E89: Novarupta | F89: 3
D90: Very | E90: Canary Islands | F90: 3
D91: Very | E91: Erebus | F91: 3
D92: Very | E92: Izu Arc | F92: 3
D93: Very | E93: Pinatubo | F93: 3
D94: Very | E94: Vesuvius | F94: 3
D95: Very | E95: Aleutian Arc | F95: 4 | G95: Historic_A
D96: Very | E96: Kilauea | F96: 4 | G96: Historic_A

Sheet Erupt
A1: Dated | B1: Eruption | C1: Age (Yr.) | D1: Age (Ma) | E1: Volcano | F1: Reference | G1: Age Ratio 106 | H1: Citation
A2: 1999 | B2: 1991 | C2: =A2-B2 -> 8 | D2: 5000 | E2: Pinatubo | F2: Bernard | G2: 625 | H2: ="(" & F2 & ", " & A2 & ")" -> (Bernard, 1999) | J2: Bernard, Alain, 1999, 1991 Eruption Products of Mount Pinatubo, http://pubs.usgs.gov/pinatubo/bernard/table9.html
A3: 2008 | B3: 1945 | C3: 63 | D3: 4963 | E3: Réunion Island | F3: Bosch | G3: 79 | H3: (Bosch, 2008) | J3: Bosch, Delphine, 2008, The two Réunion Island volcanoes, Earth and Planetary Science Letters 265:748-765
A4: 1999 | B4: 1991 | C4: 8 | D4: 5000 | E4: Pinatubo | F4: Castillo | G4: 625 | H4: (Castillo, 1999) | J4: Castillo, Paterno R., 1999, Geochemistry of Mount Pinatubo Volcanic Rocks, http://pubs.usgs.gov/pinatubo/castillo/index.html
A5: 2006 | B5: 1800 | C5: 206 | D5: 4986 | E5: Mayon | F5: DuFrane | G5: 24 | H5: (DuFrane, 2006) | J5: DuFrane, S. Andrew, 2006, Bicol and Bataan arcs, Philippines, Geochimica et Cosmochimica Acta 70:3401-3420
A6: 2006 | B6: 1991 | C6: 15 | D6: 5000 | E6: Pinatubo | F6: DuFrane | G6: 333 | H6: (DuFrane, 2006) | J6: DuFrane, S. Andrew, 2006, Bicol and Bataan arcs, Philippines, Geochimica et Cosmochimica Acta 70:3401-3420
A7: 2006 | B7: 1600 | C7: 406 | D7: 4990 | E7: Taal | F7: DuFrane | G7: 12 | H7: (DuFrane, 2006) | J7: DuFrane, S. Andrew, 2006, Bicol and Bataan arcs, Philippines, Geochimica et Cosmochimica Acta 70:3401-3420
A8: 2009 | B8: 1530 | C8: 479 | D8: 4962 | E8: Guadeloupe | F8: DuFrane | G8: 10.35908142 | H8: (DuFrane, 2009) | J8: DuFrane, S. Andrew, 2009, Contributions to Lesser Antilles magmas, Chemical Geology 265:272–278
A9: 2009 | B9: 1995 | C9: 14 | D9: 4979 | E9: Montserrat | F9: DuFrane | G9: 355.6428571 | H9: (DuFrane, 2009) | J9: DuFrane, S. Andrew, 2009, Contributions to Lesser Antilles magmas, Chemical Geology 265:272–278
A10: 1997 | B10: 1984 | C10: 13 | D10: 9 | E10: Erebus | F10: Esser | G10: 1 | H10: (Esser, 1997) | J10: Esser, R. P., 1997, Excess Argon In Melt Inclusions, Geochemica Et Cosmochemica Acta, 61(18):3789-3801
A11: 1968 | B11: 1800 | C11: 168 | D11: 3300 | E11: Hualalai | F11: Funkhouser | G11: 20 | H11: (Funkhouser, 1968) | J11: Funkhouser, John G., 1968, Ultramafic Inclusions from Hawaii, Journal Of Geophysical Research, 73(14):4601-4607
A12: 2005 | B12: 1949 | C12: 56 | D12: 4920 | E12: Canary Islands | F12: Galipp | G12: 87 | H12: (Galipp, 2005) | J12: Galipp, Karsten, 2005, Evolution of La Palma (Canary Islands), PhD Thesis, University of Bremen, http://d-nb.info/1072301873/34
A13: 1996 | B13: 1996 | C13: 0.1666 | D13: 4997 | E13: Loihi | F13: Garcia | G13: 30000 | H13: (Garcia, 1998) | J13: Garcia, M. O., 1998, Earthquake swarm of Loihi seamount, Bulletin Volcanology, 59:577–592
A14: 2003 | B14: 1872 | C14: =A14-B14 -> 131 | D14: 4986 | E14: Merapi | F14: Gertisser | G14: 38 | H14: ="(" & F14 & ", " & A14 & ")" -> (Gertisser, 2003) | J14: Gertisser, R., 2003, Volcanic rocks from Merapi Volcano, Journal Of Petrology, 44(3):457-489
A15: 2001 | B15: 79 | C15: 1922 | D15: 4960.043413 | E15: Mount Vesuvius | F15: Gilg | G15: 2.5 | H15: (Gilg, 2001) | J15: Gilg, H. A., 2001, Skarns from Vesuvius, Mineralogy and Petrology, 73:145-176
A16: 2013 | B16: 1983 | C16: 30 | D16: 4991 | E16: Kilauea | F16: Greene | G16: 166 | H16: (Greene, 2013) | J16: Greene, Andrew R., 2013, Kılauea’s Puu Oo eruption (1983–2010), Geochemistry, Geophysics, Geosystems, 14(1):4849-4873
A17: 2012 | B17: 1912 | C17: 100 | D17: 4967 | E17: Novarupta | F17: Hildreth | G17: 50 | H17: (Hildreth, 2012) | J17: Hildreth, Wes, 2012, The Novarupta-Katmai Eruption of 1912, P. 1-259, http://pubs.usgs.gov/pp/1791/
A18: 1998 | B18: 1949 | C18: 49 | D18: 5001 | E18: Canary Islands | F18: Hoernle | G18: 100 | H18: (Hoernle, 1998) | J18: Hoernle, Kaj, 1998, Jurassic Oceanic Crust beneath Grand Canaria, Journal Of Petrology, 39(5):859-880
A19: 2004 | B19: 1906 | C19: 98 | D19: 4963 | E19: Kanaga | F19: Jicha | G19: 183 | H19: (Jicha, 2004) | J19: Jicha, B. R., 2004, Variable Impact of the Subducted Slab, Journal Of Petrology, 45(9)1845–1875
A20: 2004 | B20: 1906 | C20: 98 | D20: 4970 | E20: Seguam | F20: Jicha | G20: 51 | H20: (Jicha, 2004) | J20: Jicha, B. R., 2004, Variable Impact of the Subducted Slab, Journal Of Petrology, 45(9)1845–1875
A21: 1996 | B21: 1986 | C21: 10 | D21: 5076 | E21: Augustine | F21: Johnson | G21: 507 | H21: (Johnson, 1996) | J21: Johnson, K. E., 1996, Geochemistry of Augustine Volcano, Journal Of Petrology, 37(1):95-115
A22: 2014 | B22: 2010 | C22: 4 | D22: 5004.508922 | E22: Bezymianny | F22: Kayzar | G22: 1251.127231 | H22: (Kayzar, 2014) | J22: Kayzar, Theresa M., 2014, Bezymianny and Klyuchevskoy Volcanoes, Contributions Mineralogy Petrology, 168(1067):1-28
A23: 2014 | B23: 2007 | C23: 7 | D23: 5001.19081 | E23: Klyuchevskoy | F23: Kayzar | G23: 714 | H23: (Kayzar, 2014) | J23: Kayzar, Theresa M., 2014, Bezymianny and Klyuchevskoy Volcanoes, Contributions Mineralogy Petrology, 168(1067):1-28
A24: 2014 | B24: 2007 | C24: 7 | D24: 4996.917708 | E24: Shiveluch | F24: Kayzar | G24: 714 | H24: (Kayzar, 2014) | J24: Kayzar, Theresa M., 2014, Bezymianny and Klyuchevskoy Volcanoes, Contributions Mineralogy Petrology, 168(1067):1-28
A25: 2014 | B25: 2008 | C25: 6 | D25: 4996.771912 | E25: Karymsky | F25: Kayzar | G25: 832 | H25: (Kayzar, 2014) | J25: Kayzar, Theresa M., 2014, Bezymianny and Klyuchevskoy Volcanoes, Contributions Mineralogy Petrology, 168(1067):1-28
A26: 2008 | B26: 1998 | C26: 10 | D26: 4991 | E26: Kilauea | F26: Marske | G26: 499 | H26: (Marske, 2008) | J26: Marske, Jared P. , 2008, Kilauea’s Puu Oo Eruption, Journal Of Petrology, 49(7):1297-1318
A27: 2009 | B27: 1808 | C27: 201 | D27: 4899 | E27: São Jorge Island | F27: Millet | G27: 49 | H27: (Millet, 2009) | J27: Millet, Marc-Alban, 2009, Isotopic variations in Ocean Island Basalts, Chemical Geology 265:289-302
A28: 1999 | B28: 1790 | C28: 209 | D28: 4981 | E28: Kilauea | F28: Pietruszka | G28: 24 | H28: (Pietruszka, 1999) | J28: Pietruszka, Aaron J. , 1999, Melting History of Kilauea Volcano, Journal Of Petrology, 40(8)1321–1342
A29: 2003 | B29: 1912 | C29: 91 | D29: 4967 | E29: Novarupta | F29: Reagan | G29: 55 | H29: (Reagan, 2003) | J29: Reagan, M. K., 2003, Rhyolite in North American Continental Arcs, Journal Of Petrology, 44(9):1703-1726
A30: 2005 | B30: 1944 | C30: 61 | D30: 4965 | E30: Stromboli | F30: Salvioli | G30: 81 | H30: (Salvioli, 2005) | J30: Salvioli-Mariani, E., 2005, Glass-bearing crustal xenoliths, Lithos, 81:255-277
A31: 2006 | B31: 2000 | C31: 6 | D31: 4935 | E31: Erebus | F31: Sims | G31: 823 | H31: (Sims, 2006) | J31: Sims, Kenneth W.W., 2006, Comparison of Th, Sr, Nd and Pb isotopes, Earth and Planetary Science Letters, 245:743-761
A32: 2008 | B32: 2004 | C32: 4 | D32: 4894 | E32: Erebus | F32: Sims | G32: 1224 | H32: (Sims, 2008) | J32: Sims, Kenneth W.W., 2008, Alkaline magmas from Erebus volcano, Journal of Volcanology and Geothermal Research, 177:606-618
A33: 2000 | B33: 1949 | C33: 51 | D33: 4974 | E33: Ngauruhoe | F33: Snelling | G33: 98 | H33: (Snelling, 2000) | J33: Snelling, Andrew, 2003, Recent Andesite Flows at Mt. Ngauruhoe, Fifth International Conference on Creationism
A34: 2001 | B34: 79 | C34: 1922 | D34: 4960.043413 | E34: Mount Vesuvius | F34: Somma | G34: 2.5 | H34: (Somma, 2001) | J34: Somma, R., 2001, (Sr-Nd-Pb) of interplinian magmas, Mineralogy and Petrology, 73:121-143
A35: 2001 | B35: 1883 | C35: 118 | D35: 4991 | E35: Krakatau | F35: Turner | G35: 42 | H35: (Turner, 2001) | J35: Turner, Simon, 2001, Element Variations in Sunda arc Lavas, Contributions Mineralogy Petrology, 142:43-57
A36: 2001 | B36: 1982 | C36: 19 | D36: 4983 | E36: Galunggung | F36: Turner | G36: 262 | H36: (Turner, 2001) | J36: Turner, Simon, 2001, Element Variations in Sunda arc Lavas, Contributions Mineralogy Petrology, 142:43-57
A37: 2001 | B37: 1006 | C37: 995 | D37: 4984 | E37: Merapi | F37: Turner | G37: 5 | H37: (Turner, 2001) | J37: Turner, Simon, 2001, Element Variations in Sunda arc Lavas, Contributions Mineralogy Petrology, 142:43-57
A38: 2001 | B38: 1900 | C38: 101 | D38: 4985 | E38: Rindjani | F38: Turner | G38: 49 | H38: (Turner, 2001) | J38: Turner, Simon, 2001, Element Variations in Sunda arc Lavas, Contributions Mineralogy Petrology, 142:43-57
A39: 2001 | B39: 1815 | C39: 186 | D39: 4967 | E39: Tambora | F39: Turner | G39: 27 | H39: (Turner, 2001) | J39: Turner, Simon, 2001, Element Variations in Sunda arc Lavas, Contributions Mineralogy Petrology, 142:43-57
A40: 2001 | B40: 1985 | C40: 16 | D40: 4970 | E40: Sangeang Api | F40: Turner | G40: 311 | H40: (Turner, 2001) | J40: Turner, Simon, 2001, Element Variations in Sunda arc Lavas, Contributions Mineralogy Petrology, 142:43-57
A41: 2001 | B41: 1900 | C41: 101 | D41: 4975 | E41: Ayi Flores | F41: Turner | G41: 49 | H41: (Turner, 2001) | J41: Turner, Simon, 2001, Element Variations in Sunda arc Lavas, Contributions Mineralogy Petrology, 142:43-57
A42: 2003 | B42: 1958 | C42: 45 | D42: 4969 | E42: Sangeang Api | F42: Turner | G42: 110 | H42: (Turner, 2003) | J42: Turner, Simon, 2003, Evolution Beneath the Sangeang Api Volcano, Journal Of Petrology, 44(3)491–515
A43: 2009 | B43: 2007 | C43: 2 | D43: 4965.341886 | E43: Réunion island | F43: Vlastélic | G43: 2482.670943 | H43: (Vlastélic, 2009) | J43: Vlastélic, Ivan, 2009, Piton de la Fournaise historical lavas, Journal of Volcanology 184:63-78
A44: 2005 | B44: 2003 | C44: 2 | D44: 4970 | E44: Anatahan | F44: Wade | G44: 2485 | H44: (Wade, 2005) | J44: Wade, Jennifer A., 2005, The May 2003 eruption of Anatahan volcano, Journal of Volcanology and Geothermal Research 146:139-170

Sheet Active
A1: Active Volcano Order | B1: Location | E1: Active Volcano | F1: Location Order | G1: Spreadsheet
A2: Avachinsky-Koryaksky | B2: Russia | E2: Barren Island | F2: India
A3: Cerro Azul | B3: Chile | E3: Mount Erebus | F3: Antarctica | G3: 14, 15, 16
A4: Colima | B4: Mexico | E4: LaPalma | F4: Canary Islands | G4: 29,30
A5: Chimborazo | B5: Ecuador | E5: Cha | F5: Cape Verde
A6: Cotopaxi | B6: Ecuador | E6: Cerro Azul | F6: Chile
A7: Galeras | B7: Colombia | E7: Galeras | F7: Colombia
A8: Glacier Peak | B8: US (Washington) | E8: Nevado del Ruiz | F8: Colombia
A9: Haleakala | B9: US (Hawaii) | E9: Irazu | F9: Costa Rica
A10: Irazu | B10: Costa Rica | E10: Niragongo | F10: Republic of the Congo
A11: Kelut | B11: Indonesia | E11: Chimborazo | F11: Ecuador
A12: Mount Kilauea | B12: US (Hawaii) | E12: Cotopaxi | F12: Ecuador | G12: 28
A13: Krakatoa | B13: Indonesia | E13: Santorini | F13: Greece
A14: Lō'ihi Seamount | B14: US (Hawaii) | E14: Pacaya | F14: Guatemala
A15: Mount Adams | B15: US (Washington) | E15: Lakagigar | F15: Iceland
A16: Mount Baker | B16: US (Washington) | E16: Kelut | F16: Indonesia
A17: Mount Fuji | B17: Japan | E17: Krakatoa | F17: Indonesia
A18: Mount Hood | B18: US (Oregon) | E18: Mount Merapi | F18: Indonesia | G18: 31
A19: Mount Lassen | B19: US (California) | E19: Mount Slamet | F19: Indonesia
A20: Mount Mayon | B20: Philippines | E20: Sinabung | F20: Indonesia
A21: Mount Merapi | B21: Indonesia | E21: Tambora | F21: Indonesia
A22: Mount Olympus | B22: US (Washington) | E22: Mount Etna | F22: Italy
A23: Mount Pinatubo | B23: Philippines | E23: Stromboli | F23: Italy
A24: Mount Rainier | B24: US (Washington) | E24: Vesuvius | F24: Italy
A25: Mount Slamet | B25: Indonesia | E25: Mount Fuji | F25: Japan
A26: Mount St Helens | B26: US Washington | E26: Sakurajima | F26: Japan
A27: Mauna Kea | B27: US (Hawaii) | E27: Mount Unzen | F27: Japan
A28: Mauna Hualalai | B28: US (Hawaii) | E28: Colima | F28: Mexico
A29: Mauna Loa | B29: US (Hawaii) | E29: Parícutin | F29: Mexico
A30: Nevado del Ruiz | B30: Colombia | E30: Popocatepetl | F30: Mexico
A31: Pacaya | B31: Guatemala | E31: Soufrière Hills | F31: Montserrat
A32: Parícutin | B32: Mexico | E32: Ulawun | F32: Papua New Guinea
A33: Popocatepetl | B33: Mexico | E33: Mount Mayon | F33: Philippines | G33: 12
A34: Redoubt | B34: US (Alaska) | E34: Mount Pinatubo | F34: Philippines | G34: 6, 12
A35: Sakurajima | B35: Japan | E35: Taal | F35: Philippines | G35: 12
A36: Sinabung | B36: Indonesia | E36: Avachinsky-Koryaksky | F36: Russia
A37: Taal | B37: Philippines | E37: Teide | F37: Spain (Canary Islands)
A38: Tambora | B38: Indonesia | E38: Redoubt | F38: US (Alaska) | G38: 1
A39: Ulawun | B39: Papua New Guinea | E39: Mount Lassen | F39: US (California)
A40: Mount Unzen | B40: Japan | E40: Haleakala | F40: US (Hawaii)
A41: Lakagigar | B41: Iceland | E41: Mount Kilauea | F41: US (Hawaii) | G41: 3, 4, 9
A42: LaPalma | B42: Canary Islands | E42: Lō'ihi Seamount | F42: US (Hawaii) | G42: 2
A43: Mount Erebus | B43: Antarctica | E43: Mauna Kea | F43: US (Hawaii)
A44: Mount Etna | B44: Italy | E44: Mauna Hualalai | F44: US (Hawaii)
A45: Niragongo | B45: Democratic Republic of the Congo | E45: Mauna Loa | F45: US (Hawaii) | G45: 7
A46: Santorini | B46: Greece | E46: Mount Hood | F46: US (Oregon)
A47: Soufrière Hills | B47: Montserrat | E47: Glacier Peak | F47: US (Washington)
A48: Stromboli | B48: Italy | E48: Mount Adams | F48: US (Washington)
A49: Teide | B49: Spain (Canary Islands) | E49: Mount Baker | F49: US (Washington)
A50: Vesuvius | B50: Italy | E50: Mount Olympus | F50: US (Washington)
A51: Barren Island | B51: India | E51: Mount Rainier | F51: US (Washington)
A52: Cha | B52: Cape Verde | E52: Mount St Helens | F52: US Washington

Sheet H01
A1: Table 1 | B1: Page 1852
A2: 206Pb/204Pb | B2: 18.804 | C2: 18.789 | D2: 18.755 | E2: 18.778 | F2: 18.779 | G2: 18.766 | H2: 18.769 | I2: 18.866
A3: 207Pb/204Pb | B3: 15.563 | C3: 15.544 | D3: 15.508 | E3: 15.525 | F3: 15.537 | G3: 15.541 | H3: 15.552 | I3: 15.573
A4: 208Pb/204Pb | B4: 38.241 | C4: 38.304 | D4: 38.117 | E4: 38.178 | F4: 38.243 | G4: 38.256 | H4: 38.304 | I4: 38.416
A5: 207Pb/206Pb | B5: =(B3/B2) -> 0.8276430547 | C5: =(C3/C2) -> 0.8272925648 | D5: 0.8268728339 | E5: 0.8267653637 | F5: 0.8273603493 | G5: 0.8281466482 | H5: 0.8286003516 | I5: 0.8254531962
A6: Pb/Pb Age | B6: =[1]!AgePb76(B5) -> 4970.066283 | C6: =[1]!AgePb76(C5) -> 4969.464308 | D6: =[1]!AgePb76(D5) -> 4968.743052 | E6: =[1]!AgePb76(E5) -> 4968.558316 | F6: =[1]!AgePb76(F5) -> 4969.580751 | G6: =[1]!AgePb76(G5) -> 4970.930743 | H6: =[1]!AgePb76(H5) -> 4971.709085 | I6: =[1]!AgePb76(I5) -> 4966.300694 | J6: Million Years
A7: Pb/Pb Age | B7: 4970.066283 | C7: 4969.464308 | D7: 4968.743052 | E7: 4968.558316 | F7: 4969.580751 | G7: 4970.930743 | H7: 4971.709085 | I7: 4966.300694 | J7: Million Years
A8: Ar/Ar Age | B8: 2 | D8: 28 | H8: 30.2 | I8: 713.3 | J8: Thousand Years
A9: Geo Centre | B9: Shishaldin | C9: Shishaldin | D9: Shishaldin | E9: Shishaldin | F9: Shishaldin | G9: Shishaldin | H9: Shishaldin | I9: Shishaldin
A11: Table 1 | B11: Page 1853
A12: 206Pb/204Pb | B12: 18.799 | C12: 18.788 | D12: 18.818 | E12: 18.778 | F12: 18.788 | G12: 18.785 | H12: 18.813 | I12: 18.726
A13: 207Pb/204Pb | B13: 15.555 | C13: 15.558 | D13: 15.583 | E13: 15.574 | F13: 15.555 | G13: 15.555 | H13: 15.579 | I13: 15.538
A14: 208Pb/204Pb | B14: 38.346 | C14: 38.355 | D14: 38.432 | E14: 38.383 | F14: 38.333 | G14: 38.331 | H14: 38.412 | I14: 38.249
A15: 207Pb/206Pb | B15: =(B13/B12) -> 0.8274376297 | C15: =(C13/C12) -> 0.8280817543 | D15: 0.8280901265 | E15: 0.8293748003 | F15: 0.8279220779 | G15: 0.8280542986 | H15: 0.8280975921 | I15: 0.8297554203
A16: Pb/Pb Age | B16: =[1]!AgePb76(B15) -> 4969.713493 | C16: =[1]!AgePb76(C15) -> 4970.819379 | D16: =[1]!AgePb76(D15) -> 4970.833747 | E16: =[1]!AgePb76(E15) -> 4973.036629 | F16: =[1]!AgePb76(F15) -> 4970.545319 | G16: =[1]!AgePb76(G15) -> 4970.77226 | H16: =[1]!AgePb76(H15) -> 4970.846559 | I16: =[1]!AgePb76(I15) -> 4973.688597 | J16: Million Years
A17: Pb/Pb Age | B17: 4969.713493 | C17: 4970.819379 | D17: 4970.833747 | E17: 4973.036629 | F17: 4970.545319 | G17: 4970.77226 | H17: 4970.846559 | I17: 4973.688597 | J17: Million Years
A18: Ar/Ar Age | B18: =(2015-1906)/1000 -> 0.109 | C18: 198.1 | E18: 383.9 | G18: 352 | H18: 199.1 | I18: 130.5 | J18: Thousand Years
A19: Geo Centre | B19: Kanaga | C19: Kanaga | D19: Kanaga | E19: Kanaga | F19: Kanaga | G19: Kanaga | H19: Kanaga | I19: Roundhead
A21: Table 1 | B21: Page 1854
A22: 206Pb/204Pb | B22: 18.697 | C22: 18.703 | D22: —— | E22: 18.716 | F22: 18.932 | G22: 18.908 | H22: 18.93 | I22: 18.897
A23: 207Pb/204Pb | B23: 15.55 | C23: 15.528 | D23: —— | E23: 15.528 | F23: 15.596 | G23: 15.567 | H23: 15.589 | I23: 15.573
A24: 208Pb/204Pb | B24: 38.254 | C24: 38.206 | D24: —— | E24: 38.222 | F24: 38.532 | G24: 38.44 | H24: 38.516 | I24: 38.45
A25: 207Pb/206Pb | B25: =(B23/B22) -> 0.8316842274 | C25: =(C23/C22) -> 0.8302411378 | E25: 0.8296644582 | F25: 0.8237904078 | G25: 0.8233023059 | H25: 0.8235076598 | I25: 0.8240990633
A26: Pb/Pb Age | B26: =[1]!AgePb76(B25) -> 4976.987591 | C26: =[1]!AgePb76(C25) -> 4974.520126 | E26: =[1]!AgePb76(E25) -> 4973.532816 | F26: =[1]!AgePb76(F25) -> 4963.434333 | G26: =[1]!AgePb76(G25) -> 4962.591761 | H26: =[1]!AgePb76(H25) -> 4962.946312 | I26: =[1]!AgePb76(I25) -> 4963.966867 | J26: Million Years
A27: Pb/Pb Age | B27: 4976.987591 | C27: 4974.520126 | E27: 4973.532816 | F27: 4963.434333 | G27: 4962.591761 | H27: 4962.946312 | I27: 4963.966867 | J27: Million Years
A28: Ar/Ar Age | B28: 133.9 | F28: 10 | G28: 10 | H28: =(2015-1977)/1000 -> 0.038 | I28: 61.4 | J28: Thousand Years
A29: Geo Centre | B29: Roundhead | C29: Roundhead | D29: Roundhead | E29: Roundhead | F29: Seguam | G29: Seguam | H29: Seguam | I29: Seguam
A31: Table 1 | B31: Page 1855
A32: 206Pb/204Pb | B32: 18.941 | C32: 18.916 | D32: 18.927 | E32: 18.95 | F32: 18.924 | G32: 18.938 | H32: 18.917 | I32: 18.938
A33: 207Pb/204Pb | B33: 15.584 | C33: 15.58 | D33: 15.575 | E33: 15.6 | F33: 15.622 | G33: 15.591 | H33: 15.578 | I33: 15.584
A34: 208Pb/204Pb | B34: 38.504 | C34: 38.478 | D34: 38.47 | E34: 38.553 | F34: 38.553 | G34: 38.527 | H34: 38.485 | I34: 38.518
A35: 207Pb/206Pb | B35: =(B33/B32) -> 0.8227654295 | C35: =(C33/C32) -> 0.8236413618 | D35: 0.8228985048 | E35: 0.8232189974 | F35: 0.8255125766 | G35: 0.8232653923 | H35: 0.8234920971 | I35: 0.8228957651
A36: Pb/Pb Age | B36: =[1]!AgePb76(B35) -> 4961.664381 | C36: =[1]!AgePb76(C35) -> 4963.177103 | D36: =[1]!AgePb76(D35) -> 4961.89431 | E36: =[1]!AgePb76(E35) -> 4962.4479 | F36: =[1]!AgePb76(F35) -> 4966.402942 | G36: =[1]!AgePb76(G35) -> 4962.528019 | H36: =[1]!AgePb76(H35) -> 4962.919446 | I36: =[1]!AgePb76(I35) -> 4961.889577 | J36: Million Years
A37: Pb/Pb Age | B37: 4961.664381 | C37: 4963.177103 | D37: 4961.89431 | E37: 4962.4479 | F37: 4966.402942 | G37: 4962.528019 | H37: 4962.919446 | I37: 4961.889577 | J37: Million Years
A38: Ar/Ar Age | B38: 49.2 | C38: 48.9 | D38: 93.1 | E38: 33.3 | J38: Thousand Years
A39: Geo Centre | B39: Seguam | C39: Seguam | D39: Seguam | E39: Seguam | F39: Seguam | G39: Seguam | H39: Seguam | I39: Seguam
A42: Volcanoe | B42: Historic Eruption | C42: Ar/Ar Age (ka) | D42: Pb/Pb Age (Ma) | E42: Error Ratio (106)
A43: Kanaga | B43: 1906 AD | C43: =(2004-1906)/1000 -> 0.098 | D43: 4969.713493 | E43: =(D43/1000)/C43 -> 50.71136218
C44: 198.1 | D44: 4970.819379 | E44: =D44/C44 -> 25.09247541
C45: 383.9 | D45: 4973.036629 | E45: 12.95398966
C46: 352 | D46: 4970.77226 | E46: 14.1215121
C47: 199.1 | D47: 4970.846559 | E47: 24.96658242
A48: Roundhead | C48: 130.5 | D48: 4973.688597 | E48: 38.1125563
A49: Seguam | B49: 1977 AD | C49: =(2004-1977)/1000 -> 0.027 | D49: 4963 | E49: =(D49/1000)/C49 -> 183.8148148 | F49: =E49 * 1000000 -> 183814814.8 | G49: =SQRT(F49/(22/7)) -> 7647.648788
C50: 49.2 | D50: 4962 | E50: 100.8536585
C51: 48.9 | D51: 4963 | E51: 101.4928425
C52: 93.1 | D52: 4962 | E52: 53.29752954
C53: 33.3 | D53: 4962 | E53: 149.009009
A54: Shishaldin | C54: 2 | D54: 4970.066283 | E54: 2485.033141
C55: 28 | D55: 4968.743052 | E55: 177.455109
C56: 30 | D56: 4971.709085 | E56: 165.7236362
C57: 713 | D57: 4966.300694 | E57: 6.965358617
C58: Average | D58: =AVERAGE(D43:D57) -> 4967.846402
C59: Maximum | D59: =MAX(D43:D58) -> 4973.688597
C60: Minimum | D60: =MIN(D43:D59) -> 4962
C61: Difference | D61: =D59-D60 -> 11.6885967
C62: Accuracy | D62: =1-(D61/D58) -> 0.9976471501

Sheet H02
E1: 1996 Eruption | F1: Loihi
A2: 206Pb/204Pb | B2: 18.33 | C2: 18.328
A3: 207Pb/204Pb | B3: 15.457 | C3: 15.46
A4: 208Pb/204Pb | B4: 38.054 | C4: 38.059
A5: 207Pb/206Pb | B5: =(B3/B2) -> 0.8432624113 | C5: =(C3/C2) -> 0.8435181144
A6: Pb/Pb Age | B6: =[1]!AgePb76(B5) -> 4996.62137 | C6: =[1]!AgePb76(C5) -> 4997.051741
A7: Pb Age (Ma) | B7: 4996.62137 | C7: 4997.051741
A8: Historic Age | B8: 0.1666 | C8: 0.1666
A9: Age Ratio | B9: =B7/B8 -> 29991.72491 | C9: =C7/C8 -> 29994.30817

Sheet H03
A1: Table 2. | B1: 1983–2010 | C1: Kilauea | R1: Eruption Year | S1: Pb Age (Ma) | T1: True Age | U1: Error Ratio
B2: Month | C2: Year | D2: 206Pb/204Pb | E2: Error | F2: 207Pb/204Pb | G2: Error | H2: 208Pb/204Pb | I2: Error | J2: 87Sr/86Sr | K2: Error | L2: 207Pb/206Pb | M2: Pb/Pb Age | N2: Pb/Pb Age | R2: 1983 | S2: 4984 | T2: =2013-R2 -> 30 | U2: =(S2)/T2 -> 166.1333333
A3: 23 | B3: Jan | C3: 1983 | D3: 18.5247 | E3: 0.0009 | F3: 15.48 | G3: 0.0008 | H3: 38.155 | I3: 0.002 | J3: 0.70359 | K3: 9e-06 | L3: =(F3/D3) -> 0.835641063 | M3: =[1]!AgePb76(L3) -> 4983.729911 | N3: 4984 | P3: 1983 | R3: 1984 | S3: 4988 | T3: =2013-R3 -> 29 | U3: =(S3)/T3 -> 172
A4: 9 | B4: Apr | C4: 1983 | D4: 18.5309 | E4: 0.0007 | F4: 15.4893 | G4: 0.0007 | H4: 38.165 | I4: 0.0017 | J4: 0.703573 | K4: 8e-06 | L4: =(F4/D4) -> 0.8358633418 | M4: =[1]!AgePb76(L4) -> 4984.10766 | N4: 4984 | P4: 1984 | R4: 1985 | S4: 4990 | T4: 28 | U4: 178.2142857
A5: 3 | B5: July | C5: 1983 | D5: 18.478 | E5: 0.0007 | F5: 15.4765 | G5: 0.0008 | H5: 38.117 | I5: 0.0017 | J5: 0.703573 | K5: 7e-06 | L5: 0.8375635891 | M5: =[1]!AgePb76(L5) -> 4986.993597 | N5: 4987 | P5: 1985 | R5: 1986 | S5: 4992 | T5: 27 | U5: 184.8888889
A6: 31 | B6: Jan | C6: 1984 | D6: 18.4595 | E6: 0.0009 | F6: 15.4765 | G6: 0.0007 | H6: 38.103 | I6: 0.002 | J6: 0.703587 | K6: 8e-06 | L6: 0.8384029903 | M6: =[1]!AgePb76(L6) -> 4988.416072 | N6: 4988 | P6: 1986 | R6: 1987 | S6: 4992 | T6: 26 | U6: 192
A7: 12 | B7: Sep | C7: 1984 | D7: 18.4417 | E7: 0.0008 | F7: 15.4747 | G7: 0.0007 | H7: 38.091 | I7: 0.0019 | J7: 0.703555 | K7: 9e-06 | L7: 0.8391146152 | M7: =[1]!AgePb76(L7) -> 4989.620828 | N7: 4990 | P7: 1987 | R7: 1988 | S7: 4993 | T7: 25 | U7: 199.72
A8: 8 | B8: Feb | C8: 1985 | D8: 18.4342 | E8: 0.001 | F8: 15.4743 | G8: 0.0009 | H8: 38.087 | I8: 0.0024 | J8: 0.703567 | K8: 8e-06 | L8: 0.8394343123 | M8: =[1]!AgePb76(L8) -> 4990.161711 | N8: 4990 | P8: 1988 | R8: 1989 | S8: 4993 | T8: 24 | U8: 208.0416667
A9: 30 | B9: Jul | C9: 1985 | D9: 18.4306 | E9: 0.0007 | F9: 15.4756 | G9: 0.0007 | H9: 38.089 | I9: 0.002 | J9: 0.703571 | K9: 8e-06 | L9: 0.8396688117 | M9: =[1]!AgePb76(L9) -> 4990.558311 | N9: 4991 | P9: 1989 | R9: 1990 | S9: 4994 | T9: 23 | U9: 217.1304348
A10: 2 | B10: Jun | C10: 1986 | D10: 18.4138 | E10: 0.0009 | F10: 15.4755 | G10: 0.0008 | H10: 38.079 | I10: 0.002 | J10: 0.70358 | K10: 9e-06 | L10: 0.8404294605 | M10: =[1]!AgePb76(L10) -> 4991.843962 | N10: 4992 | P10: 1990 | R10: 1991 | S10: 4993 | T10: 22 | U10: 226.9545455
A11: 13 | B11: Sep | C11: 1986 | D11: 18.4138 | E11: 0.0008 | F11: 15.4726 | G11: 0.0007 | H11: 38.074 | I11: 0.002 | J11: 0.70359 | K11: 8e-06 | L11: 0.8402719699 | M11: =[1]!AgePb76(L11) -> 4991.577872 | N11: 4992 | P11: 1991 | R11: 1992 | S11: 4992 | T11: 21 | U11: 237.7142857
A12: 16 | B12: Mar | C12: 1987 | D12: 18.4108 | E12: 0.0006 | F12: 15.4717 | G12: 0.0005 | H12: 38.069 | I12: 0.0014 | J12: 0.703589 | K12: 9e-06 | L12: 0.8403600061 | M12: =[1]!AgePb76(L12) -> 4991.726621 | N12: 4992 | P12: 1992 | R12: 1993 | S12: 4992 | T12: 20 | U12: 249.6
A13: 18 | B13: Oct | C13: 1987 | D13: 18.3992 | E13: 0.0008 | F13: 15.4746 | G13: 0.0008 | H13: 38.068 | I13: 0.0022 | J13: 0.703597 | K13: 9e-06 | L13: 0.8410474368 | M13: =[1]!AgePb76(L13) -> 4992.887557 | N13: 4993 | P13: 1993 | R13: 1994 | S13: 4992 | T13: 19 | U13: 262.7368421
A14: 19 | B14: Jan | C14: 1988 | D14: 18.3952 | E14: 0.0006 | F14: 15.4715 | G14: 0.0006 | H14: 38.061 | I14: 0.0016 | J14: 0.703577 | K14: 8e-06 | L14: 0.8410617987 | M14: =[1]!AgePb76(L14) -> 4992.911801 | N14: 4993 | P14: 1994 | R14: 1995 | S14: 4992 | T14: 18 | U14: 277.3333333
A15: 18 | B15: Aug | C15: 1988 | D15: 18.3871 | E15: 0.0008 | F15: 15.4703 | G15: 0.0007 | H15: 38.052 | I15: 0.0017 | J15: 0.703583 | K15: 9e-06 | L15: 0.8413670454 | M15: =[1]!AgePb76(L15) -> 4993.42697 | N15: 4993 | P15: 1995 | R15: 1996 | S15: 4992 | T15: 17 | U15: 293.6470588
A16: 26 | B16: Mar | C16: 1989 | D16: 18.3882 | E16: 0.0007 | F16: 15.4717 | G16: 0.0007 | H16: 38.055 | I16: 0.0019 | J16: 0.703584 | K16: 9e-06 | L16: 0.8413928498 | M16: =[1]!AgePb76(L16) -> 4993.470511 | N16: 4993 | P16: 1996 | R16: 1997 | S16: 4993 | T16: 16 | U16: 312.0625
A17: 7 | B17: Jul | C17: 1989 | D17: 18.3861 | E17: 0.001 | F17: 15.4725 | G17: 0.0009 | H17: 38.054 | I17: 0.0022 | J17: 0.703581 | K17: 9e-06 | L17: 0.841532462 | M17: =[1]!AgePb76(L17) -> 4993.706063 | N17: 4994 | P17: 1997 | R17: 1998 | S17: 4993 | T17: 15 | U17: 332.8666667
A18: 7 | B18: Jul | C18: 1989 | D18: 18.3851 | E18: 0.0009 | F18: 15.471 | G18: 0.0008 | H18: 38.052 | I18: 0.0021 | J18: 0.703576 | K18: 9e-06 | L18: 0.8414966467 | M18: =[1]!AgePb76(L18) -> 4993.64564 | N18: 4994 | P18: 1998 | R18: 1999 | S18: 4993 | T18: 14 | U18: 356.6428571
A19: 7 | B19: Jan | C19: 1990 | D19: 18.3881 | E19: 0.0009 | F19: 15.4745 | G19: 0.0008 | H19: 38.056 | I19: 0.0018 | J19: 0.703584 | K19: 8e-06 | L19: 0.8415496979 | M19: =[1]!AgePb76(L19) -> 4993.735141 | N19: 4994 | P19: 1999 | R19: 2000 | S19: 4992 | T19: 13 | U19: 384
A20: 27 | B20: May | C20: 1990 | D20: 18.3864 | E20: 0.0008 | F20: 15.4716 | G20: 0.0007 | H20: 38.054 | I20: 0.002 | J20: 0.703603 | K20: 7e-06 | L20: 0.841469782 | M20: =[1]!AgePb76(L20) -> 4993.600316 | N20: 4994 | P20: 2000 | R20: 2001 | S20: 4992 | T20: 12 | U20: 416
A21: 21 | B21: Oct | C21: 1990 | D21: 18.3856 | E21: 0.0007 | F21: 15.4693 | G21: 0.0006 | H21: 38.049 | I21: 0.0017 | J21: 0.703597 | K21: 8e-06 | L21: 0.8413812984 | M21: =[1]!AgePb76(L21) -> 4993.45102 | N21: 4993 | P21: 2001 | R21: 2002 | S21: 4991 | T21: 11 | U21: 453.7272727
A22: 12 | B22: May | C22: 1991 | D22: 18.3992 | E22: 0.0009 | F22: 15.4739 | G22: 0.0007 | H22: 38.063 | I22: 0.0019 | J22: 0.703581 | K22: 8e-06 | L22: 0.8410093917 | M22: =[1]!AgePb76(L22) -> 4992.823333 | N22: 4993 | P22: 2002 | R22: 2003 | S22: 4991 | T22: 10 | U22: 499.1
A23: 6 | B23: Jun | C23: 1992 | D23: 18.4048 | E23: 0.0009 | F23: 15.4721 | G23: 0.0009 | H23: 38.061 | I23: 0.0019 | J23: 0.703585 | K23: 8e-06 | L23: 0.8406556985 | M23: =[1]!AgePb76(L23) -> 4992.226111 | N23: 4992 | P23: 2003 | R23: 2004 | S23: 4991 | T23: 9 | U23: 554.5555556
A24: 13 | B24: Aug | C24: 1993 | D24: 18.4112 | E24: 0.0007 | F24: 15.4752 | G24: 0.0006 | H24: 38.072 | I24: 0.0015 | J24: 0.703611 | K24: 8e-06 | L24: 0.8405318502 | M24: =[1]!AgePb76(L24) -> 4992.016927 | N24: 4992 | P24: 2004 | R24: 2005 | S24: 4991 | T24: 8 | U24: 623.875
A25: 4 | B25: Jan | C25: 1994 | D25: 18.4098 | E25: 0.0009 | F25: 15.4736 | G25: 0.0008 | H25: 38.067 | I25: 0.002 | J25: 0.703607 | K25: 8e-06 | L25: 0.8405088594 | M25: =[1]!AgePb76(L25) -> 4991.978091 | N25: 4992 | P25: 2005 | R25: 2006 | S25: 4992 | T25: 7 | U25: 713.1428571
A26: 25 | B26: Apr | C26: 1994 | D26: 18.41 | E26: 0.0009 | F26: 15.4737 | G26: 0.0009 | H26: 38.068 | I26: 0.0027 | J26: 0.703586 | K26: 8e-06 | L26: 0.8405051602 | M26: =[1]!AgePb76(L26) -> 4991.971842 | N26: 4992 | P26: 2006 | R26: 2007 | S26: 4992 | T26: 6 | U26: 832
A27: 9 | B27: Oct | C27: 1994 | D27: 18.4059 | E27: 0.0008 | F27: 15.4718 | G27: 0.0007 | H27: 38.066 | I27: 0.0019 | J27: 0.703598 | K27: 7e-06 | L27: 0.8405891589 | M27: =[1]!AgePb76(L27) -> 4992.113728 | N27: 4992 | P27: 2007 | R27: 2008 | S27: 4992 | T27: 5 | U27: 998.4
A28: 27 | B28: Apr | C28: 1995 | D28: 18.4059 | E28: 0.0009 | F28: 15.4721 | G28: 0.0008 | H28: 38.066 | I28: 0.0023 | J28: 0.703604 | K28: 9e-06 | L28: 0.840605458 | M28: =[1]!AgePb76(L28) -> 4992.141257 | N28: 4992 | P28: 2008 | R28: 2009 | S28: 4992 | T28: 4 | U28: 1248
A29: 14 | B29: Oct | C29: 1995 | D29: 18.4068 | E29: 0.0008 | F29: 15.4729 | G29: 0.0008 | H29: 38.071 | I29: 0.0021 | J29: 0.703602 | K29: 9e-06 | L29: 0.8406078188 | M29: =[1]!AgePb76(L29) -> 4992.145245 | N29: 4992 | P29: 2009 | R29: 2010 | S29: 4993 | T29: 3 | U29: 1664.333333
A30: 15 | B30: Mar | C30: 1996 | D30: 18.4064 | E30: 0.001 | F30: 15.4738 | G30: 0.0008 | H30: 38.07 | I30: 0.0023 | J30: 0.703592 | K30: 9e-06 | L30: 0.8406749826 | M30: =[1]!AgePb76(L30) -> 4992.25868 | N30: 4992 | P30: 2010 | R30: Average | S30: =AVERAGE(S2:S29) -> 4991.678571
A31: 22 | B31: Aug | C31: 1996 | D31: 18.4038 | E31: 0.0009 | F31: 15.4722 | G31: 0.0008 | H31: 38.065 | I31: 0.0016 | J31: 0.703612 | K31: 7e-06 | L31: 0.8407068105 | M31: =[1]!AgePb76(L31) -> 4992.312432 | N31: 4992 | R31: Maximum | S31: =MAX(S2:S30) -> 4994
A32: 10 | B32: Jan | C32: 1997 | D32: 18.401 | E32: 0.0012 | F32: 15.4728 | G32: 0.0011 | H32: 38.064 | I32: 0.0019 | J32: 0.703606 | K32: 9e-06 | L32: 0.8408673442 | M32: =[1]!AgePb76(L32) -> 4992.583513 | N32: 4993 | R32: Minimum | S32: =MIN(S2:S31) -> 4984
A33: 23 | B33: Jul | C33: 1997 | D33: 18.3993 | E33: 0.001 | F33: 15.4729 | G33: 0.001 | H33: 38.068 | I33: 0.0025 | J33: 0.703601 | K33: 7e-06 | L33: 0.8409504709 | M33: =[1]!AgePb76(L33) -> 4992.723862 | N33: 4993
A34: 10 | B34: Jan | C34: 1998 | D34: 18.3958 | E34: 0.0007 | F34: 15.4728 | G34: 0.0006 | H34: 38.067 | I34: 0.0014 | J34: 0.703591 | K34: 8e-06 | L34: 0.8411050348 | M34: =[1]!AgePb76(L34) -> 4992.984783 | N34: 4993
A35: 10 | B35: Jan | C35: 1998 | D35: 18.394 | E35: 0.0007 | F35: 15.4711 | G35: 0.0006 | H35: 38.063 | I35: 0.0016 | J35: 0.703593 | K35: 7e-06 | L35: 0.8410949223 | M35: =[1]!AgePb76(L35) -> 4992.967713 | N35: 4993
A36: 11 | B36: May | C36: 1998 | D36: 18.4005 | E36: 0.0009 | F36: 15.474 | G36: 0.0008 | H36: 38.071 | I36: 0.002 | J36: 0.703605 | K36: 1e-05 | L36: 0.8409554088 | M36: =[1]!AgePb76(L36) -> 4992.732198 | N36: 4993
A37: 7 | B37: Sep | C37: 1998 | D37: 18.4082 | E37: 0.0008 | F37: 15.4775 | G37: 0.0006 | H37: 38.083 | I37: 0.0017 | J37: 0.703601 | K37: 6e-06 | L37: 0.8407937767 | M37: =[1]!AgePb76(L37) -> 4992.459292 | N37: 4992
A38: 7 | B38: Sep | C38: 1998 | D38: 18.4107 | E38: 0.0004 | F38: 15.4727 | G38: 0.0005 | H38: 38.075 | I38: 0.0012 | L38: 0.8404188868 | M38: =[1]!AgePb76(L38) -> 4991.826099 | N38: 4992
A39: 13 | B39: Feb | C39: 1999 | D39: 18.4068 | E39: 0.001 | F39: 15.4783 | G39: 0.0008 | H39: 38.085 | I39: 0.0021 | J39: 0.703607 | K39: 6e-06 | L39: 0.8409011887 | M39: =[1]!AgePb76(L39) -> 4992.640657 | N39: 4993
A40: 13 | B40: Feb | C40: 1999 | D40: 18.4124 | E40: 0.0004 | F40: 15.4736 | G40: 0.0004 | H40: 38.076 | I40: 0.0011 | L40: 0.8403901718 | M40: =[1]!AgePb76(L40) -> 4991.777586 | N40: 4992
A41: 19 | B41: Jun | C41: 1999 | D41: 18.3987 | E41: 0.001 | F41: 15.4805 | G41: 0.0007 | H41: 38.085 | I41: 0.002 | J41: 0.70362 | K41: 9e-06 | L41: 0.8413909678 | M41: =[1]!AgePb76(L41) -> 4993.467336 | N41: 4993
A42: 27 | B42: Oct | C42: 1999 | D42: 18.4018 | E42: 0.0004 | F42: 15.4726 | G42: 0.0004 | H42: 38.069 | I42: 0.0011 | J42: 0.703622 | K42: 9e-06 | L42: 0.8408199198 | M42: =[1]!AgePb76(L42) -> 4992.503437 | N42: 4993
A43: 19 | B43: Feb | C43: 2000 | D43: 18.4072 | E43: 0.0004 | F43: 15.4712 | G43: 0.0004 | H43: 38.072 | I43: 0.0011 | J43: 0.703624 | K43: 7e-06 | L43: 0.8404971967 | M43: =[1]!AgePb76(L43) -> 4991.95839 | N43: 4992
A44: 21 | B44: Jun | C44: 2000 | D44: 18.4067 | E44: 0.0004 | F44: 15.4704 | G44: 0.0004 | H44: 38.069 | I44: 0.0011 | J44: 0.703638 | K44: 7e-06 | L44: 0.8404765656 | M44: =[1]!AgePb76(L44) -> 4991.923538 | N44: 4992
A45: 8 | B45: Jan | C45: 2001 | D45: 18.4116 | E45: 0.0004 | F45: 15.4721 | G45: 0.0004 | H45: 38.074 | I45: 0.0011 | J45: 0.703627 | K45: 1.2e-05 | L45: 0.8403452171 | M45: =[1]!AgePb76(L45) -> 4991.701634 | N45: 4992
A46: 7 | B46: Jul | C46: 2001 | D46: 18.4137 | E46: 0.0004 | F46: 15.4719 | G46: 0.0004 | H46: 38.073 | I46: 0.0013 | J46: 0.703626 | K46: 9e-06 | L46: 0.8402385181 | M46: =[1]!AgePb76(L46) -> 4991.521347 | N46: 4992
A47: 9 | B47: Feb | C47: 2002 | D47: 18.4139 | E47: 0.0004 | F47: 15.4707 | G47: 0.0004 | H47: 38.069 | I47: 0.0011 | J47: 0.703637 | K47: 8e-06 | L47: 0.8401642238 | M47: =[1]!AgePb76(L47) -> 4991.395799 | N47: 4991
A48: 20 | B48: Aug | C48: 2002 | D48: 18.4152 | E48: 0.0004 | F48: 15.4722 | G48: 0.0004 | H48: 38.072 | I48: 0.0011 | J48: 0.703639 | K48: 5e-06 | L48: 0.8401863678 | M48: =[1]!AgePb76(L48) -> 4991.43322 | N48: 4991
A49: 12 | B49: Apr | C49: 2003 | D49: 18.4161 | E49: 0.0005 | F49: 15.4726 | G49: 0.0005 | H49: 38.072 | I49: 0.0013 | J49: 0.703641 | K49: 5e-06 | L49: 0.8401670278 | M49: =[1]!AgePb76(L49) -> 4991.400537 | N49: 4991
A50: 15 | B50: Jan | C50: 2004 | D50: 18.4154 | E50: 0.0005 | F50: 15.4719 | G50: 0.0005 | H50: 38.069 | I50: 0.0012 | J50: 0.703632 | K50: 7e-06 | L50: 0.8401609522 | M50: =[1]!AgePb76(L50) -> 4991.39027 | N50: 4991
A51: 7 | B51: Jun | C51: 2004 | D51: 18.4146 | E51: 0.0003 | F51: 15.4716 | G51: 0.0004 | H51: 38.068 | I51: 0.001 | J51: 0.703624 | K51: 7e-06 | L51: 0.8401811606 | M51: =[1]!AgePb76(L51) -> 4991.424421 | N51: 4991
A52: 31 | B52: Jan | C52: 2005 | D52: 18.417 | E52: 0.0005 | F52: 15.4735 | G52: 0.0006 | H52: 38.075 | I52: 0.0012 | J52: 0.703624 | K52: 5e-06 | L52: 0.8401748385 | M52: =[1]!AgePb76(L52) -> 4991.413737 | N52: 4991
A53: 8 | B53: Aug | C53: 2005 | D53: 18.4119 | E53: 0.0005 | F53: 15.4727 | G53: 0.0005 | H53: 38.07 | I53: 0.0013 | J53: 0.703622 | K53: 1e-05 | L53: 0.8403641123 | M53: =[1]!AgePb76(L53) -> 4991.733559 | N53: 4992
A54: 29 | B54: Jan | C54: 2006 | D54: 18.4087 | E54: 0.0004 | F54: 15.472 | G54: 0.0004 | H54: 38.065 | I54: 0.0012 | J54: 0.703623 | K54: 9e-06 | L54: 0.8404721681 | M54: =[1]!AgePb76(L54) -> 4991.91611 | N54: 4992
A55: 24 | B55: Jun | C55: 2006 | D55: 18.4062 | E55: 0.0028 | F55: 15.4724 | G55: 0.0026 | H55: 38.066 | I55: 0.0059 | J55: 0.703612 | K55: 8e-06 | L55: 0.840608056 | M55: =[1]!AgePb76(L55) -> 4992.145645 | N55: 4992
A56: 24 | B56: Jun | C56: 2006 | D56: 18.4073 | E56: 0.0016 | F56: 15.4714 | G56: 0.0018 | H56: 38.063 | I56: 0.006 | J56: 0.703617 | K56: 1.3e-05 | L56: 0.8405034959 | M56: =[1]!AgePb76(L56) -> 4991.969031 | N56: 4992
A57: 6 | B57: Apr | C57: 2007 | D57: 18.4065 | E57: 0.0003 | F57: 15.4715 | G57: 0.0003 | H57: 38.063 | I57: 0.0009 | J57: 0.703617 | K57: 7e-06 | L57: 0.8405454595 | M57: =[1]!AgePb76(L57) -> 4992.039915 | N57: 4992
A58: 17 | B58: Jun | C58: 2007 | D58: 18.4019 | E58: 0.0004 | F58: 15.4709 | G58: 0.0004 | H58: 38.062 | I58: 0.0012 | J58: 0.703626 | K58: 6e-06 | L58: 0.8407229688 | M58: =[1]!AgePb76(L58) -> 4992.33972 | N58: 4992
A59: 22 | B59: Mar | C59: 2008 | D59: 18.4038 | E59: 0.0003 | F59: 15.47 | G59: 0.0003 | H59: 38.061 | I59: 0.001 | J59: 0.703607 | K59: 8e-06 | L59: 0.84058727 | M59: =[1]!AgePb76(L59) -> 4992.110537 | N59: 4992
A60: 2 | B60: May | C60: 2008 | D60: 18.4045 | E60: 0.0003 | F60: 15.4721 | G60: 0.0004 | H60: 38.066 | I60: 0.001 | J60: 0.703609 | K60: 9e-06 | L60: 0.8406694015 | M60: =[1]!AgePb76(L60) -> 4992.249254 | N60: 4992
A61: 15 | B61: Nov | C61: 2008 | D61: 18.3972 | E61: 0.0009 | F61: 15.4704 | G61: 0.0007 | H61: 38.058 | I61: 0.0024 | J61: 0.7036 | K61: 8e-06 | L61: 0.8409105733 | M61: =[1]!AgePb76(L61) -> 4992.656502 | N61: 4993
A62: 29 | B62: Jan | C62: 2009 | D62: 18.4003 | E62: 0.0005 | F62: 15.4709 | G62: 0.0006 | H62: 38.061 | I62: 0.0012 | J62: 0.703628 | K62: 8e-06 | L62: 0.840796074 | M62: =[1]!AgePb76(L62) -> 4992.463171 | N62: 4992
A63: 7 | B63: May | C63: 2009 | D63: 18.4005 | E63: 0.0008 | F63: 15.4736 | G63: 0.0007 | H63: 38.066 | I63: 0.002 | J63: 0.703624 | K63: 1e-05 | L63: 0.8409336703 | M63: =[1]!AgePb76(L63) -> 4992.695497 | N63: 4993
A64: 4 | B64: Jun | C64: 2009 | D64: 18.4009 | E64: 0.0003 | F64: 15.472 | G64: 0.0004 | H64: 38.064 | I64: 0.001 | J64: 0.70361 | K64: 7e-06 | L64: 0.8408284377 | M64: =[1]!AgePb76(L64) -> 4992.51782 | N64: 4993
A65: 16 | B65: Oct | C65: 2009 | D65: 18.3994 | E65: 0.0005 | F65: 15.4714 | G65: 0.0006 | H65: 38.062 | I65: 0.0012 | J65: 0.703622 | K65: 7e-06 | L65: 0.840864376 | M65: =[1]!AgePb76(L65) -> 4992.578502 | N65: 4993
A66: 22 | B66: Jan | C66: 2010 | D66: 18.3987 | E66: 0.0005 | F66: 15.4708 | G66: 0.0005 | H66: 38.06 | I66: 0.0013 | J66: 0.703617 | K66: 7e-06 | L66: 0.8408637567 | M66: =[1]!AgePb76(L66) -> 4992.577456 | N66: 4993
L67: Average | M67: =AVERAGE(M3:M66) -> 4991.840333
L68: Maximum | M68: =MAX(M3:M67) -> 4993.735141
L69: Minimum | M69: =MIN(M3:M68) -> 4983.729911
A70: Eruption | B70: True Age | C70: Pb Age (Ma) | D70: Age Ratio 106 | L70: Difference | M70: =M68-M69 -> 10.00522946
A71: 1983 | B71: 30 | C71: 4984 | D71: 166.1333333 | L71: Accuracy | M71: =1-(M70/M67) -> 0.9979956832
B72: 30 | C72: 4984 | D72: 166.1333333
B73: 30 | C73: 4987 | D73: 166.2333333
A74: 1984 | B74: 29 | C74: 4988 | D74: 172
B75: 29 | C75: 4990 | D75: 172.0689655
A76: 1985 | B76: 28 | C76: 4990 | D76: 178.2142857
B77: 28 | C77: 4991 | D77: 178.25
A78: 1986 | B78: 27 | C78: 4992 | D78: 184.8888889
B79: 27 | C79: 4992 | D79: 184.8888889
A80: 1987 | B80: 26 | C80: 4992 | D80: 192
B81: 26 | C81: 4993 | D81: 192.0384615
A82: 1988 | B82: 25 | C82: 4993 | D82: 199.72
B83: 25 | C83: 4993 | D83: 199.72
A84: 1989 | B84: 24 | C84: 4993 | D84: 208.0416667
B85: 24 | C85: 4994 | D85: 208.0833333
B86: 24 | C86: 4994 | D86: 208.0833333
A87: 1990 | B87: 23 | C87: 4994 | D87: 217.1304348
B88: 23 | C88: 4994 | D88: 217.1304348
B89: 23 | C89: 4993 | D89: 217.0869565
A90: 1991 | B90: 22 | C90: 4993 | D90: 226.9545455
A91: 1992 | B91: 21 | C91: 4992 | D91: 237.7142857
A92: 1993 | B92: 20 | C92: 4992 | D92: 249.6
A93: 1994 | B93: 19 | C93: 4992 | D93: 262.7368421
B94: 19 | C94: 4992 | D94: 262.7368421
B95: 19 | C95: 4992 | D95: 262.7368421
A96: 1995 | B96: 18 | C96: 4992 | D96: 277.3333333
B97: 18 | C97: 4992 | D97: 277.3333333
A98: 1996 | B98: 17 | C98: 4992 | D98: 293.6470588
B99: 17 | C99: 4992 | D99: 293.6470588
A100: 1997 | B100: 16 | C100: 4993 | D100: 312.0625
B101: 16 | C101: 4993 | D101: 312.0625
A102: 1998 | B102: 15 | C102: 4993 | D102: 332.8666667
B103: 15 | C103: 4993 | D103: 332.8666667
B104: 15 | C104: 4993 | D104: 332.8666667
B105: 15 | C105: 4992 | D105: 332.8
B106: 15 | C106: 4992 | D106: 332.8
A107: 1999 | B107: 14 | C107: 4993 | D107: 356.6428571
B108: 14 | C108: 4992 | D108: 356.5714286
B109: 14 | C109: 4993 | D109: 356.6428571
B110: 14 | C110: 4993 | D110: 356.6428571
A111: 2000 | B111: 13 | C111: 4992 | D111: 384
B112: 13 | C112: 4992 | D112: 384
A113: 2001 | B113: 12 | C113: 4992 | D113: 416
B114: 12 | C114: 4992 | D114: 416
A115: 2002 | B115: 11 | C115: 4991 | D115: 453.7272727
B116: 11 | C116: 4991 | D116: 453.7272727
A117: 2003 | B117: 10 | C117: 4991 | D117: 499.1
A118: 2004 | B118: 9 | C118: 4991 | D118: 554.5555556
B119: 9 | C119: 4991 | D119: 554.5555556
A120: 2005 | B120: 8 | C120: 4991 | D120: 623.875
B121: 8 | C121: 4992 | D121: 624
A122: 2006 | B122: 7 | C122: 4992 | D122: 713.1428571
B123: 7 | C123: 4992 | D123: 713.1428571
B124: 7 | C124: 4992 | D124: 713.1428571
A125: 2007 | B125: 6 | C125: 4992 | D125: 832
B126: 6 | C126: 4992 | D126: 832
A127: 2008 | B127: 5 | C127: 4992 | D127: 998.4
B128: 5 | C128: 4992 | D128: 998.4
B129: 5 | C129: 4993 | D129: 998.6
A130: 2009 | B130: 4 | C130: 4992 | D130: 1248
B131: 4 | C131: 4993 | D131: 1248.25
B132: 4 | C132: 4993 | D132: 1248.25
B133: 4 | C133: 4993 | D133: 1248.25
A134: 2010 | B134: 3 | C134: 4993 | D134: 1664.333333
D135: =COUNT(D71:D134) -> 64

Sheet H04
A1: Table 5 | B1: Kilauea
A2: Sample | B2: 206Pb/204Pb | C2: 207Pb/204Pb | D2: 208Pb/204Pb | E2: 87Sr/86Sr | F2: Error | G2: 143Nd/144Nd | H2: eNd | I2: 207Pb/206Pb | J2: Pb/Pb Age | K2: Pb/Pb Age
A3: 1998-09-07 | B3: 18.4107 | C3: 15.4727 | D3: 38.0752 | E3: 0.703601 | F3: 6 | G3: 0.512956 | H3: 6.21 | I3: =(C3/B3) -> 0.8404188868 | J3: =[1]!AgePb76(I3) -> 4991.826099 | K3: 4991.826099 | M3: 1998 | N3: 7 | O3: Sep
A4: 1999-02-13 | B4: 18.4124 | C4: 15.4736 | D4: 38.0764 | E4: 0.703616 | F4: 6 | G4: 0.512944 | H4: 5.97 | I4: =(C4/B4) -> 0.8403901718 | J4: =[1]!AgePb76(I4) -> 4991.777586 | K4: 4991.777586 | M4: 1999 | N4: 13 | O4: Feb
A5: 1999-10-27 | B5: 18.4018 | C5: 15.4726 | D5: 38.0687 | E5: 0.703622 | F5: 9 | G5: 0.512948 | H5: 6.04 | I5: 0.8408199198 | J5: =[1]!AgePb76(I5) -> 4992.503437 | K5: 4992.503437 | M5: 1999 | N5: 27 | O5: Oct
A6: 2000-02-19 | B6: 18.4072 | C6: 15.4712 | D6: 38.072 | E6: 0.703634 | F6: 7 | G6: 0.512944 | H6: 5.97 | I6: 0.8404971967 | J6: =[1]!AgePb76(I6) -> 4991.95839 | K6: 4991.95839 | M6: 2000 | N6: 19 | O6: Feb
A7: 2000-06-21 | B7: 18.4067 | C7: 15.4704 | D7: 38.0688 | E7: 0.703644 | F7: 7 | G7: 0.512947 | H7: 6.04 | I7: 0.8404765656 | J7: =[1]!AgePb76(I7) -> 4991.923538 | K7: 4991.923538 | M7: 2000 | N7: 21 | O7: Jun
A8: 2001-01-08 | B8: 18.4116 | C8: 15.4721 | D8: 38.0737 | E8: 0.703639 | F8: 12 | G8: 0.512946 | H8: 6.01 | I8: 0.8403452171 | J8: =[1]!AgePb76(I8) -> 4991.701634 | K8: 4991.701634 | M8: 2001 | N8: 8 | O8: Jan
A9: 2001-07-07 | B9: 18.4137 | C9: 15.4719 | D9: 38.0729 | E9: 0.703626 | F9: 9 | G9: 0.512943 | H9: 5.95 | I9: 0.8402385181 | J9: =[1]!AgePb76(I9) -> 4991.521347 | K9: 4991.521347 | M9: 2001 | N9: 7 | O9: Jul
A10: 2002-02-09 | B10: 18.4139 | C10: 15.4707 | D10: 38.0691 | E10: 0.703637 | F10: 8 | G10: 0.51294 | H10: 5.89 | I10: 0.8401642238 | J10: =[1]!AgePb76(I10) -> 4991.395799 | K10: 4991.395799 | M10: 2002 | N10: 9 | O10: Feb
A11: 2002-08-20 | B11: 18.4152 | C11: 15.4722 | D11: 38.0719 | E11: 0.703639 | F11: 5 | G11: 0.512945 | H11: 5.98 | I11: 0.8401863678 | J11: =[1]!AgePb76(I11) -> 4991.43322 | K11: 4991.43322 | M11: 2002 | N11: 20 | O11: Aug
A12: 2003-04-12 | B12: 18.4161 | C12: 15.4726 | D12: 38.0715 | E12: 0.703641 | F12: 5 | G12: 0.512953 | H12: 6.14 | I12: 0.8401670278 | J12: =[1]!AgePb76(I12) -> 4991.400537 | K12: 4991.400537 | M12: 2003 | N12: 12 | O12: Apr
A13: 2004-01-15 | B13: 18.4154 | C13: 15.4719 | D13: 38.0694 | E13: 0.703632 | F13: 7 | G13: 0.512946 | H13: 6.01 | I13: 0.8401609522 | J13: =[1]!AgePb76(I13) -> 4991.39027 | K13: 4991.39027 | M13: 2004 | N13: 15 | O13: Jan
A14: 2004-06-07 | B14: 18.4146 | C14: 15.4716 | D14: 38.068 | E14: 0.703623 | F14: 7 | G14: 0.512943 | H14: 5.95 | I14: 0.8401811606 | J14: =[1]!AgePb76(I14) -> 4991.424421 | K14: 4991.424421 | M14: 2004 | N14: 7 | O14: Jun
A15: 2005-01-31 | B15: 18.417 | C15: 15.4735 | D15: 38.0752 | E15: 0.703624 | F15: 5 | G15: 0.512955 | H15: 6.19 | I15: 0.8401748385 | J15: =[1]!AgePb76(I15) -> 4991.413737 | K15: 4991.413737 | M15: 2005 | N15: 31 | O15: Jan
A16: 2005-08-08 | B16: 18.4119 | C16: 15.4727 | D16: 38.0699 | E16: 0.703622 | F16: 10 | G16: 0.512953 | H16: 6.14 | I16: 0.8403641123 | J16: =[1]!AgePb76(I16) -> 4991.733559 | K16: 4991.733559 | M16: 2005 | N16: 8 | O16: Aug
A17: Hawaiian | B17: rock | C17: standard | D17: (Kilauea | E17: volcano)
A18: Kil1919 | B18: 18.6562 | C18: 15.4903 | D18: 38.2092 | E18: 0.703477 | G18: 0.512973 | H18: 6.53 | I18: 0.8303030628 | J18: =[1]!AgePb76(I18) -> 4974.626102 | K18: 4974.626102
A24: Eruption Year | B24: Pb/Pb Age | C24: True Age | D24: Error Ratio | E24: Year Dated
A25: 1998 | B25: 4992 | C25: =2008-A25 -> 10 | D25: =B25 /C25 -> 499.2 | E25: 2008
A26: 1999 | B26: 4992 | C26: =2008-A26 -> 9 | D26: =B26 /C26 -> 554.6666667 | E26: 2008
A27: 1999 | B27: 4993 | C27: 9 | D27: 554.7777778 | E27: 2008
A28: 2000 | B28: 4992 | C28: 8 | D28: 624 | E28: 2008
A29: 2000 | B29: 4992 | C29: 8 | D29: 624 | E29: 2008
A30: 2001 | B30: 4992 | C30: 7 | D30: 713.1428571 | E30: 2008
A31: 2001 | B31: 4992 | C31: 7 | D31: 713.1428571 | E31: 2008
A32: 2002 | B32: 4991 | C32: 6 | D32: 831.8333333 | E32: 2008
A33: 2002 | B33: 4991 | C33: 6 | D33: 831.8333333 | E33: 2008
A34: 2003 | B34: 4991 | C34: 5 | D34: 998.2 | E34: 2008
A35: 2004 | B35: 4991 | C35: 4 | D35: 1247.75 | E35: 2008
A36: 2004 | B36: 4991 | C36: 4 | D36: 1247.75 | E36: 2008
A37: 2005 | B37: 4991 | C37: 3 | D37: 1663.666667 | E37: 2008
A38: 2005 | B38: 4992 | C38: 3 | D38: 1664 | E38: 2008
A39: Average | B39: =AVERAGE(B25:B38) -> 4991.642857
A40: Maximum | B40: =MAX(B25:B39) -> 4993
A41: Minimum | B41: =MIN(B25:B40) -> 4991
A42: Difference | B42: =B40-B41 -> 2
A43: Accuracy | B43: =1-(B42/B39) -> 0.9995993303

Sheet H05
A1: Table 4 | B1: Anatahan
A2: 206Pb/204Pb | B2: 18.779 | C2: 18.79 | D2: 18.792 | E2: 18.795 | F2: 18.795 | G2: 18.805 | H2: 18.8 | I2: 18.769 | J2: 18.77 | K2: 18.797 | L2: 18.801 | M2: 18.796 | N2: 18.795 | O2: 18.795 | P2: 18.789 | Q2: 18.792 | R2: 18.795
A3: 207Pb/204Pb | B3: 15.564 | C3: 15.564 | D3: 15.557 | E3: 15.564 | F3: 15.565 | G3: 15.566 | H3: 15.568 | I3: 15.563 | J3: 15.562 | K3: 15.566 | L3: 15.569 | M3: 15.564 | N3: 15.565 | O3: 15.563 | P3: 15.559 | Q3: 15.559 | R3: 15.564
A4: 207Pb/206Pb | B4: =(B3/B2) -> 0.8287981256 | C4: =(C3/C2) -> 0.8283129324 | D4: 0.8278522776 | E4: 0.8280925778 | F4: 0.8281457835 | G4: 0.8277585748 | H4: 0.8280851064 | I4: 0.8291864244 | J4: 0.8290889718 | K4: 0.8281108688 | L4: 0.8280942503 | M4: 0.828048521 | N4: 0.8281457835 | O4: 0.8280393722 | P4: 0.8280909043 | Q4: 0.8279587058 | R4: 0.8280925778
A5: Pb/Pb Age | B5: =[1]!AgePb76(B4) -> 4972.04823 | C5: =[1]!AgePb76(C4) -> 4971.216062 | D5: =[1]!AgePb76(D4) -> 4970.4255 | E5: =[1]!AgePb76(E4) -> 4970.837954 | F5: =[1]!AgePb76(F4) -> 4970.92926 | G5: =[1]!AgePb76(G4) -> 4970.264632 | H5: =[1]!AgePb76(H4) -> 4970.825132 | I5: =[1]!AgePb76(I4) -> 4972.71384 | J5: =[1]!AgePb76(J4) -> 4972.546821 | K5: =[1]!AgePb76(K4) -> 4970.869344 | L5: =[1]!AgePb76(L4) -> 4970.840824 | M5: =[1]!AgePb76(M4) -> 4970.762344 | N5: =[1]!AgePb76(N4) -> 4970.92926 | O5: =[1]!AgePb76(O4) -> 4970.746642 | P5: =[1]!AgePb76(P4) -> 4970.835082 | Q5: =[1]!AgePb76(Q4) -> 4970.60819 | R5: =[1]!AgePb76(R4) -> 4970.837954
A6: Pb/Pb Age | B6: 4972.04823 | C6: 4971.216062 | D6: 4970.4255 | E6: 4970.837954 | F6: 4970.92926 | G6: 4970.264632 | H6: 4970.825132 | I6: 4972.71384 | J6: 4972.546821 | K6: 4970.869344 | L6: 4970.840824 | M6: 4970.762344 | N6: 4970.92926 | O6: 4970.746642 | P6: 4970.835082 | Q6: 4970.60819 | R6: 4970.837954
A7: Error Level | B7: =B6/2 -> 2486.024115 | C7: =C6/2 -> 2485.608031 | D7: 2485.21275 | E7: 2485.418977 | F7: 2485.46463 | G7: 2485.132316 | H7: 2485.412566 | I7: 2486.35692 | J7: 2486.27341 | K7: 2485.434672 | L7: 2485.420412 | M7: 2485.381172 | N7: 2485.46463 | O7: 2485.373321 | P7: 2485.417541 | Q7: 2485.304095 | R7: 2485.418977 | S7: =COUNT(B7:R7) -> 17
A9: Table 5 | P9: Pb Age (Ma) | Q9: Pb Age (Ma) | R9: Pb Age (Ma)
A10: 206Pb/204Pb | B10: 18.802 | C10: 18.81 | D10: 18.808 | E10: 18.803 | P10: 4975 | Q10: 4971 | R10: 4971
A11: 207Pb/204Pb | B11: 15.561 | C11: 15.571 | D11: 15.565 | E11: 15.564 | P11: 4973 | Q11: 4971 | R11: 4971
A12: 207Pb/206Pb | B12: =(B11/B10) -> 0.8276247208 | C12: 0.8278043594 | D12: 0.827573373 | E12: 0.8277402542 | P12: 4973 | Q12: 4971 | R12: 4970
A13: Pb/Pb Age | B13: =[1]!AgePb76(B12) -> 4970.034801 | C13: =[1]!AgePb76(C12) -> 4970.343237 | D13: =[1]!AgePb76(D12) -> 4969.946625 | E13: =[1]!AgePb76(E12) -> 4970.233178 | P13: 4972 | Q13: 4971 | R13: 4970
A14: Pb/Pb Age | B14: 4970.034801 | C14: 4970.343237 | D14: 4969.946625 | E14: 4970.233178 | K14: Table 4 | L14: Table 5 | M14: Table 7 | P14: 4971 | Q14: 4971 | R14: 4970
A15: Error Level | B15: =B14/2 -> 2485.0174 | C15: =C14/2 -> 2485.171618 | D15: =D14/2 -> 2484.973312 | E15: =E14/2 -> 2485.116589 | K15: 4972 | L15: 4970 | M15: 4975 | P15: 4971 | Q15: 4971 | R15: 4970
K16: 4971 | L16: 4970 | M16: 4969 | P16: 4971 | Q16: 4971 | R16: 4970
A17: Table 7 | K17: 4970 | L17: 4970
A18: 206Pb/204Pb | B18: 18.7 | C18: 18.92 | K18: 4971 | L18: 4970
A19: 207Pb/204Pb | B19: 15.53 | C19: 15.65 | K19: 4971
A20: 207Pb/206Pb | B20: =(B19/B18) -> 0.8304812834 | C20: 0.827167019 | K20: 4970
A21: Pb/Pb Age | B21: =[1]!AgePb76(B20) -> 4974.931055 | C21: =[1]!AgePb76(C20) -> 4969.248614 | K21: 4971
A22: Pb/Pb Age | B22: 4974.931055 | C22: 4969.248614 | K22: 4973
A23: Error Level | B23: =B22/2 -> 2487.465527 | C23: =C22/2 -> 2484.624307 | K23: 4973
K24: 4971
K25: 4971
K26: 4971
A27: True Age | B27: Pb Age (Ma) | K27: 4971
A28: 1 | B28: 4972 | K28: 4971
A29: 1 | B29: 4971 | K29: 4971
A30: 1 | B30: 4970 | K30: 4971
A31: 1 | B31: 4971 | K31: 4971
A32: 1 | B32: 4971 | J32: Average | K32: =AVERAGE(K14:K31) -> 4971.176471 | L32: =AVERAGE(L14:L31) -> 4970 | M32: =AVERAGE(M14:M31) -> 4972
A33: 1 | B33: 4970 | J33: Maximum | K33: =MAX(K14:K32) -> 4973 | L33: =MAX(L14:L32) -> 4970 | M33: =MAX(M14:M32) -> 4975
A34: 1 | B34: 4971 | J34: Minimum | K34: =MIN(K14:K33) -> 4970 | L34: =MIN(L14:L33) -> 4970 | M34: =MIN(M14:M33) -> 4969
A35: 1 | B35: 4973 | J35: Difference | K35: =K33-K34 -> 3 | L35: =L33-L34 -> 0 | M35: =M33-M34 -> 6
A36: 1 | B36: 4973 | J36: Accuracy | K36: =1-(K35/K32) -> 0.9993965211 | L36: =1-(L35/L32) -> 1 | M36: =1-(M35/M32) -> 0.9987932422 | N36: =AVERAGE(K36:M36) -> 0.9993965878
A37: 1 | B37: 4971
A38: 1 | B38: 4971
A39: 1 | B39: 4971
A40: 1 | B40: 4971
A41: 1 | B41: 4971
A42: 1 | B42: 4971
A43: 1 | B43: 4971
A44: 1 | B44: 4971
A45: 1 | B45: 4970
A46: 1 | B46: 4970
A47: 1 | B47: 4970
A48: 1 | B48: 4970
A49: 1 | B49: 4975
A50: 1 | B50: 4969

Sheet H06
A1: http://pubs.usgs.gov/pinatubo/bernard/index.html | B1: Pinatubo
A2: http://pubs.usgs.gov/pinatubo/bernard/table9.html
A3: 5 billion year age for 1991 Mount Pinatubo volcanic eruption | B3: 206Pb/204Pb | C3: Error | D3: 207Pb/204Pb | E3: Error | F3: 208Pb/204Pb | G3: Error | H3: Pb/Pb Age | I3: 207Pb/206Pb | J3: Pb/Pb Age
B4: 18.43 | C4: 13 | D4: 15.598 | E4: 14 | F4: 38.623 | G4: 39 | H4: =[1]!AgePb76(I4) -> 5001.787841 | I4: =(D4/B4) -> 0.8463374932 | J4: 5001.787841 | K4: =J4/8 -> 625.2234801
B5: 18.44 | C5: 16 | D5: 15.608 | E5: 20 | F5: 38.628 | G5: 45 | H5: =[1]!AgePb76(I5) -> 5001.927568 | I5: =(D5/B5) -> 0.8464208243 | J5: 5001.927568 | K5: =J5/8 -> 625.240946
B6: 18.426 | C6: 14 | D6: 15.584 | E6: 15 | F6: 38.586 | G6: 42 | H6: =[1]!AgePb76(I6) -> 5000.821501 | I6: 0.8457614241 | J6: 5000.821501 | K6: 625.1026877
B7: 18.435 | C7: 15 | D7: 15.594 | E7: 17 | F7: 38.612 | G7: 42 | H7: =[1]!AgePb76(I7) -> 5001.038869 | I7: 0.8458909683 | J7: 5001.038869 | K7: 625.1298586
B8: 18.482 | C8: 15 | D8: 15.621 | E8: 14 | F8: 38.719 | G8: 39 | H8: =[1]!AgePb76(I8) -> 4999.880292 | I8: 0.8452007359 | J8: 4999.880292 | K8: 624.9850365
A10: http://pubs.usgs.gov/pinatubo/castillo/index.html
A11: 5 billion year age for 1991 Mount Pinatubo volcanic eruption | B11: 206Pb/204Pb | C11: 18.243 | D11: 18.443 | E11: 18.433 | F11: 18.417 | G11: 18.412
B12: 207Pb/204Pb | C12: 15.517 | D12: 15.603 | E12: 15.584 | F12: 15.583 | G12: 15.576
B13: Pb/Pb Age | C13: =[1]!AgePb76(C14) -> 5008.871103 | D13: =[1]!AgePb76(D14) -> 5001.241983 | E13: =[1]!AgePb76(E14) -> 5000.282426 | F13: =[1]!AgePb76(F14) -> 5001.423809 | G13: =[1]!AgePb76(G14) -> 5001.171495
B14: 207Pb/206Pb | C14: =(C12/C11) -> 0.8505728225 | D14: =(D12/D11) -> 0.8460120371 | E14: 0.845440243 | F14: 0.8461204322 | G14: 0.8459700196
B15: Pb/Pb Age | C15: 5008.871103 | D15: 5001.241983 | E15: 5000.282426 | F15: 5001.423809 | G15: 5001.171495
C16: =C15/8 -> 626.1088878 | D16: =D15/8 -> 625.1552479 | E16: 625.0353033 | F16: 625.1779761 | G16: 625.1464369
A17: Download Isoplot Version 4.15
A18: http://www.bgc.org/isoplot_etc/isoplot/Isoplot4_15files.zip
B22: Bernard | C22: Castillo
B23: Pb Age (Ma) | C23: Pb Age (Ma) | E23: Eruption | F23: True Age | G23: Pb Age (Ma) | H23: Age Ratio 106
B24: 5002 | C24: 5009 | E24: 1991 | F24: 8 | G24: 5002 | H24: =G24/F24 -> 625.25
B25: 5002 | C25: 5001 | E25: 1991 | F25: 8 | G25: 5002 | H25: =G25/F25 -> 625.25
B26: 5001 | C26: 5000 | E26: 1991 | F26: 8 | G26: 5001 | H26: 625.125
B27: 5001 | C27: 5001 | E27: 1991 | F27: 8 | G27: 5001 | H27: 625.125
B28: 5000 | C28: 5001 | E28: 1991 | F28: 8 | G28: 5000 | H28: 625
A29: Average | B29: =AVERAGE(B24:B28) -> 5001.2 | C29: =AVERAGE(C24:C28) -> 5002.4 | E29: 1991 | F29: 8 | G29: 5009 | H29: 626.125
A30: Maximum | B30: =MAX(B24:B29) -> 5002 | C30: =MAX(C24:C29) -> 5009 | E30: 1991 | F30: 8 | G30: 5001 | H30: 625.125
A31: Minimum | B31: =MIN(B24:B30) -> 5000 | C31: =MIN(C24:C30) -> 5000 | E31: 1991 | F31: 8 | G31: 5000 | H31: 625
A32: Difference | B32: =B30-B31 -> 2 | C32: =C30-C31 -> 9 | E32: 1991 | F32: 8 | G32: 5001 | H32: 625.125
A33: Accuracy | B33: =1-(B32/B29) -> 0.999600096 | C33: =1-(C32/C29) -> 0.9982008636 | E33: 1991 | F33: 8 | G33: 5001 | H33: 625.125

Sheet H07
A1: Table 2 | D1: Tambora | E1: 1815 | N1: Thousand Years
A2: Type | B2: U(ppm) | C2: Th(ppm) | D2: (234U/238U) | E2: 2s | F2: (238U/232Th) | G2: 2s | H2: (230Th/232Th) | I2: 2s | J2: (230Th/238U) | K2: 2s | L2: 226Ra | M2: (226Ra/230Th) | N2: (230Th/238U)
A3: Sample | B3: T07
A4: wr | B4: 3.35 | C4: 11.11 | D4: 1.002 | E4: 0.003 | F4: 0.914 | G4: 0.008 | H4: 0.902 | I4: 0.001 | J4: 0.987 | K4: 0.001 | L4: 2079.8 | M4: 1.985 | N4: =[1]!Th230Age(J4, D4) -> 451.5752622
A5: bio | B5: 0.29 | C5: 1.03 | D5: 1.01 | E5: 0.005 | F5: 0.854 | G5: 0.004 | H5: 0.811 | I5: 0.001 | J5: 0.95 | K5: 0.001 | L5: 704 | M5: 8.036 | N5: =[1]!Th230Age(J5, D5) -> 301.8108101
A6: mt | B6: 0.77 | C6: 2.81 | D6: 1.007 | E6: 0.006 | F6: 0.83 | G6: 0.004 | H6: 0.829 | I6: 0.002 | J6: 1 | K6: 0.003 | L6: 366.7 | M6: 1.507 | N6: =[1]!Th230Age(J6, D6) -> 504.0383896
A7: pl | B7: 0.52 | C7: 2.03 | D7: 1.003 | E7: 0.004 | F7: 0.784 | G7: 0.003 | H7: 0.798 | I7: 0.002 | J7: 1.018 | K7: 0.002 | L7: 203.8 | M7: 1.204 | N7: .
A8: gm | B8: 3.58 | C8: 13.16 | D8: 1.008 | E8: 0.005 | F8: 0.824 | G8: 0.005 | H8: 0.722 | I8: 0.013 | J8: 0.876 | K8: 0.016 | L8: 1165.9 | M8: 1.173 | N8: =[1]!Th230Age(J8, D8) -> 219.6386911
A9: Sample | B9: T39 | N9: .
A10: wr | B10: 3.29 | C10: 11.6 | D10: 0.998 | E10: 0.003 | F10: 0.86 | G10: 0.002 | H10: 0.776 | I10: 0.001 | J10: 0.902 | K10: 0.001 | L10: 1202.8 | M10: 1.527 | N10: .
A11: bio | B11: 0.41 | C11: 1.66 | D11: 1.001 | E11: 0.006 | F11: 0.74 | G11: 0.007 | H11: 0.785 | I11: 0.003 | J11: 1.066 | K11: 0.004 | L11: 112.2 | M11: 0.963 | N11: =[1]!Th230Age(J11, D11) -> 0
A12: mt | B12: 0.81 | C12: 3.45 | D12: 1.06 | E12: 0.007 | F12: 0.712 | G12: 0.006 | H12: 0.816 | I12: 0.001 | J12: 1.145 | K12: 0.006 | L12: 306.6 | M12: 1.184 | N12: =[1]!Th230Age(J12, D12) -> 0
A13: pl | B13: 0.52 | C13: 1.44 | D13: 1 | E13: 0.003 | F13: 1.09 | G13: 0.012 | H13: 0.797 | I13: 0.002 | J13: 1.364 | K13: 0.002 | L13: 204.4 | M13: 0.569 | N13: =[1]!Th230Age(J13, D13) -> 0
A14: cpx | B14: 0.46 | C14: 2.01 | D14: 1.004 | E14: 0.003 | F14: 0.689 | G14: 0.001 | H14: 0.788 | I14: 0.002 | J14: 1.103 | K14: 0.004 | L14: n.d. | M14: n.d. | N14: =[1]!Th230Age(J14, D14) -> 0
A15: gm | B15: 3.56 | C15: 12.62 | D15: 0.993 | E15: 0.004 | F15: 0.855 | G15: 0.003 | H15: 0.788 | I15: 0.006 | J15: 0.875 | K15: 0.007 | L15: 1149.9 | M15: 1.547 | N15: =[1]!Th230Age(J15, D15) -> 233.1710277
A16: Sample | B16: T57/58 | N16: =[1]!Th230Age(J16, D16) -> 0
A17: wr | B17: 3.42 | C17: 12.36 | D17: 1.015 | E17: 0.028 | F17: 0.84 | G17: 0.006 | H17: 0.819 | I17: 0.002 | J17: 0.974 | K17: 0.006 | L17: 1219.1 | M17: 1.152 | N17: =[1]!Th230Age(J17, D17) -> 336.9133594
A18: bio | B18: 0.25 | C18: 0.97 | D18: 1.012 | E18: 0.024 | F18: 0.783 | G18: 0.004 | H18: 0.79 | I18: 0 | J18: 1.009 | K18: 0.005 | L18: n.d. | M18: n.d. | N18: =[1]!Th230Age(J18, D18) -> 528.6145435
A19: mt | B19: 0.67 | C19: 2.66 | D19: 1.005 | E19: 0.005 | F19: 0.758 | G19: 0.002 | H19: 0.8 | I19: 0 | J19: 1.055 | K19: 0.002 | L19: 315.4 | M19: 1.415 | N19: =[1]!Th230Age(J19, D19) -> 0
A20: pl | B20: 0.63 | C20: 2.43 | D20: 1.003 | E20: 0.006 | F20: 0.791 | G20: 0.001 | H20: 0.808 | I20: 0.003 | J20: 1.021 | K20: 0.004 | L20: 1294.8 | M20: 6.303 | N20: =[1]!Th230Age(J20, D20) -> 0
A21: cpx | B21: 0.45 | C21: 1.91 | D21: 1.006 | E21: 0.013 | F21: 0.714 | G21: 0.002 | H21: 1.014 | I21: 0.006 | J21: 1.42 | K21: 0.009 | L21: 1683.5 | M21: 8.318 | N21: =[1]!Th230Age(J21, D21) -> 0
A22: gm | B22: 3.7 | C22: 13.64 | D22: 0.996 | E22: 0.005 | F22: 0.823 | G22: 0.004 | H22: 0.721 | I22: 0.001 | J22: 0.875 | K22: 0.002 | L22: 1025.3 | M22: 0.997 | N22: =[1]!Th230Age(J22, D22) -> 230.0797414
A25: 1000 Years
A26: 230Th Age 103 | B26: Erupted | C26: Dated | D26: True Age | E26: Age Ratio
A27: 451.58 | B27: 1815 | C27: 2012 | D27: 203 | E27: =(A27 * 1000)/203 -> 2224.53202 | F27: =A27/1000 -> 0.45158
A28: 301.81 | B28: 1815 | C28: 2012 | D28: 203 | E28: =(A28 * 1000)/203 -> 1486.748768 | F28: =A28/1000 -> 0.30181
A29: 504.04 | B29: 1815 | C29: 2012 | D29: 203 | E29: 2482.955665 | F29: 0.50404
A30: 219.64 | B30: 1815 | C30: 2012 | D30: 203 | E30: 1081.970443 | F30: 0.21964
A31: 233.17 | B31: 1815 | C31: 2012 | D31: 203 | E31: 1148.62069 | F31: 0.23317
A32: 336.91 | B32: 1815 | C32: 2012 | D32: 203 | E32: 1659.655172 | F32: 0.33691
A33: 528.61 | B33: 1815 | C33: 2012 | D33: 203 | E33: 2603.990148 | F33: 0.52861
A34: 230.08 | B34: 1815 | C34: 2012 | D34: 203 | E34: 1133.399015 | F34: 0.23008

Sheet H08
A1: Table 1 | C1: Q'/P' | D1: X | E1: Y | H1: R'/Q' | I1: Thousand Years | L1: 230Th/238U Age | M1: Years | N1: Age Ratio
A2: Sample | B2: 226Ra | C2: 234U/238U | D2: 238U/232Th | E2: 230Th/232Th | F2: 230Th/238U | G2: 226Ra/230Th | H2: 230Th/234U | I2: 230Th/238U | L2: Ka | M2: Historic Age | O2: Erupted | P2: Dated
A3: K1000a | B3: 0.7037 | C3: 0.997 | D3: 1.482 | E3: 1.46 | F3: 0.985 | G3: 1.053 | H3: =F3/C3 -> 0.9879638917 | I3: =[1]!Th230Age(F3, C3) -> 491.915321 | L3: 491.915321 | M3: =P3-O3 -> 98 | N3: =(L3*1000)/M3 -> 5019.544091 | O3: 1912 | P3: 2010 | Q3: =L3/1000 -> 0.491915321
A4: K1079a | B4: n.d. | C4: 0.999 | D4: 1.479 | E4: 1.463 | F4: 0.989 | G4: 1.003 | H4: =F4/C4 -> 0.98998999 | I4: =[1]!Th230Age(F4, C4) -> 505.1164817 | L4: 505.1164817 | M4: =P4-O4 -> 98 | N4: =(L4*1000)/M4 -> 5154.249813 | O4: 1912 | P4: 2010 | Q4: =L4/1000 -> 0.5051164817
A5: K2466b | B5: 0.70358 | C5: 1.004 | D5: 1.386 | E5: 1.389 | F5: 1.002 | G5: 2.085 | H5: 0.9980079681 | I5: =[1]!Th230Age(F5, C5) -> 610.0534478 | L5: 610.0534478 | M5: 98 | N5: 6225.035182 | O5: 1912 | P5: 2010 | Q5: 0.6100534478
A6: K2488d | B6: n.d. | C6: 1.006 | D6: 1.394 | E6: 1.382 | F6: 0.991 | G6: 1.215 | H6: 0.9850894632 | I6: =[1]!Th230Age(F6, C6) -> 442.1454572 | L6: 442.1454572 | M6: 98 | N6: 4511.688339 | O6: 1912 | P6: 2010 | Q6: 0.4421454572
A7: K0100c | B7: n.d. | C7: 1.002 | D7: 1.436 | E7: 1.402 | F7: 0.977 | G7: 1.012 | H7: 0.9750499002 | I7: =[1]!Th230Age(F7, C7) -> 398.3319018 | L7: 398.3319018 | M7: 98 | N7: 4064.611243 | O7: 1912 | P7: 2010 | Q7: 0.3983319018
A8: K0121 | B8: n.d. | C8: 0.998 | D8: 1.457 | E8: 1.437 | F8: 0.986 | G8: 0.998 | H8: 0.9879759519 | I8: =[1]!Th230Age(F8, C8) -> 488.121349 | L8: 488.121349 | M8: 98 | N8: 4980.830092 | O8: 1912 | P8: 2010 | Q8: 0.488121349
A9: K0135d | B9: 0.70368 | C9: 1.002 | D9: 1.385 | E9: 1.381 | F9: 0.997 | G9: 2.339 | H9: 0.99500998 | I9: =[1]!Th230Age(F9, C9) -> 559.8946614 | L9: 559.8946614 | M9: 98 | N9: 5713.21083 | O9: 1912 | P9: 2010 | Q9: 0.5598946614
A10: K0162 | B10: n.d. | C10: 1.006 | D10: 1.439 | E10: 1.399 | F10: 0.972 | G10: 0.992 | H10: 0.9662027833 | I10: =[1]!Th230Age(F10, C10) -> 362.103403 | L10: 362.103403 | M10: 98 | N10: 3694.932684 | O10: 1912 | P10: 2010 | Q10: 0.362103403
A11: K0182 | B11: n.d. | C11: 1.005 | D11: 1.44 | E11: 1.422 | F11: 0.987 | G11: 1.069 | H11: 0.9820895522 | I11: =[1]!Th230Age(F11, C11) -> 426.8135103 | L11: 426.8135103 | M11: 98 | N11: 4355.239901 | O11: 1912 | P11: 2010 | Q11: 0.4268135103
A12: K0200 | B12: 0.70373 | C12: 1.005 | D12: 1.407 | E12: 1.389 | F12: 0.987 | G12: 1.07 | H12: 0.9820895522 | I12: =[1]!Th230Age(F12, C12) -> 426.8135103 | L12: 426.8135103 | M12: 98 | N12: 4355.239901 | O12: 1912 | P12: 2010 | Q12: 0.4268135103
A13: K0581 | B13: 0.70368 | C13: 1.003 | D13: 1.372 | E13: 1.369 | F13: 0.998 | G13: 1.119 | H13: 0.9950149551 | I13: =[1]!Th230Age(F13, C13) -> 552.6763084 | L13: 552.6763084 | M13: 98 | N13: 5639.554167 | O13: 1912 | P13: 2010 | Q13: 0.5526763084
A14: K1365 | B14: n.d. | C14: 1.004 | D14: 1.451 | E14: 1.433 | F14: 0.988 | G14: 0.97 | H14: 0.984063745 | I14: =[1]!Th230Age(F14, C14) -> 440.3922074 | L14: 440.3922074 | M14: 98 | N14: 4493.798034 | O14: 1912 | P14: 2010 | Q14: 0.4403922074
A15: K1490 | B15: n.d. | C15: 0.994 | D15: 1.45 | E15: 1.409 | F15: 0.972 | G15: 0.997 | H15: 0.9778672032 | I15: =[1]!Th230Age(F15, C15) -> 425.9604603 | L15: 425.9604603 | M15: 98 | N15: 4346.53531 | O15: 1912 | P15: 2010 | Q15: 0.4259604603
A16: K2582a | B16: 0.70362 | C16: 1.001 | D16: 1.399 | E16: 1.402 | F16: 1.002 | G16: 0.999 | H16: 1.000999001 | I16: =[1]!Th230Age(F16, C16) -> 0 | L16: 436.4966881 | M16: =P16-O16 -> 98 | N16: 4454.047838 | O16: 1912 | P16: 2010 | Q16: 0.4364966881
A17: K1271b | B17: 0.70364 | C17: 1.003 | D17: 1.41 | E17: 1.39 | F17: 0.986 | G17: 1.368 | H17: 0.9830508475 | I17: =[1]!Th230Age(F17, C17) -> 436.4966881 | L17: 365.8026421 | M17: 98 | N17: 3732.680021 | O17: 1912 | P17: 2010 | Q17: 0.3658026421
A18: K1270a | B18: n.d. | C18: 1.002 | D18: 1.449 | E18: 1.402 | F18: 0.968 | G18: 1.006 | H18: 0.9660678643 | I18: =[1]!Th230Age(F18, C18) -> 365.8026421 | L18: 381.5132661 | M18: 98 | N18: 3892.992511 | O18: 1912 | P18: 2010 | Q18: 0.3815132661
A19: K1269c | B19: 0.70361 | C19: 1.003 | D19: 1.444 | E19: 1.407 | F19: 0.974 | G19: 1.009 | H19: 0.9710867398 | I19: =[1]!Th230Age(F19, C19) -> 381.5132661 | L19: 594.1981242 | M19: 98 | N19: 6063.246165 | O19: 1912 | P19: 2010 | Q19: 0.5941981242
A20: K1268b | B20: 0.7037 | C20: 1.003 | D20: 1.395 | E20: 1.395 | F20: 1 | G20: 2.522 | H20: 0.9970089731 | I20: =[1]!Th230Age(F20, C20) -> 594.1981242 | L20: 533.6109526 | M20: 98 | N20: 5445.00972 | O20: 1912 | P20: 2010 | Q20: 0.5336109526
A21: K1268f | B21: 0.70373 | C21: 1.001 | D21: 1.398 | E21: 1.39 | F21: 0.994 | G21: 1.399 | H21: 0.993006993 | I21: =[1]!Th230Age(F21, C21) -> 533.6109526 | L21: 411.7622679 | M21: 98 | N21: 4201.655795 | O21: 1912 | P21: 2010 | Q21: 0.4117622679
A22: K1267b | B22: 0.7036 | C22: 1.002 | D22: 1.435 | E22: 1.407 | F22: 0.98 | G22: 1.038 | H22: 0.9780439122 | I22: =[1]!Th230Age(F22, C22) -> 411.7622679 | L22: 450.957648 | M22: 98 | N22: 4601.608653 | O22: 1912 | P22: 2010 | Q22: 0.450957648
A23: K1267c | B23: 0.70374 | C23: 1.005 | D23: 1.411 | E23: 1.399 | F23: 0.991 | G23: 1.288 | H23: 0.9860696517 | I23: =[1]!Th230Age(F23, C23) -> 450.957648 | L23: 361.8120846 | M23: 98 | N23: 3691.960047 | O23: 1912 | P23: 2010 | Q23: 0.3618120846
A24: K1266c | B24: n.d. | C24: 1.003 | D24: 1.453 | E24: 1.407 | F24: 0.968 | G24: 1.018 | H24: 0.9651046859 | I24: =[1]!Th230Age(F24, C24) -> 361.8120846 | L24: 489.0488657 | M24: 98 | N24: 4990.294547 | O24: 1912 | P24: 2010 | Q24: 0.4890488657
A25: K1266f | B25: n.d. | C25: 1.003 | D25: 1.398 | E25: 1.389 | F25: 0.993 | G25: 1.044 | H25: 0.9900299103 | I25: =[1]!Th230Age(F25, C25) -> 489.0488657 | L25: 514.9491381 | M25: 98 | N25: 5254.583041 | O25: 1912 | P25: 2010 | Q25: 0.5149491381
A26: K0543 | B26: 0.70339 | C26: 1.003 | D26: 1.281 | E26: 1.35 | F26: 1.054 | G26: 1.206 | H26: 1.050847458 | I26: =[1]!Th230Age(F26, C26) -> 0 | L26: 381.5132661 | M26: 98 | N26: 3892.992511 | O26: 1912 | P26: 2010 | Q26: 0.3815132661
A27: K1595c | B27: 0.70371 | C27: 1.002 | D27: 1.397 | E27: 1.389 | F27: 0.994 | G27: 1.163 | H27: 0.9920159681 | I27: =[1]!Th230Age(F27, C27) -> 514.9491381 | L27: 512.8771573 | M27: 98 | N27: 5233.440381 | O27: 1912 | P27: 2010 | Q27: 0.5128771573
A28: K2015c | B28: n.d. | C28: 1.003 | D28: 1.446 | E28: 1.408 | F28: 0.974 | G28: 1.004 | H28: 0.9710867398 | I28: =[1]!Th230Age(F28, C28) -> 381.5132661 | L28: 474.403549 | M28: 98 | N28: 4840.852541 | O28: 1912 | P28: 2010 | Q28: 0.474403549
A29: K0184 | B29: 0.70374 | C29: 1.005 | D29: 1.387 | E29: 1.384 | F29: 0.998 | G29: 1.741 | H29: 0.9930348259 | I29: =[1]!Th230Age(F29, C29) -> 512.8771573 | K29: Average | L29: =AVERAGE(L3:L28) -> 463.0493719 | N29: =AVERAGE(N3:N28) -> 4724.993591 | O29: 1912 | P29: 2010
A30: K0016 | B30: 0.70372 | C30: 1.002 | D30: 1.442 | E30: 1.428 | F30: 0.99 | G30: 1.042 | H30: 0.9880239521 | I30: =[1]!Th230Age(F30, C30) -> 474.403549 | K30: Maximum | L30: =MAX(L3:L29) -> 610.0534478 | N30: =MAX(N3:N29) -> 6225.035182 | O30: 1912 | P30: 2010
A31: AM23 | B31: 0.7048 | C31: n.d. | D31: 1.184 | E31: n.d. | F31: n.d. | G31: n.d. | K31: Minimum | L31: =MIN(L3:L30) -> 361.8120846 | N31: =MIN(N3:N30) -> 3691.960047
K32: Difference | L32: =L30-L31 -> 248.2413632 | N32: =N30-N31 -> 2533.075134
K33: Accuracy | L33: =1-(L32/L29) -> 0.4638987153 | N33: =1-(N32/N29) -> 0.4638987153

Sheet H09
A1: Table 2 | B1: Kilauea | L1: Year | M1: Pb/Pb Ages | N1: Year Dated | O1: True Age | P1: Error Ratio
A2: Year | B2: 206Pb/204Pb | C2: 207Pb/204Pb | D2: 208Pb/204Pb | E2: 87Sr/86Sr | F2: 143Nd/144Nd | G2: eNd | H2: 207Pb/206Pb | I2: Ages | J2: Ages | L2: 1790 | M2: 4992.224191 | N2: 1999 | O2: =(N2-L2) -> 209 | P2: =M2/O2 -> 23.88624015
A3: 1790 | B3: 18.394 | C3: 15.463 | D3: 38.023 | E3: 0.703563 | F3: 0.51297 | G3: 6.4 | H3: =C3/B3 -> 0.8406545613 | I3: =[1]!AgePb76(H3) -> 4992.224191 | J3: 4992.224191 | L3: 1820 | M3: 4992.128367 | N3: 1999 | O3: =(N3-L3) -> 179 | P3: =M3/O3 -> 27.88898529
A4: 1790 | B4: 18.508 | C4: 15.472 | D4: 38.13 | E4: 0.703595 | F4: 0.512945 | G4: 5.9 | H4: =C4/B4 -> 0.8359628269 | I4: =[1]!AgePb76(H4) -> 4984.276694 | J4: 4984.276694 | L4: 1832 | M4: 4989.525031 | N4: 1999 | O4: 167 | P4: 29.87739539
A5: 1820 | B5: 18.4 | C5: 15.467 | D5: 38.05 | E5: 0.703673 | F5: 0.512953 | G5: 6.1 | H5: 0.8405978261 | I5: =[1]!AgePb76(H5) -> 4992.128367 | J5: 4992.128367 | L5: 1866 | M5: 4980.64346 | N5: 1999 | O5: 133 | P5: 37.44844706
A6: 1832 | B6: 18.429 | C6: 15.463 | D6: 38.034 | E6: 0.703649 | F6: 0.512948 | G6: 6 | H6: 0.8390580064 | I6: =[1]!AgePb76(H6) -> 4989.525031 | J6: 4989.525031 | L6: 1885 | M6: 4983.107715 | N6: 1999 | O6: 114 | P6: 43.71147118
A7: 1866 | B7: 18.559 | C7: 15.475 | D7: 38.121 | E7: 0.703534 | F7: 0.512952 | G7: 6.1 | H7: 0.8338272536 | I7: =[1]!AgePb76(H7) -> 4980.64346 | J7: 4980.64346 | L7: 1894 | M7: 4981.362908 | N7: 1999 | O7: 105 | P7: 47.44155151
A8: 1885 | B8: 18.54 | C8: 15.486 | D8: 38.128 | E8: 0.703563 | F8: 0.512969 | G8: 6.4 | H8: 0.8352750809 | I8: =[1]!AgePb76(H8) -> 4983.107715 | J8: 4983.107715 | L8: 1895 | M8: 4978.686155 | N8: 1999 | O8: 104 | P8: 47.87198226
A9: 1894 | B9: 18.552 | C9: 15.477 | D9: 38.114 | E9: 0.703528 | F9: 0.51297 | G9: 6.4 | H9: 0.8342496766 | I9: =[1]!AgePb76(H9) -> 4981.362908 | J9: 4981.362908 | L9: 1917 | M9: 4974.94803 | N9: 1999 | O9: 82 | P9: 60.67009793
A10: 1895 | B10: 18.599 | C10: 15.487 | D10: 38.132 | E10: 0.703522 | F10: 0.512968 | G10: 6.4 | H10: 0.8326791763 | I10: =[1]!AgePb76(H10) -> 4978.686155 | J10: 4978.686155 | L10: 1919 | M10: 4974.297158 | N10: 1999 | O10: 80 | P10: 62.17871448
A11: 1917 | B11: 18.648 | C11: 15.487 | D11: 38.168 | E11: 0.703482 | F11: 0.512975 | G11: 6.5 | H11: 0.8304912055 | I11: =[1]!AgePb76(H11) -> 4974.94803 | J11: 4974.94803 | L11: 1929 | M11: 4981.025024 | N11: 1999 | O11: 70 | P11: 71.15750034
A12: 1919 | B12: 18.671 | C12: 15.499 | D12: 38.244 | E12: 0.703471 | F12: 0.512968 | G12: 6.4 | H12: 0.8301108671 | I12: =[1]!AgePb76(H12) -> 4974.297158 | J12: 4974.297158 | L12: 1931 | M12: 4981.133656 | N12: 1999 | O12: 68 | P12: 73.25196553
A13: 1929 | B13: 18.572 | C13: 15.49 | D13: 38.219 | E13: 0.703565 | F13: 0.51294 | G13: 5.9 | H13: 0.83405126 | I13: =[1]!AgePb76(H13) -> 4981.025024 | J13: 4981.025024 | L13: 1954 | M13: 4981.315306 | N13: 1999 | O13: 45 | P13: 110.6958957
A14: 1931 | B14: 18.549 | C14: 15.472 | D14: 38.148 | E14: 0.703577 | F14: 0.512943 | G14: 5.9 | H14: 0.8341150466 | I14: =[1]!AgePb76(H14) -> 4981.133656 | J14: 4981.133656 | L14: 1961 | M14: 4981.547583 | N14: 1999 | O14: 38 | P14: 131.0933574
A15: 1931 | B15: 18.562 | C15: 15.486 | D15: 38.197 | H15: 0.8342850986 | I15: =[1]!AgePb76(H15) -> 4981.42322 | J15: 4981.42322 | L15: 1971 | M15: 4984.750628 | N15: 1999 | O15: 28 | P15: 178.0268082
A16: 1954 | B16: 18.573 | C16: 15.494 | D16: 38.228 | E16: 0.703611 | F16: 0.51294 | G16: 5.9 | H16: 0.8342217197 | I16: =[1]!AgePb76(H16) -> 4981.315306 | J16: 4981.315306 | L16: 1982 | M16: 4987.339362 | N16: 1999 | O16: 17 | P16: 293.3729037
A17: 1961 | B17: 18.54 | C17: 15.469 | D17: 38.157 | E17: 0.70355 | F17: 0.512969 | G17: 6.4 | H17: 0.8343581446 | I17: =[1]!AgePb76(H17) -> 4981.547583 | J17: 4981.547583 | L17: Average | M17: =AVERAGE(M2:M16) -> 4982.935638
A18: 1971 | B18: 18.509 | C18: 15.478 | D18: 38.132 | E18: 0.703585 | F18: 0.512961 | G18: 6.3 | H18: 0.8362418283 | I18: =[1]!AgePb76(H18) -> 4984.750628 | J18: 4984.750628 | L18: Maximum | M18: =MAX(M2:M17) -> 4992.224191
A19: 1982 | B19: 18.455 | C19: 15.461 | D19: 38.056 | E19: 0.703568 | F19: 0.512971 | G19: 6.5 | H19: 0.8377675427 | I19: =[1]!AgePb76(H19) -> 4987.339362 | J19: 4987.339362 | L19: Minimum | M19: =MIN(M2:M18) -> 4974.297158
A20: 1982 | B20: 18.454 | C20: 15.465 | D20: 38.079 | E20: 0.703579 | F20: 0.512975 | G20: 6.5 | H20: 0.8380296955 | I20: =[1]!AgePb76(H20) -> 4987.783662 | J20: 4987.783662 | L20: Difference | M20: =M18-M19 -> 17.92703236
L21: Accuracy | M21: =1-(M20/M17) -> 0.9964023151
G23: =1982-1790 -> 192

Sheet H10
A1: Table 1 | B1: 1953 | C1: 1985 | D1: 1985 | E1: 1985 | F1: 1985 | G1: 1985 | H1: 1985 | I1: 1985 | J1: Year | L1: 1953 Eruption | M1: 1985 Eruption
A2: 206Pb/204Pb | B2: 18.996 | C2: 18.927 | D2: 18.925 | E2: 18.939 | F2: 18.904 | G2: 18.85 | H2: 18.87 | I2: 18.893 | L2: 4963 | M2: 4967
A3: 207Pb/204Pb | B3: 15.64 | C3: 15.633 | D3: 15.635 | E3: 15.669 | F3: 15.636 | G3: 15.6 | H3: 15.578 | I3: 15.599 | M3: 4968
A4: 207Pb/206Pb | B4: =(B3/B2) -> 0.8233312276 | C4: =(C3/C2) -> 0.8259629101 | D4: 0.8261558785 | E4: 0.8273404087 | F4: 0.8271265341 | G4: 0.8275862069 | H4: 0.8255431902 | I4: 0.8256497115 | M4: 4970
A5: Ages (Ma) | B5: =[1]!AgePb76(B4) -> 4962.641702 | C5: =[1]!AgePb76(C4) -> 4967.178124 | D5: =[1]!AgePb76(D4) -> 4967.510153 | E5: =[1]!AgePb76(E4) -> 4969.546497 | F5: =[1]!AgePb76(F4) -> 4969.179051 | G5: =[1]!AgePb76(G4) -> 4969.968664 | H5: =[1]!AgePb76(H4) -> 4966.455653 | I5: =[1]!AgePb76(I4) -> 4966.639047 | M5: 4969
A6: Ages (Ma) | B6: 4962.641702 | C6: 4967.178124 | D6: 4967.510153 | E6: 4969.546497 | F6: 4969.179051 | G6: 4969.968664 | H6: 4966.455653 | I6: 4966.639047 | M6: 4970
M7: 4966
M8: 4967
A9: Sangeang Api | B9: Pb Age (Ma) | C9: Age Ratio (106) | D9: Th Ages (Ka) | E9: Age Ratio (103) | F9: Dated | G9: True Age | H9: Age Ratio | L9: =MIN(L2:L8) -> 4963 | M9: =MIN(M2:M8) -> 4966
A10: 1953 | B10: 4963 | C10: =(B10/G10) -> 103.3958333 | D10: 0 | F10: 2001 | G10: =F10-A10 -> 48 | H10: =E10/G10 -> 0
A11: 1985 | B11: 4967 | C11: =(B11/G11) -> 310.4375 | D11: 408.59 | E11: =(D11/G11) -> 25.536875 | F11: 2001 | G11: =F11-A11 -> 16 | H11: =E11/G11 -> 1.596054687
A12: 1985 | B12: 4968 | C12: 310.5 | D12: 0 | F12: 2001 | G12: 16 | H12: 0
A13: 1985 | B13: 4970 | C13: 310.625 | D13: 0 | F13: 2001 | G13: 16 | H13: 0
A14: 1985 | B14: 4969 | C14: 310.5625 | D14: 247.1 | E14: =(D14/G14) -> 15.44375 | F14: 2001 | G14: 16 | H14: 0.965234375
A15: 1985 | B15: 4970 | C15: 310.625 | F15: 2001 | G15: 16 | H15: 0
A16: 1985 | B16: 4966 | C16: 310.375 | D16: 210.3 | E16: =(D16/G16) -> 13.14375 | F16: 2001 | G16: 16 | H16: 0.821484375
A17: 1985 | B17: 4967 | C17: 310.4375 | D17: 243.73 | E17: =(D17/G17) -> 15.233125 | F17: 2001 | G17: 16 | H17: 0.9520703125
A20: Table 1 | B20: 1953 | C20: 1985 | D20: 1985 | E20: 1985 | F20: 1985 | G20: 1985 | H20: 1985 | I20: 1985
A21: 230Th/238U | B21: 1.079 | C21: 0.982 | D21: 1.051 | E21: 1.149 | F21: 0.937 | H21: 0.849 | I21: 0.88
A22: 234U/238U | B22: 1.02 | C22: 1.004 | D22: 1.007 | E22: 1.007 | F22: 1.035 | H22: 0.994 | I22: 0.988
A23: Th Ages (Ka) | B23: =[1]!Th230Age(B21, B22) -> 0 | C23: =[1]!Th230Age(C21, C22) -> 408.5880436 | D23: =[1]!Th230Age(D21, D22) -> 0 | E23: =[1]!Th230Age(E21, E22) -> 0 | F23: =[1]!Th230Age(F21, F22) -> 247.1044964 | H23: =[1]!Th230Age(H21, H22) -> 210.3001472 | I23: =[1]!Th230Age(I21, I22) -> 243.7310795

Sheet H11
A1: Table 1 | B1: Vesuvius
A2: Sample | B2: Age | C2: Error | D2: 39Ar | E2: Steps | F2: isochron intercept | H2: Year Dated | I2: Year Erupted | J2: Historical Age | K2: Accuracy
A3: CA-1 | B3: 2061 | C3: 181 | D3: 99 | E3: (23 of 25) | F3: 297.4 | G3: 2.8 | H3: 2007 | I3: 79 | J3: =(H3-I3) -> 1928 | K3: =(J3/B3) -> 0.9354682193
A4: CA-2 | B4: 1707 | C4: 185 | D4: 87 | E4: (21 of 26) | F4: 298.4 | G4: 3 | H4: 2007 | I4: 79 | J4: =(H4-I4) -> 1928 | K4: =(B4/J4) -> 0.885373444
A5: CA-4 | B5: 2099 | C5: 185 | D5: 86 | E5: (17 of 26) | F5: 300.1 | G5: 4.4 | H5: 2007 | I5: 79 | J5: 1928 | K5: =(J5/B5) -> 0.9185326346
A6: CA-5 | B6: 1821 | C6: 200 | D6: 86 | E6: (18 of 25) | F6: 299.7 | G6: 1 | H6: 2007 | I6: 79 | J6: 1928 | K6: =(B6/J6) -> 0.9445020747
A7: CA-6 | B7: 1938 | C7: 186 | D7: 100 | E7: (25 of 25) | F7: 290.8 | G7: 3.6 | H7: 2007 | I7: 79 | J7: 1928 | K7: 0.9948400413
A8: CA-7 | B8: 2181 | C8: 182 | D8: 100 | E8: (825 of 26) | F8: 295.9 | G8: 2 | H8: 2007 | I8: 79 | J8: 1928 | K8: 0.883998166
A9: CA-8 | B9: 1667 | C9: 184 | D9: 100 | E9: (26 of 26) | F9: 294.2 | G9: 3.4 | H9: 2007 | I9: 79 | J9: 1928 | K9: =(B9/J9) -> 0.864626556
A10: VP-2 | B10: 1867 | C10: 185 | D10: 96 | E10: (22 of 26) | F10: 302.1 | G10: 5.3 | H10: 2007 | I10: 79 | J10: 1928 | K10: =(B10/J10) -> 0.9683609959
A15: Sample | B15: 39Ar/40Ar Age | C15: Year Dated | D15: Historical Age | E15: Accuracy
A16: CA-1 | B16: 2061 | C16: 2007 | D16: 1928 | E16: 0.9354682193
A17: CA-2 | B17: 1707 | C17: 2007 | D17: 1928 | E17: 0.885373444
A18: CA-4 | B18: 2099 | C18: 2007 | D18: 1928 | E18: 0.9185326346
A19: CA-5 | B19: 1821 | C19: 2007 | D19: 1928 | E19: 0.9445020747
A20: CA-6 | B20: 1938 | C20: 2007 | D20: 1928 | E20: 0.9948400413
A21: CA-7 | B21: 2181 | C21: 2007 | D21: 1928 | E21: 0.883998166
A22: CA-8 | B22: 1667 | C22: 2007 | D22: 1928 | E22: 0.864626556
A23: VP-2 | B23: 1867 | C23: 2007 | D23: 1928 | E23: 0.9683609959

Sheet H12
A1: Table 2
A2: Sample ID | B2: M28(Mayon) | C2: M38(Mayon) | D2: M47-6700(Mayon) | E2: M47-MT(Mayon) | F2: M68(Mayon) | G2: M78(Mayon) | H2: M84(Mayon) | I2: M8-93(Mayon) | J2: M7-00(Mayon)
A3: 206Pb/204Pb | B3: 18.569 | C3: 18.544 | D3: 18.559 | E3: 18.578 | F3: 18.556 | G3: 18.564 | H3: 18.56418 | I3: 18.614 | J3: 18.608
A4: 207Pb/204Pb | B4: 15.542 | C4: 15.516 | D4: 15.531 | E4: 15.551 | F4: 15.53 | G4: 15.537 | H4: 15.52 | I4: 15.583 | J4: 15.559
A5: 207Pb/206Pb | B5: =(B4/B3) -> 0.8369863751 | C5: =(C4/C3) -> 0.8367126833 | D5: 0.8368446576 | E5: 0.8370653461 | F5: 0.8369260617 | G5: 0.8369424693 | H5: 0.8360186122 | I5: 0.8371655743 | J5: 0.8361457438
A6: Age | B6: =[1]!AgePb76(B5) -> 4986.014554 | C6: =[1]!AgePb76(C5) -> 4985.55008 | D6: =[1]!AgePb76(D5) -> 4985.77407 | E6: =[1]!AgePb76(E5) -> 4986.148543 | F6: =[1]!AgePb76(F5) -> 4985.912212 | G6: =[1]!AgePb76(G5) -> 4985.940054 | H6: =[1]!AgePb76(H5) -> 4984.371469 | I6: =[1]!AgePb76(I5) -> 4986.31858 | J6: =[1]!AgePb76(J5) -> 4984.58743
A9: Sample ID | B9: M6-01(Mayon) | C9: B9(Bulusan) | D9: B10(Bulusan) | E9: B11(Bulusan) | F9: I12(Iriga) | G9: I13(Iriga) | H9: I14(Iriga) | I9: I15(Iriga) | J9: T1(Taal)
A10: 206Pb/204Pb | B10: 18.574 | C10: 18.467 | D10: 18.468 | E10: 18.476 | F10: 18.6 | G10: 18.601 | H10: 18.56 | I10: 18.665 | J10: 18.543
A11: 207Pb/204Pb | B11: 15.562 | C11: 15.502 | D11: 15.517 | E11: 15.52 | F11: 15.504 | G11: 15.49 | H11: 15.518 | I11: 15.574 | J11: 15.586
A12: 207Pb/206Pb | B12: =(B11/B10) -> 0.8378378378 | C12: =(C11/C10) -> 0.8394433313 | D12: =(D11/D10) -> 0.8402100931 | E12: =(E11/E10) -> 0.8400086599 | F12: =(F11/F10) -> 0.8335483871 | G12: =(G11/G10) -> 0.8327509274 | H12: =(H11/H10) -> 0.8360991379 | I12: =(I11/I10) -> 0.8343959282 | J12: =(J11/J10) -> 0.8405328156
A13: Age | B13: =[1]!AgePb76(B12) -> 4987.458514 | C13: =[1]!AgePb76(C12) -> 4990.176966 | D13: =[1]!AgePb76(D12) -> 4991.473314 | E13: =[1]!AgePb76(E12) -> 4991.132877 | F13: =[1]!AgePb76(F12) -> 4980.168296 | G13: =[1]!AgePb76(G12) -> 4978.808564 | H13: =[1]!AgePb76(H12) -> 4984.508264 | I13: =[1]!AgePb76(I12) -> 4981.611906 | J13: =[1]!AgePb76(J12) -> 4992.018558
A16: Sample ID | B16: T2(Taal) | C16: T3(Taal) | D16: T4(Taal) | E16: T5(Taal) | F16: T23(Taal) | G16: Bali(Taal) | H16: BM8(Taal) | I16: B4(Taal) | J16: CAL1(Taal)
A17: 206Pb/204Pb | B17: 18.601 | C17: 18.58 | D17: 18.594 | E17: 18.547 | F17: 18.58 | G17: 18.577 | H17: 18.635 | I17: 18.581 | J17: 18.554
A18: 207Pb/204Pb | B18: 15.602 | C18: 15.577 | D18: 15.598 | E18: 15.574 | F18: 15.57 | G18: 15.584 | H18: 15.656 | I18: 15.614 | J18: 15.586
A19: 207Pb/206Pb | B19: =(B18/B17) -> 0.838772109 | C19: =(C18/C17) -> 0.8383745963 | D19: =(D18/D17) -> 0.8388727547 | E19: =(E18/E17) -> 0.8397045344 | F19: =(F18/F17) -> 0.8379978471 | G19: =(G18/G17) -> 0.8388867955 | H19: =(H18/H17) -> 0.8401395224 | I19: =(I18/I17) -> 0.8403207578 | J19: =(J18/J17) -> 0.8400344939
A20: Age | B20: =[1]!AgePb76(B19) -> 4989.041112 | C20: =[1]!AgePb76(C19) -> 4988.367979 | D20: =[1]!AgePb76(D19) -> 4989.211488 | E20: =[1]!AgePb76(E19) -> 4990.618718 | F20: =[1]!AgePb76(F19) -> 4987.729693 | G20: =[1]!AgePb76(G19) -> 4989.235255 | H20: =[1]!AgePb76(H19) -> 4991.354054 | I20: =[1]!AgePb76(I19) -> 4991.660308 | J20: =[1]!AgePb76(J19) -> 4991.176543
A23: Sample ID | B23: CY3(Taal) | C23: MB5(Taal) | D23: P16(Pinatubo) | E23: P17(Pinatubo) | F23: P18(Pinatubo) | G23: P19(Pinatubo) | H23: P20(Pinatubo) | I23: P20b(Pinatubo) | J23: P21(Pinatubo)
A24: 206Pb/204Pb | B24: 18.585 | C24: 18.639 | D24: 18.681 | E24: 18.455 | F24: 18.394 | G24: 18.467 | H24: 18.381 | I24: 18.404 | J24: 18.444
A25: 207Pb/204Pb | B25: 15.599 | C25: 15.668 | D25: 15.647 | E25: 15.59 | F25: 15.624 | G25: 15.54 | H25: 15.54 | I25: 15.545 | J25: 15.561
A26: 207Pb/206Pb | B26: =(B25/B24) -> 0.8393327953 | C26: =(C25/C24) -> 0.8406030366 | D26: =(D25/D24) -> 0.8375889942 | E26: =(E25/E24) -> 0.8447575183 | F26: =(F25/F24) -> 0.8494074155 | G26: =(G25/G24) -> 0.8415010559 | H26: =(H25/H24) -> 0.8454382243 | I26: =(I25/I24) -> 0.8446533362 | J26: =(J25/J24) -> 0.8436890046
A27: Age | B27: =[1]!AgePb76(B26) -> 4989.989982 | C27: =[1]!AgePb76(C26) -> 4992.137167 | D27: =[1]!AgePb76(D26) -> 4987.036672 | E27: =[1]!AgePb76(E26) -> 4999.135807 | F27: =[1]!AgePb76(F26) -> 5006.925791 | G27: =[1]!AgePb76(G26) -> 4993.653079 | H27: =[1]!AgePb76(H26) -> 5000.279037 | I27: =[1]!AgePb76(I26) -> 4998.960749 | J27: =[1]!AgePb76(J26) -> 4997.339287
A30: Sample ID | B30: P22(Pinatubo) | L30: Pinatubo | M30: Mayon | N30: Taal
A31: 206Pb/204Pb | B31: 18.432 | G31: Taal | H31: Mayon | I31: Bulusan | J31: Iriga | K31: Pinatubo | L31: Error Ratio | M31: Error Ratio | N31: Error Ratio
A32: 207Pb/204Pb | B32: 15.568 | G32: 1600 AD | H32: 1800 AD | I32: 4000 BC | J32: ??? | K32: 1991 AD | L32: Millions | M32: Millions | N32: Millions
A33: 207Pb/206Pb | B33: =(B32/B31) -> 0.8446180556 | G33: 4992 | H33: 4986 | I33: 4990 | J33: 4980 | K33: 4987 | L33: =(K33/15) -> 332.4666667 | M33: =(H33/109) -> 45.74311927 | N33: =(G33/372) -> 13.41935484
A34: Age | B34: =[1]!AgePb76(B33) -> 4998.901462 | G34: 4989 | H34: 4986 | I34: 4991 | J34: 4979 | K34: 4999 | L34: =(K34/15) -> 333.2666667 | M34: =(H34/109) -> 45.74311927 | N34: =(G34/372) -> 13.41129032
G35: 4988 | H35: 4986 | I35: 4991 | J35: 4985 | K35: 5007 | L35: 333.8 | M35: 45.74311927 | N35: 13.40860215
G36: 4989 | H36: 4986 | J36: 4982 | K36: 4994 | L36: 332.9333333 | M36: 45.74311927 | N36: 13.41129032
A37: Volcanoes | B37: Eruptions | C37: Historic Age | D37: 2006 | E37: Dated | G37: 4991 | H37: 4986 | K37: 5000 | L37: 333.3333333 | M37: 45.74311927 | N37: 13.41666667
A38: Mayon | B38: 1800 AD | C38: =2006-D38 -> 109 | D38: 1897 | E38: Mayon | G38: 4988 | H38: 4986 | K38: 4999 | L38: 333.2666667 | M38: 45.74311927 | N38: 13.40860215
A39: Bulusan | B39: 4000 BC | C39: =2006-D39 -> 372 | D39: 1634 | E39: Taal | G39: 4989 | H39: 4984 | K39: 4997 | L39: 333.1333333 | M39: 45.72477064 | N39: 13.41129032
A40: Iriga | B40: ? | C40: =2006-D40 -> 15 | D40: 1991 | E40: Pinatubo | G40: 4991 | H40: 4986 | K40: 4999 | L40: 333.2666667 | M40: 45.74311927 | N40: 13.41666667
A41: Taal | B41: 1600 AD | G41: 4992 | H41: 4985 | M41: 45.73394495 | N41: 13.41935484
A42: Pinatubo | B42: 1991 AD | G42: 4991 | H42: 4987 | M42: 45.75229358 | N42: 13.41666667
G43: 4990
G44: 4992
F45: Average | G45: =AVERAGE(G33:G44) -> 4990.166667 | H45: =AVERAGE(H33:H44) -> 4985.8 | I45: 4990.666667 | J45: 4981.5 | K45: 4997.75
F46: Maximum | G46: =MAX(G33:G45) -> 4992 | H46: =MAX(H33:H45) -> 4987 | I46: 4991 | J46: 4985 | K46: 5007
F47: Minimum | G47: =MIN(G33:G46) -> 4988 | H47: =MIN(H33:H46) -> 4984 | I47: 4990 | J47: 4979 | K47: 4987
F48: Difference | G48: =G46-G47 -> 4 | H48: =H46-H47 -> 3 | I48: 1 | J48: 6 | K48: 20
F49: Accuracy | G49: =1-(G48/G45) -> 0.9991984236 | H49: =1-(H48/H45) -> 0.9993982911 | I49: 0.999799626 | J49: 0.9987955435 | K49: 0.9959981992
A52: Table 1
A53: Sample | B53: U(ppm) | D53: Th(ppm) | F53: 232Th/238U | H53: 230Th/232Th | J53: 238U/232Th | L53: 230Th/238U | N53: 234U/238U | P53: Age (Ka) | R53: Taal | S53: Mayon | T53: Bulusan | U53: Iriga | V53: Pinatubo
A54: Taal | R54: 1600 AD | S54: 1800 AD | T54: 4000 BC | U54: ??? | V54: 1991 AD
A55: T1 | B55: 0.944 | C55: 5 | D55: 3.364 | E55: 9 | F55: 3.68 | G55: 2 | H55: 0.789 | I55: 8 | J55: 0.852 | K55: 5 | L55: 0.927 | M55: 10 | N55: 1.005 | O55: 7 | P55: =[1]!Th230Age(L55, N55) -> 276.0741357 | R55: 276.0741357 | S55: 0 | T55: 332.326771 | U55: 281.4005889 | V55: 505.8241685
A56: T2 | B56: 1.526 | C56: 6 | D56: 5.459 | E56: 26 | F56: 3.7 | G56: 2 | H56: 0.784 | I56: 12 | J56: 0.848 | K56: 5 | L56: 0.925 | M56: 14 | N56: 0.997 | O56: 4 | P56: =[1]!Th230Age(L56, N56) -> 287.1040489 | R56: 287.1040489 | S56: 0 | T56: 345.869897 | U56: 184.6960469 | V56: 298.6961579
A57: T3 | B57: 3.485 | C57: 15 | D57: 11.91 | E57: 6 | F57: 3.53 | G57: 2 | H57: 0.822 | I57: 9 | J57: 0.887 | K57: 6 | L57: 0.927 | M57: 10 | N57: 0.999 | O57: 2 | P57: =[1]!Th230Age(L57, N57) -> 286.4560598 | R57: 286.4560598 | S57: 0 | T57: 470.1811673 | U57: 204.799585 | V57: 324.8702088
A58: T4 | B58: 0.974 | C58: 5 | D58: 3.428 | E58: 12 | F58: 3.64 | G58: 2 | H58: 0.771 | I58: 9 | J58: 0.862 | K58: 6 | L58: 0.895 | M58: 11 | N58: 0.995 | O58: 7 | P58: =[1]!Th230Age(L58, N58) -> 251.246142 | R58: 251.246142 | S58: 0 | U58: 187.0620222 | V58: 0
A59: T5 | B59: 1.23 | C59: 4 | D59: 4.399 | E59: 14 | F59: 3.7 | G59: 2 | H59: 0.783 | I59: 6 | J59: 0.849 | K59: 4 | L59: 0.923 | M59: 7 | N59: 1 | O59: 3 | P59: =[1]!Th230Age(L59, N59) -> 278.8341652 | R59: 278.8341652 | S59: 0 | V59: 323.5447351
A60: T23 | B60: 1.095 | C60: 4 | D60: 3.396 | E60: 22 | F60: 3.21 | G60: 2 | H60: 0.786 | I60: 8 | J60: 0.978 | K60: 7 | L60: 0.804 | M60: 7 | N60: 0.999 | O60: 3 | P60: =[1]!Th230Age(L60, N60) -> 177.7708859 | R60: 177.7708859 | S60: 0 | V60: 293.245684
A61: MB-5-Phil | B61: 1.031 | C61: 50 | D61: 3.712 | E61: 21 | F61: 3.72 | G61: 3 | H61: 0.773 | I61: 7 | J61: 0.843 | K61: 6 | L61: 0.917 | M61: 8 | N61: 0.997 | O61: 5 | P61: =[1]!Th230Age(L61, N61) -> 275.4752489 | R61: 275.4752489 | S61: 0 | V61: 326.3674255
A62: BAL-1-Phil | B62: 3.741 | C62: 14 | D62: 12.95 | E62: 7 | F62: 3.58 | G62: 2 | H62: 0.824 | I62: 6 | J62: 0.876 | K62: 6 | L62: 0.941 | M62: 6 | N62: 0.999 | O62: 3 | P62: =[1]!Th230Age(L62, N62) -> 310.1096342 | R62: 310.1096342 | S62: 0 | V62: 278.2677327
A63: BM-8-Phil | B63: 3.586 | C63: 20 | D63: 12.429 | E63: 12 | F63: 3.58 | G63: 4 | H63: 0.832 | I63: 12 | J63: 0.876 | K63: 10 | L63: 0.951 | M63: 12 | N63: 1.004 | O63: 6 | P63: =[1]!Th230Age(L63, N63) -> 317.3931209 | R63: 317.3931209 | S63: 0
A64: CAL-1-Phil | B64: 1.03 | C64: 5 | D64: 3.793 | E64: 43 | F64: 3.8 | G64: 5 | H64: 0.762 | I64: 19 | J64: 0.824 | K64: 10 | L64: 0.924 | M64: 21 | N64: 0.999 | O64: 3 | P64: =[1]!Th230Age(L64, N64) -> 281.9939786 | R64: 281.9939786
A65: B-4-Phil | B65: 0.963 | C65: 4 | D65: 3.463 | E65: 19 | F65: 3.72 | G65: 3 | H65: 0.797 | I65: 7 | J65: 0.844 | K65: 6 | L65: 0.945 | M65: 8 | N65: 1 | O65: 5 | P65: =[1]!Th230Age(L65, N65) -> 315.4261269 | R65: 315.4261269
A66: CY-3-Phil | B66: 1.197 | C66: 5 | D66: 4.331 | E66: 24 | F66: 3.74 | G66: 3 | H66: 0.785 | I66: 10 | J66: 0.839 | K66: 6 | L66: 0.936 | M66: 11 | N66: 0.999 | O66: 8 | P66: =[1]!Th230Age(L66, N66) -> 301.0595955 | R66: 301.0595955
A67: Pinatubo
A68: P16 | B68: 1.639 | C68: 5 | D68: 5.184 | E68: 19 | F68: 3.27 | G68: 2 | H68: 0.955 | I68: 8 | J68: 0.959 | K68: 5 | L68: 0.996 | M68: 8 | N68: 1.004 | O68: 7 | P68: =[1]!Th230Age(L68, N68) -> 505.8241685
A69: P17 | B69: 0.519 | C69: 2 | D69: 1.681 | E69: 5 | F69: 3.35 | G69: 2 | H69: 0.882 | I69: 9 | J69: 0.937 | K69: 4 | L69: 0.942 | M69: 9 | N69: 1.005 | O69: 4 | P69: =[1]!Th230Age(L69, N69) -> 298.6961579
A70: P18 | B70: 1.24 | C70: 13 | D70: 4.179 | E70: 17 | F70: 3.48 | G70: 4 | H70: 0.848 | I70: 13 | J70: 0.901 | K70: 10 | L70: 0.942 | M70: 17 | N70: 0.994 | O70: 12 | P70: =[1]!Th230Age(L70, N70) -> 324.8702088
A71: P19 | B71: 1.166 | C71: 4 | D71: 4.188 | E71: 16 | F71: 3.71 | G71: 2 | H71: 0.85 | I71: 10 | J71: 0.845 | K71: 5 | L71: 1.006 | M71: 12 | N71: 1.003 | O71: 4 | P71: =[1]!Th230Age(L71, N71) -> 0
A72: P20 | B72: 1.002 | C72: 4 | D72: 3.384 | E72: 13 | F72: 3.49 | G72: 2 | H72: 0.856 | I72: 11 | J72: 0.898 | K72: 5 | L72: 0.954 | M72: 13 | N72: 1.004 | O72: 4 | P72: =[1]!Th230Age(L72, N72) -> 323.5447351
A73: P20b | B73: 1.352 | C73: 5 | D73: 4.589 | E73: 17 | F73: 3.51 | G73: 2 | H73: 0.835 | I73: 9 | J73: 0.894 | K73: 5 | L73: 0.935 | M73: 11 | N73: 1.002 | O73: 4 | P73: =[1]!Th230Age(L73, N73) -> 293.245684
A74: P21 | B74: 1.008 | C74: 4 | D74: 3.407 | E74: 14 | F74: 3.49 | G74: 2 | H74: 0.852 | I74: 10 | J74: 0.898 | K74: 5 | L74: 0.949 | M74: 11 | N74: 0.999 | O74: 5 | P74: =[1]!Th230Age(L74, N74) -> 326.3674255
A75: P22 | B75: 1.222 | C75: 5 | D75: 3.949 | E75: 13 | F75: 3.34 | G75: 2 | H75: 0.863 | I75: 13 | J75: 0.939 | K75: 5 | L75: 0.919 | M75: 14 | N75: 0.997 | O75: 4 | P75: =[1]!Th230Age(L75, N75) -> 278.2677327
A76: Mayon
A77: M-28 | B77: 0.612 | C77: 3 | D77: 2.241 | E77: 21 | F77: 3.78 | G77: 4 | H77: 0.951 | I77: 17 | J77: 0.829 | K77: 9 | L77: 1.148 | M77: 18 | N77: 1.005 | O77: 5 | P77: =[1]!Th230Age(L77, N77) -> 0
A78: M-38 | B78: 0.625 | C78: 2 | D78: 2.512 | E78: 8 | F78: 4.15 | G78: 2 | H78: 0.846 | I78: 9 | J78: 0.755 | K78: 4 | L78: 1.12 | M78: 12 | N78: 1.003 | O78: 3 | P78: =[1]!Th230Age(L78, N78) -> 0
A79: MY-47 | B79: 0.568 | C79: 3 | D79: 2.231 | E79: 13 | F79: 4.06 | G79: 3 | H79: 0.863 | I79: 7 | J79: 0.773 | K79: 6 | L79: 1.117 | M79: 8 | N79: 1.002 | O79: 4 | P79: =[1]!Th230Age(L79, N79) -> 0
A80: MY-68 | B80: 0.669 | C80: 3 | D80: 2.49 | E80: 14 | F80: 3.85 | G80: 3 | H80: 0.887 | I80: 15 | J80: 0.815 | K80: 6 | L80: 1.088 | M80: 18 | N80: 1 | O80: 6 | P80: =[1]!Th230Age(L80, N80) -> 0
A81: MY-78 | B81: 0.584 | C81: 3 | D81: 2.258 | E81: 13 | F81: 3.99 | G81: 3 | H81: 0.867 | I81: 7 | J81: 0.785 | K81: 6 | L81: 1.104 | M81: 9 | N81: 1.001 | O81: 5 | P81: =[1]!Th230Age(L81, N81) -> 0
A82: MY-84 | B82: 0.623 | C82: 3 | D82: 2.356 | E82: 15 | F82: 3.9 | G82: 3 | H82: 0.876 | I82: 18 | J82: 0.804 | K82: 6 | L82: 1.091 | M82: 22 | N82: 1 | O82: 4 | P82: =[1]!Th230Age(L82, N82) -> 0
A83: M8-93 | B83: 0.619 | C83: 2 | D83: 2.344 | E83: 9 | F83: 3.91 | G83: 2 | H83: 0.85 | I83: 11 | J83: 0.802 | K83: 4 | L83: 1.06 | M83: 14 | N83: 0.999 | O83: 4 | P83: =[1]!Th230Age(L83, N83) -> 0
A84: M7-00 | B84: 0.599 | C84: 2 | D84: 2.219 | E84: 8 | F84: 3.83 | G84: 2 | H84: 0.873 | I84: 13 | J84: 0.819 | K84: 4 | L84: 1.066 | M84: 16 | N84: 1.005 | O84: 4 | P84: =[1]!Th230Age(L84, N84) -> 0
A85: M6-01 | B85: 0.596 | C85: 2 | D85: 2.034 | E85: 7 | F85: 3.53 | G85: 2 | H85: 0.939 | I85: 7 | J85: 0.889 | K85: 4 | L85: 1.056 | M85: 10 | N85: 1.006 | O85: 4 | P85: =[1]!Th230Age(L85, N85) -> 0
A86: Bulusan
A87: B9 | B87: 1.055 | C87: 4 | D87: 3.114 | E87: 8 | F87: 3.05 | G87: 2 | H87: 0.985 | I87: 7 | J87: 1.028 | K87: 5 | L87: 0.958 | M87: 7 | N87: 1.004 | O87: 5 | P87: =[1]!Th230Age(L87, N87) -> 332.326771
A88: B10 | B88: 1.136 | C88: 4 | D88: 3.452 | E88: 10 | F88: 3.14 | G88: 2 | H88: 0.959 | I88: 8 | J88: 0.999 | K88: 5 | L88: 0.961 | M88: 9 | N88: 1.002 | O88: 5 | P88: =[1]!Th230Age(L88, N88) -> 345.869897
A89: B11 | B89: 1.292 | C89: 5 | D89: 4.034 | E89: 15 | F89: 3.23 | G89: 2 | H89: 0.956 | I89: 11 | J89: 0.971 | K89: 5 | L89: 0.984 | M89: 11 | N89: 0.998 | O89: 4 | P89: =[1]!Th230Age(L89, N89) -> 470.1811673
A90: Iriga
A91: I12 | B91: 0.941 | C91: 3 | D91: 2.88 | E91: 9 | F91: 3.16 | G91: 2 | H91: 0.918 | I91: 8 | J91: 0.992 | K91: 5 | L91: 0.926 | M91: 9 | N91: 1.001 | O91: 4 | P91: =[1]!Th230Age(L91, N91) -> 281.4005889
A92: I13 | B92: 0.706 | C92: 3 | D92: 1.784 | E92: 12 | F92: 2.61 | G92: 2 | H92: 0.994 | I92: 11 | J92: 1.201 | K92: 10 | L92: 0.828 | M92: 8 | N92: 1.011 | O92: 7 | P92: =[1]!Th230Age(L92, N92) -> 184.6960469
A93: I14 | B93: 0.699 | C93: 3 | D93: 1.867 | E93: 5 | F93: 2.76 | G93: 2 | H93: 0.943 | I93: 8 | J93: 1.136 | K93: 6 | L93: 0.83 | M93: 8 | N93: 0.983 | O93: 7 | P93: =[1]!Th230Age(L93, N93) -> 204.799585
A94: I15 | B94: 0.712 | C94: 2 | D94: 1.739 | E94: 5 | F94: 2.52 | G94: 1 | H94: 1.032 | I94: 10 | J94: 1.243 | K94: 5 | L94: 0.83 | M94: 9 | N94: 1.009 | O94: 4 | P94: =[1]!Th230Age(L94, N94) -> 187.0620222

Sheet H13
A1: Table 2 | J1: Ratio | K1: Ratio | L1: Ratio | N1: Ratio | P1: Ratio | S1: Age (Ma) | U1: Age (Ma) | W1: Age (Ma)
A2: Sample | B2: Wt.(mg) | C2: U | D2: Th/U | E2: Pb | F2: 206Pb | G2: mol% | H2: Pb/Pb | I2: Pb | J2: 206Pb/204Pb | K2: 208Pb/206Pb | L2: 207Pb/206Pb | M2: %Err | N2: 207Pb/235U | O2: %Err | P2: 206Pb/238U | Q2: %Err | R2: corr. | S2: 207Pb/206Pb | T2: Err | U2: 207Pb/235U | V2: Err | W2: 206Pb/238U | X2: Err
C3: ppm | E3: ppm | F3: Mol | G3: 206Pb | I3: (pg)
A4: Jhs | B4: SEM4
A5: Z1 | B5: 0.01 | C5: 404 | D5: 0.74 | E5: 1.6 | F5: 0.5183 | G5: 0.9563 | H5: 7 | I5: 1.93 | J5: 426 | K5: 0.239 | L5: 0.046766 | M5: 0.696 | N5: 0.020677 | O5: 0.763 | P5: 0.003207 | Q5: 0.161 | R5: 0.504 | S5: 26.8 | T5: 16.65 | U5: 20.78 | V5: 0.16 | W5: 20.73 | X5: 0.03
A6: Z2 | B6: 0.056 | C6: 85 | D6: 0.781 | E6: 0.4 | F6: 0.6342 | G6: 0.9508 | H6: 6 | I6: 2.68 | J6: 377 | K6: 0.254 | L6: 0.047099 | M6: 0.756 | N6: 0.020808 | O6: 0.839 | P6: 0.003204 | Q6: 0.212 | R6: 0.497 | S6: 43.92 | T6: 18.03 | U6: 20.91 | V6: 0.17 | W6: 20.71 | X6: 0.04
A7: Z3 | B7: 0.02 | C7: 211 | D7: 0.87 | E7: 0.9 | F7: 0.5673 | G7: 0.9532 | H7: 7 | I7: 2.28 | J7: 397 | K7: 0.281 | L7: 0.046815 | M7: 0.649 | N7: 0.020642 | O7: 0.711 | P7: 0.003198 | Q7: 0.127 | R7: 0.551 | S7: 29.63 | T7: 15.54 | U7: 20.75 | V7: 0.15 | W7: 20.67 | X7: 0.03
A8: Z4 | B8: 0.02 | C8: 145 | D8: 0.863 | E8: 0.7 | F8: 0.393 | G8: 0.917 | H8: 4 | I8: 2.91 | J8: 224 | K8: 0.28 | L8: 0.046881 | M8: 1.2 | N8: 0.020639 | O8: 1.285 | P8: 0.003193 | Q8: 0.222 | R8: 0.456 | S8: 32.99 | T8: 28.69 | U8: 20.74 | V8: 0.26 | W8: 20.64 | X8: 0.05
A9: Z5 | B9: 0.032 | C9: 83 | D9: 0.747 | E9: 0.3 | F9: 0.3497 | G9: 0.9447 | H9: 6 | I9: 1.66 | J9: 336 | K9: 0.241 | L9: 0.046642 | M9: 0.707 | N9: 0.020637 | O9: 0.762 | P9: 0.003209 | Q9: 0.163 | R9: 0.434 | S9: 20.45 | T9: 16.94 | U9: 20.74 | V9: 0.16 | W9: 20.74 | X9: 0.03
A10: Z6 | B10: 0.023 | C10: 273 | D10: 0.745 | E10: 1.1 | F10: 0.8825 | G10: 0.9766 | H10: 14 | I10: 1.72 | J10: 794 | K10: 0.242 | L10: 0.047136 | M10: 0.587 | N10: 0.021734 | O10: 0.699 | P10: 0.003344 | Q10: 0.291 | R10: 0.563 | S10: 46.13 | T10: 13.99 | U10: 21.83 | V10: 0.15 | W10: 21.61 | X10: 0.06
A11: Z7 | B11: 0.029 | C11: 181 | D11: 0.803 | E11: 0.8 | F11: 0.7256 | G11: 0.9594 | H11: 8 | I11: 2.51 | J11: 458 | K11: 0.26 | L11: 0.046869 | M11: 0.403 | N11: 0.021733 | O11: 0.465 | P11: 0.003363 | Q11: 0.115 | R11: 0.624 | S11: 32.72 | T11: 9.64 | U11: 21.83 | V11: 0.1 | W11: 21.73 | X11: 0.02
A12: Z8 | B12: 0.04 | C12: 188 | D12: 0.865 | E12: 0.8 | F12: 1.0222 | G12: 0.9739 | H12: 13 | I12: 2.23 | J12: 713 | K12: 0.28 | L12: 0.046856 | M12: 0.496 | N12: 0.021234 | O12: 0.564 | P12: 0.003287 | Q12: 0.15 | R12: 0.559 | S12: 31.99 | T12: 11.87 | U12: 21.34 | V12: 0.12 | W12: 21.24 | X12: 0.03
A13: Jhs | B13: SEM7
A14: Z1 | B14: 0.006 | C14: 597 | D14: 0.758 | E14: 2.4 | F14: 0.4959 | G14: 0.9551 | H14: 7 | I14: 1.9 | J14: 414 | K14: 0.245 | L14: 0.046804 | M14: 0.52 | N14: 0.020714 | O14: 0.605 | P14: 0.00321 | Q14: 0.222 | R14: 0.538 | S14: 28.8 | T14: 12.45 | U14: 20.82 | V14: 0.12 | W14: 20.75 | X14: 0.05
A15: Z2 | B15: 0.026 | C15: 139 | D15: 0.641 | E15: 0.7 | F15: 0.592 | G15: 0.9608 | H15: 8 | I15: 1.93 | J15: 476 | K15: 0.205 | L15: 0.046456 | M15: 1.07 | N15: 0.02484 | O15: 1.112 | P15: 0.003878 | Q15: 0.144 | R15: 0.349 | S15: 12.24 | T15: 25.7 | U15: 24.91 | V15: 0.27 | W15: 25.05 | X15: 0.04
A16: Z3 | B16: 0.021 | C16: 165 | D16: 0.782 | E16: 0.8 | F16: 0.5623 | G16: 0.9551 | H16: 7 | I16: 2.12 | J16: 416 | K16: 0.252 | L16: 0.046794 | M16: 1.048 | N16: 0.024677 | O16: 1.106 | P16: 0.003825 | Q16: 0.257 | R16: 0.334 | S16: 29.82 | T16: 25.09 | U16: 24.75 | V16: 0.27 | W16: 24.7 | X16: 0.06
A17: Z4 | B17: 0.024 | C17: 85 | D17: 0.622 | E17: 0.4 | F17: 0.2941 | G17: 0.9427 | H17: 5 | I17: 1.45 | J17: 325 | K17: 0.202 | L17: 0.046957 | M17: 1.035 | N17: 0.021901 | O17: 1.108 | P17: 0.003383 | Q17: 0.215 | R17: 0.428 | S17: 36.81 | T17: 24.72 | U17: 22 | V17: 0.24 | W17: 21.86 | X17: 0.05
A18: Z5 | B18: 0.026 | C18: 158 | D18: 0.828 | E18: 0.7 | F18: 0.5387 | G18: 0.9566 | H18: 7 | I18: 1.99 | J18: 428 | K18: 0.268 | L18: 0.046879 | M18: 0.632 | N18: 0.020734 | O18: 0.724 | P18: 0.003208 | Q18: 0.249 | R18: 0.519 | S18: 32.81 | T18: 15.1 | U18: 20.84 | V18: 0.15 | W18: 20.73 | X18: 0.05
A19: Z6 | B19: 0.023 | C19: 77 | D19: 0.729 | E19: 0.4 | F19: 0.2418 | G19: 0.9103 | H19: 3 | I19: 0.15 | J19: 207 | K19: 0.237 | L19: 0.047143 | M19: 1.576 | N19: 0.021035 | O19: 1.672 | P19: 0.003236 | Q19: 0.265 | R19: 0.429 | S19: 46.07 | T19: 37.59 | U19: 21.14 | V19: 0.35 | W19: 20.92 | X19: 0.06

Sheet H14
A1: Mount Erebus | K1: Sample 1316 | L1: Age Ratio | M1: Sample 1317 | N1: Age Ratio | O1: Sample 1330 | P1: Age Ratio | Q1: Sample 1331 | R1: Age Ratio | S1: Sample 1332 | T1: Age Ratio
A2: Sample 1316 | B2: Apparent Age | C2: Error | D2: Recalculated Age | E2: Error | F2: Apparent Age | G2: Recalculated Age | H2: Apparent Age | I2: Recalculated Age | K2: Age Ka | M2: Age Ka | O2: Age Ka | Q2: Age Ka | S2: Age Ka
A3: Anorthoclase Phenocryst | B3: Years | C3: Years | D3: Years | E3: Years | F3: Percentage Error | G3: Percentage Error | H3: Error Ratio | I3: Error Ratio | K3: 273 | L3: =(K3 * 1000)/13 -> 21000 | M3: 374 | N3: =(M3 * 1000)/13 -> 28769.23077 | O3: 4371 | P3: =(O3 * 1000)/13 -> 336230.7692 | Q3: 5867 | R3: =(Q3 * 1000)/13 -> 451307.6923 | S3: -999 | T3: =(S3 * 1000)/13 -> -76846.15385
A4: 600 | B4: 273000 | C4: 151000 | D4: 107000 | E4: 159000 | F4: =(B4/13)*100 -> 2100000 | G4: =(D4/13)*100 -> 823076.9231 | H4: =(B4/13) -> 21000 | I4: =(D4/13) -> 8230.769231 | K4: 97 | L4: =(K4 * 1000)/13 -> 7461.538462 | M4: 227 | N4: =(M4 * 1000)/13 -> 17461.53846 | O4: 507 | P4: =(O4 * 1000)/13 -> 39000 | Q4: 4716 | R4: 362769.2308 | S4: -999 | T4: =(S4 * 1000)/13 -> -76846.15385
A5: 600 | B5: 97000 | C5: 22000 | D5: 17000 | E5: 23000 | F5: =(B5/13)*100 -> 746153.8462 | G5: =(D5/13)*100 -> 130769.2308 | H5: =(B5/13) -> 7461.538462 | I5: =(D5/13) -> 1307.692308 | K5: 38 | L5: 2923.076923 | M5: 275 | N5: 21153.84615 | O5: 86 | P5: 6615.384615 | Q5: 1801 | R5: 138538.4615 | S5: -86 | T5: =(S5 * 1000)/13 -> -6615.384615
A6: 700 | B6: 38000 | C6: 8000 | D6: 1000 | E6: 8000 | F6: 292307.6923 | G6: 7692.307692 | H6: 2923.076923 | I6: 76.92307692 | K6: 28 | L6: 2153.846154 | M6: 281 | N6: 21615.38462 | O6: 166 | P6: 12769.23077 | Q6: 1120 | R6: 86153.84615 | S6: 43 | T6: =(S6 * 1000)/13 -> 3307.692308
A7: 700 | B7: 28000 | C7: 7000 | D7: 2000 | E7: 8000 | F7: 215384.6154 | G7: 15384.61538 | H7: 2153.846154 | I7: 153.8461538 | K7: 25 | L7: 1923.076923 | M7: 246 | N7: 18923.07692 | O7: 41 | P7: 3153.846154 | Q7: 984 | R7: 75692.30769 | S7: 23 | T7: =(S7 * 1000)/13 -> 1769.230769
A8: 800 | B8: 25000 | C8: 3000 | D8: -5000 | E8: 3000 | F8: 192307.6923 | G8: -38461.53846 | H8: 1923.076923 | I8: -384.6153846 | K8: 28 | L8: 2153.846154 | M8: 240 | N8: 18461.53846 | O8: 33 | P8: 2538.461538 | Q8: 1010 | R8: 77692.30769 | S8: 33 | T8: =(S8 * 1000)/13 -> 2538.461538
A9: 800 | B9: 28000 | C9: 3000 | D9: -5000 | E9: 3000 | F9: 215384.6154 | G9: -38461.53846 | H9: 2153.846154 | I9: -384.6153846 | K9: 19 | L9: 1461.538462 | M9: 263 | N9: 20230.76923 | O9: 21 | P9: 1615.384615 | Q9: 950 | R9: 73076.92308 | S9: 35 | T9: =(S9 * 1000)/13 -> 2692.307692
A10: 900 | B10: 19000 | C10: 2000 | D10: 1000 | E10: 2000 | F10: 146153.8462 | G10: 7692.307692 | H10: 1461.538462 | I10: 76.92307692 | K10: 10 | L10: 769.2307692 | M10: 225 | N10: 17307.69231 | O10: 16 | P10: 1230.769231 | Q10: 834 | R10: 64153.84615 | S10: 246 | T10: =(S10 * 1000)/13 -> 18923.07692
A11: 900 | B11: 10000 | C11: 2000 | D11: 1000 | E11: 2000 | F11: 76923.07692 | G11: 7692.307692 | H11: 769.2307692 | I11: 76.92307692 | K11: 12 | L11: 923.0769231 | M11: 209 | N11: 16076.92308 | O11: 9 | P11: 692.3076923 | Q11: 824 | R11: 63384.61538 | S11: 64 | T11: =(S11 * 1000)/13 -> 4923.076923
A12: 1000 | B12: 12000 | C12: 2000 | D12: -3000 | E12: 2000 | F12: 92307.69231 | G12: -23076.92308 | H12: 923.0769231 | I12: -230.7692308 | K12: 16 | L12: 1230.769231 | M12: 78 | N12: 6000 | O12: 10 | P12: 769.2307692 | Q12: 1278 | R12: 98307.69231 | S12: 82 | T12: =(S12 * 1000)/13 -> 6307.692308
A13: 1000 | B13: 16000 | C13: 3000 | D13: 5000 | E13: 3000 | F13: 123076.9231 | G13: 38461.53846 | H13: 1230.769231 | I13: 384.6153846 | K13: 33 | L13: 2538.461538 | M13: 96 | N13: 7384.615385 | O13: 5 | P13: 384.6153846 | Q13: 628 | R13: 48307.69231 | S13: 104 | T13: =(S13 * 1000)/13 -> 8000
A14: 1100 | B14: 33000 | C14: 3000 | D14: -7000 | E14: 3000 | F14: 253846.1538 | G14: -53846.15385 | H14: 2538.461538 | I14: -538.4615385 | K14: 38 | L14: 2923.076923 | M14: 11 | N14: 846.1538462 | O14: 28 | P14: 2153.846154 | Q14: 732 | R14: 56307.69231 | S14: 126 | T14: =(S14 * 1000)/13 -> 9692.307692
A15: 1100 | B15: 38000 | C15: 5000 | D15: 6000 | E15: 5000 | F15: 292307.6923 | G15: 46153.84615 | H15: 2923.076923 | I15: 461.5384615 | K15: 111 | L15: 8538.461538 | M15: 41 | N15: 3153.846154 | O15: 15 | P15: 1153.846154 | Q15: 1 | R15: 76.92307692 | S15: 126 | T15: =(S15 * 1000)/13 -> 9692.307692
A16: 1200 | B16: 111000 | C16: 5000 | D16: -29000 | E16: 6000 | F16: 853846.1538 | G16: -223076.9231 | H16: 8538.461538 | I16: -2230.769231 | K16: 77 | L16: 5923.076923 | M16: 15 | N16: 1153.846154 | O16: 142 | P16: 10923.07692 | Q16: 109 | R16: 8384.615385 | S16: 153 | T16: =(S16 * 1000)/13 -> 11769.23077
A17: 1200 | B17: 77000 | C17: 8000 | D17: -19000 | E17: 9000 | F17: 592307.6923 | G17: -146153.8462 | H17: 5923.076923 | I17: -1461.538462 | K17: 139 | L17: 10692.30769 | M17: 78 | N17: 6000 | O17: 86 | P17: 6615.384615 | Q17: -24 | R17: -1846.153846 | S17: 168 | T17: =(S17 * 1000)/13 -> 12923.07692
A18: 1300 | B18: 139000 | C18: 3000 | D18: -42000 | E18: 4000 | F18: 1069230.769 | G18: -323076.9231 | H18: 10692.30769 | I18: -3230.769231 | K18: 61 | L18: 4692.307692 | M18: 48 | N18: 3692.307692 | O18: 149 | P18: 11461.53846 | Q18: 154 | R18: 11846.15385 | S18: 172 | T18: =(S18 * 1000)/13 -> 13230.76923
A19: 1300 | B19: 61000 | C19: 7000 | D19: -48000 | E19: 8000 | F19: 469230.7692 | G19: -369230.7692 | H19: 4692.307692 | I19: -3692.307692 | K19: 139 | L19: 10692.30769 | M19: 57 | N19: 4384.615385 | O19: 82 | P19: 6307.692308 | Q19: 84 | R19: 6461.538462 | S19: 263 | T19: =(S19 * 1000)/13 -> 20230.76923
A20: 1400 | B20: 139000 | C20: 11000 | D20: -19000 | E20: 11000 | F20: 1069230.769 | G20: -146153.8462 | H20: 10692.30769 | I20: -1461.538462 | K20: 66 | L20: 5076.923077 | M20: 128 | N20: 9846.153846 | O20: 72 | P20: 5538.461538 | Q20: 90 | R20: 6923.076923 | S20: 337 | T20: =(S20 * 1000)/13 -> 25923.07692
A21: 1550 | B21: 66000 | C21: 24000 | D21: -36000 | E21: 26000 | F21: 507692.3077 | G21: -276923.0769 | H21: 5076.923077 | I21: -2769.230769 | M21: -894 | N21: -68769.23077 | O21: 88 | P21: 6769.230769 | Q21: 56 | R21: 4307.692308 | S21: 9419 | T21: =(S21 * 1000)/13 -> 724538.4615
A22: Sample 1317 | B22: Apparent Age | C22: Error | D22: Recalculated Age | E22: Error | F22: Apparent Age | G22: Recalculated Age | H22: Apparent Age | I22: Recalculated Age | O22: 88 | P22: 6769.230769 | Q22: 71 | R22: 5461.538462 | S22: 650 | T22: =(S22 * 1000)/13 -> 50000
A23: Anorthoclase Phenocryst | B23: Years | C23: Years | D23: Years | E23: Years | F23: Percentage Error | G23: Percentage Error | H23: Error Ratio | I23: Error Ratio | O23: 129 | P23: 9923.076923 | Q23: 248 | R23: 19076.92308 | T23: =(S23 * 1000)/13 -> 0
A24: 600 | B24: 374000 | C24: 96000 | D24: -1399000 | E24: 111000 | F24: =(B24/13)*100 -> 2876923.077 | G24: =(D24/13)*100 -> -10761538.46 | H24: =(B24/13) -> 28769.23077 | I24: =(D24/13) -> -107615.3846 | O24: 671 | P24: 51615.38462 | R24: 0 | T24: =(S24 * 1000)/13 -> 0
A25: 600 | B25: 227000 | C25: 18000 | D25: -110000 | E25: 22000 | F25: 1746153.846 | G25: -846153.8462 | H25: 17461.53846 | I25: -8461.538462
A26: 700 | B26: 275000 | C26: 7000 | D26: -17000 | E26: 8000 | F26: 2115384.615 | G26: -130769.2308 | H26: 21153.84615 | I26: -1307.692308
A27: 700 | B27: 281000 | C27: 8000 | D27: -11000 | E27: 9000 | F27: 2161538.462 | G27: -84615.38462 | H27: 21615.38462 | I27: -846.1538462
A28: 800 | B28: 246000 | C28: 4000 | D28: -23000 | E28: 4000 | F28: 1892307.692 | G28: -176923.0769 | H28: 18923.07692 | I28: -1769.230769
A29: 800 | B29: 240000 | C29: 4000 | D29: 40000 | E29: 4000 | F29: 1846153.846 | G29: 307692.3077 | H29: 18461.53846 | I29: 3076.923077
A30: 900 | B30: 263000 | C30: 3000 | D30: 2000 | E30: 4000 | F30: 2023076.923 | G30: 15384.61538 | H30: 20230.76923 | I30: 153.8461538
A31: 900 | B31: 225000 | C31: 3000 | D31: 23000 | E31: 4000 | F31: 1730769.231 | G31: 176923.0769 | H31: 17307.69231 | I31: 1769.230769
A32: 1000 | B32: 209000 | C32: 3000 | D32: 8000 | E32: 4000 | F32: 1607692.308 | G32: 61538.46154 | H32: 16076.92308 | I32: 615.3846154
A33: 1000 | B33: 78000 | C33: 5000 | D33: 57000 | E33: 6000 | F33: 600000 | G33: 438461.5385 | H33: 6000 | I33: 4384.615385
A34: 1100 | B34: 96000 | C34: 6000 | D34: 64000 | E34: 7000 | F34: 738461.5385 | G34: 492307.6923 | H34: 7384.615385 | I34: 4923.076923
A35: 1100 | B35: 11000 | C35: -11000 | D35: 40000 | E35: 13000 | F35: 84615.38462 | G35: 307692.3077 | H35: 846.1538462 | I35: 3076.923077
A36: 1200 | B36: 41000 | C36: 8000 | D36: 23000 | E36: 9000 | F36: 315384.6154 | G36: 176923.0769 | H36: 3153.846154 | I36: 1769.230769
A37: 1200 | B37: 15000 | C37: 13000 | D37: 4000 | E37: 15000 | F37: 115384.6154 | G37: 30769.23077 | H37: 1153.846154 | I37: 307.6923077
A38: 1300 | B38: 78000 | C38: 6000 | D38: 40000 | E38: 7000 | F38: 600000 | G38: 307692.3077 | H38: 6000 | I38: 3076.923077
A39: 1300 | B39: 48000 | C39: 13000 | D39: 22000 | E39: 15000 | F39: 369230.7692 | G39: 169230.7692 | H39: 3692.307692 | I39: 1692.307692
A40: 1400 | B40: 57000 | C40: 8000 | D40: 30000 | E40: 9000 | F40: 438461.5385 | G40: 230769.2308 | H40: 4384.615385 | I40: 2307.692308
A41: 1550 | B41: 128000 | C41: 75000 | D41: 75000 | E41: 87000 | F41: 984615.3846 | G41: 576923.0769 | H41: 9846.153846 | I41: 5769.230769
A42: 1550 | B42: -894000 | C42: 999000 | D42: -997000 | E42: 999000 | F42: -6876923.077 | G42: -7669230.769 | H42: -68769.23077 | I42: -76692.30769
A43: Sample 1330 | B43: Apparent Age | C43: Error | D43: Recalculated Age | E43: Error | F43: Apparent Age | G43: Recalculated Age | H43: Apparent Age | I43: Recalculated Age
A44: Anorthoclase Phenocryst | B44: Years | C44: Years | D44: Years | E44: Years | F44: Percentage Error | G44: Percentage Error | H44: Error Ratio | I44: Error Ratio
A45: 550 | B45: 4371000 | C45: 999000 | D45: 3372000 | E45: 999000 | F45: =(B45/13)*100 -> 33623076.92 | G45: =(D45/13)*100 -> 25938461.54 | H45: =(B45/13) -> 336230.7692 | I45: =(D45/13) -> 259384.6154
A46: 600 | B46: 507000 | C46: 999000 | D46: 119000 | E46: 999000 | F46: 3900000 | G46: 915384.6154 | H46: 39000 | I46: 9153.846154
A47: 600 | B47: 86000 | C47: 745000 | D47: 115000 | E47: 840000 | F47: 661538.4615 | G47: 884615.3846 | H47: 6615.384615 | I47: 8846.153846
A48: 700 | B48: 166000 | C48: 54000 | D48: 134000 | E48: 61000 | F48: 1276923.077 | G48: 1030769.231 | H48: 12769.23077 | I48: 10307.69231
A49: 700 | B49: 41000 | C49: 12000 | D49: 32000 | E49: 13000 | F49: 315384.6154 | G49: 246153.8462 | H49: 3153.846154 | I49: 2461.538462
A50: 800 | B50: 33000 | C50: 5000 | D50: 21000 | E50: 6000 | F50: 253846.1538 | G50: 161538.4615 | H50: 2538.461538 | I50: 1615.384615
A51: 800 | B51: 21000 | C51: 3000 | D51: 16000 | E51: 4000 | F51: 161538.4615 | G51: 123076.9231 | H51: 1615.384615 | I51: 1230.769231
A52: 900 | B52: 16000 | C52: 2000 | D52: 8000 | E52: 2000 | F52: 123076.9231 | G52: 61538.46154 | H52: 1230.769231 | I52: 615.3846154
A53: 900 | B53: 9000 | C53: 2000 | D53: 6000 | E53: 3000 | F53: 69230.76923 | G53: 46153.84615 | H53: 692.3076923 | I53: 461.5384615
A54: 1000 | B54: 10000 | C54: 2000 | D54: 6000 | E54: 2000 | F54: 76923.07692 | G54: 46153.84615 | H54: 769.2307692 | I54: 461.5384615
A55: 1000 | B55: 5000 | C55: 2000 | D55: 0 | E55: 2000 | F55: 38461.53846 | G55: 0 | H55: 384.6153846 | I55: 0
A56: 1100 | B56: 28000 | C56: 2000 | D56: 11000 | E56: 2000 | F56: 215384.6154 | G56: 84615.38462 | H56: 2153.846154 | I56: 846.1538462
A57: 1100 | B57: 15000 | C57: 4000 | D57: 10000 | E57: 5000 | F57: 115384.6154 | G57: 76923.07692 | H57: 1153.846154 | I57: 769.2307692
A58: 1200 | B58: 142000 | C58: 4000 | D58: 90000 | E58: 5000 | F58: 1092307.692 | G58: 692307.6923 | H58: 10923.07692 | I58: 6923.076923
A59: 1200 | B59: 86000 | C59: 9000 | D59: 54000 | E59: 10000 | F59: 661538.4615 | G59: 415384.6154 | H59: 6615.384615 | I59: 4153.846154
A60: 1300 | B60: 149000 | C60: 2000 | D60: 89000 | E60: 3000 | F60: 1146153.846 | G60: 684615.3846 | H60: 11461.53846 | I60: 6846.153846
A61: 1300 | B61: 82000 | C61: 5000 | D61: 47000 | E61: 6000 | F61: 630769.2308 | G61: 361538.4615 | H61: 6307.692308 | I61: 3615.384615
A62: 1400 | B62: 72000 | C62: 13000 | D62: 28000 | E62: 15000 | F62: 553846.1538 | G62: 215384.6154 | H62: 5538.461538 | I62: 2153.846154
A63: 1400 | B63: 88000 | C63: 44000 | D63: 41000 | E63: 50000 | F63: 676923.0769 | G63: 315384.6154 | H63: 6769.230769 | I63: 3153.846154
A64: 1500 | B64: 88000 | C64: 8000 | D64: 59000 | E64: 9000 | F64: 676923.0769 | G64: 453846.1538 | H64: 6769.230769 | I64: 4538.461538
A65: 1650 | B65: 129000 | C65: 25000 | D65: 95000 | E65: 28000 | F65: 992307.6923 | G65: 730769.2308 | H65: 9923.076923 | I65: 7307.692308
A66: 1650 | B66: 671000 | C66: 834000 | D66: 116000 | E66: 941000 | F66: 5161538.462 | G66: 892307.6923 | H66: 51615.38462 | I66: 8923.076923
A67: Sample 1331 | B67: Apparent Age | C67: Error | D67: Recalculated Age | E67: Error | F67: Apparent Age | G67: Recalculated Age | H67: Apparent Age | I67: Recalculated Age
A68: Anorthoclase Phenocryst | B68: Years | C68: Years | D68: Years | E68: Years | F68: Percentage Error | G68: Percentage Error | H68: Error Ratio | I68: Error Ratio
A69: 550 | B69: 5867000 | C69: 999000 | D69: -19111000 | E69: 999000 | F69: =(B69/13)*100 -> 45130769.23 | G69: =(D69/13)*100 -> -147007692.3 | H69: =(B69/13) -> 451307.6923 | I69: =(D69/13) -> -1470076.923
A70: 600 | B70: 4716000 | C70: 999000 | D70: -151000 | E70: 999000 | F70: 36276923.08 | G70: -1161538.462 | H70: 362769.2308 | I70: -11615.38462
A71: 600 | B71: 1801000 | C71: 479000 | D71: -121000 | E71: 507000 | F71: 13853846.15 | G71: -930769.2308 | H71: 138538.4615 | I71: -9307.692308
A72: 700 | B72: 1120000 | C72: 39000 | D72: -53000 | E72: 41000 | F72: 8615384.615 | G72: -407692.3077 | H72: 86153.84615 | I72: -4076.923077
A73: 700 | B73: 984000 | C73: 17000 | D73: 65000 | E73: 18000 | F73: 7569230.769 | G73: 500000 | H73: 75692.30769 | I73: 5000
A74: 800 | B74: 1010000 | C74: 9000 | D74: 162000 | E74: 9000 | F74: 7769230.769 | G74: 1246153.846 | H74: 77692.30769 | I74: 12461.53846
A75: 800 | B75: 950000 | C75: 7000 | D75: 157000 | E75: 8000 | F75: 7307692.308 | G75: 1207692.308 | H75: 73076.92308 | I75: 12076.92308
A76: 900 | B76: 834000 | C76: 5000 | D76: 174000 | E76: 5000 | F76: 6415384.615 | G76: 1338461.538 | H76: 64153.84615 | I76: 13384.61538
A77: 900 | B77: 824000 | C77: 5000 | D77: 193000 | E77: 5000 | F77: 6338461.538 | G77: 1484615.385 | H77: 63384.61538 | I77: 14846.15385
A78: 1000 | B78: 1278000 | C78: 5000 | D78: 365000 | E78: 5000 | F78: 9830769.231 | G78: 2807692.308 | H78: 98307.69231 | I78: 28076.92308
A79: 1000 | B79: 628000 | C79: 5000 | D79: 182000 | E79: 5000 | F79: 4830769.231 | G79: 1400000 | H79: 48307.69231 | I79: 14000
A80: 1100 | B80: 732000 | C80: 6000 | D80: 200000 | E80: 6000 | F80: 5630769.231 | G80: 1538461.538 | H80: 56307.69231 | I80: 15384.61538
A81: 1100 | B81: 1000 | C81: 9000 | D81: -15000 | E81: 10000 | F81: 7692.307692 | G81: -115384.6154 | H81: 76.92307692 | I81: -1153.846154
A82: 1200 | B82: 109000 | C82: 7000 | D82: -3000 | E82: 7000 | F82: 838461.5385 | G82: -23076.92308 | H82: 8384.615385 | I82: -230.7692308
A83: 1200 | B83: -24000 | C83: 12000 | D83: -41000 | E83: 12000 | F83: -184615.3846 | G83: -315384.6154 | H83: -1846.153846 | I83: -3153.846154
A84: 1300 | B84: 154000 | C84: 5000 | D84: -89000 | E84: 5000 | F84: 1184615.385 | G84: -684615.3846 | H84: 11846.15385 | I84: -6846.153846
A85: 1300 | B85: 84000 | C85: 6000 | D85: -35000 | E85: 6000 | F85: 646153.8462 | G85: -269230.7692 | H85: 6461.538462 | I85: -2692.307692
A86: 1400 | B86: 90000 | C86: 7000 | D86: -40000 | E86: 8000 | F86: 692307.6923 | G86: -307692.3077 | H86: 6923.076923 | I86: -3076.923077
A87: 1500 | B87: 56000 | C87: 11000 | D87: -39000 | E87: 12000 | F87: 430769.2308 | G87: -300000 | H87: 4307.692308 | I87: -3000
A88: 1650 | B88: 71000 | C88: 16000 | D88: -97000 | E88: 17000 | F88: 546153.8462 | G88: -746153.8462 | H88: 5461.538462 | I88: -7461.538462
A89: 1650 | B89: 248000 | C89: 93000 | D89: 126000 | E89: 98000 | F89: 1907692.308 | G89: 969230.7692 | H89: 19076.92308 | I89: 9692.307692
A90: Sample 1332 | B90: Apparent Age | C90: Error | D90: Recalculated Age | E90: Error | F90: Apparent Age | H90: Apparent Age
A91: Bomb Matrix Glass | B91: Years | C91: Years | D91: Years | E91: Years | F91: Percentage Error | H91: Error Ratio
A92: 550 | B92: -999000 | C92: 999000 | D92: None | E92: None | F92: =(B92/13)*100 -> -7684615.385 | G92: None | H92: =(B92/13) -> -76846.15385 | I92: None
A93: 600 | B93: -999000 | C93: 367000 | D93: None | E93: None | F93: -7684615.385 | G93: None | H93: -76846.15385 | I93: None
A94: 600 | B94: -86000 | C94: 194000 | D94: None | E94: None | F94: -661538.4615 | G94: None | H94: -6615.384615 | I94: None
A95: 700 | B95: 43000 | C95: 14000 | D95: None | E95: None | F95: 330769.2308 | G95: None | H95: 3307.692308 | I95: None
A96: 700 | B96: 23000 | C96: 6000 | D96: None | E96: None | F96: 176923.0769 | G96: None | H96: 1769.230769 | I96: None
A97: 800 | B97: 33000 | C97: 10000 | D97: None | E97: None | F97: 253846.1538 | G97: None | H97: 2538.461538 | I97: None
A98: 800 | B98: 35000 | C98: 2000 | D98: None | E98: None | F98: 269230.7692 | G98: None | H98: 2692.307692 | I98: None
A99: 900 | B99: 246000 | C99: 27000 | D99: None | E99: None | F99: 1892307.692 | G99: None | H99: 18923.07692 | I99: None
A100: 900 | B100: 64000 | C100: 1000 | D100: None | E100: None | F100: 492307.6923 | G100: None | H100: 4923.076923 | I100: None
A101: 1000 | B101: 82000 | C101: 1000 | D101: None | E101: None | F101: 630769.2308 | G101: None | H101: 6307.692308 | I101: None
A102: 1000 | B102: 104000 | C102: 2000 | D102: None | E102: None | F102: 800000 | G102: None | H102: 8000 | I102: None
A103: 1100 | B103: 126000 | C103: 2000 | D103: None | E103: None | F103: 969230.7692 | G103: None | H103: 9692.307692 | I103: None
A104: 1100 | B104: 126000 | C104: 5000 | D104: None | E104: None | F104: 969230.7692 | G104: None | H104: 9692.307692 | I104: None
A105: 1200 | B105: 153000 | C105: 6000 | D105: None | E105: None | F105: 1176923.077 | G105: None | H105: 11769.23077 | I105: None
A106: 1200 | B106: 168000 | C106: 42000 | D106: None | E106: None | F106: 1292307.692 | G106: None | H106: 12923.07692 | I106: None
A107: 1300 | B107: 172000 | C107: 36000 | D107: None | E107: None | F107: 1323076.923 | G107: None | H107: 13230.76923 | I107: None
A108: 1300 | B108: 263000 | C108: 449000 | D108: None | E108: None | F108: 2023076.923 | G108: None | H108: 20230.76923 | I108: None
A109: 1400 | B109: 337000 | C109: 609000 | D109: None | E109: None | F109: 2592307.692 | G109: None | H109: 25923.07692 | I109: None
A110: 1400 | B110: 9419000 | C110: 999000 | D110: None | E110: None | F110: 72453846.15 | G110: None | H110: 724538.4615 | I110: None
A111: 1650 | B111: 650000 | C111: 491000 | D111: None | E111: None | F111: 5000000 | G111: None | H111: 50000 | I111: None
A112: 1984 Lava Flow In Antarctica
A113: Dated in 1997, 13 years old
A114: R. P. Esser, And W. C. Mcintosh
B120: Sample 1316 | C120: Sample 1317 | D120: Sample 1330 | E120: Sample 1331 | F120: Sample 1332 | G120: Sample 1316 | H120: Sample 1317 | I120: Sample 1330 | J120: Sample 1331 | K120: Sample 1332
B121: Age (ka) | C121: Age (ka) | D121: Age (ka) | E121: Age (ka) | F121: Age (ka) | G121: Error Ratio | H121: Error Ratio | I121: Error Ratio | J121: Error Ratio | K121: Error Ratio
B122: 273 | C122: -894 | D122: 4371 | E122: 5867 | F122: 9419 | G122: =B122/17000 -> 0.01605882353 | H122: =C122/17000 -> -0.05258823529 | I122: =D122/17000 -> 0.2571176471 | J122: =E122/17000 -> 0.3451176471 | K122: =F122/17000 -> 0.5540588235
B123: 97 | C123: 374 | D123: 671 | E123: 4716 | F123: -999 | G123: =B123/17000 -> 0.005705882353 | H123: 0.022 | I123: 0.03947058824 | J123: 0.2774117647 | K123: -0.05876470588
B124: 38 | C124: 281 | D124: 507 | E124: 1801 | F124: -999 | G124: 0.002235294118 | H124: 0.01652941176 | I124: 0.02982352941 | J124: 0.1059411765 | K124: -0.05876470588
B125: 28 | C125: 275 | D125: 166 | E125: 1278 | F125: 650 | G125: 0.001647058824 | H125: 0.01617647059 | I125: 0.009764705882 | J125: 0.07517647059 | K125: 0.03823529412
B126: 25 | C126: 263 | D126: 149 | E126: 1120 | F126: 337 | G126: 0.001470588235 | H126: 0.01547058824 | I126: 0.008764705882 | J126: 0.06588235294 | K126: 0.01982352941
B127: 28 | C127: 246 | D127: 142 | E127: 1010 | F127: 263 | G127: 0.001647058824 | H127: 0.01447058824 | I127: 0.008352941176 | J127: 0.05941176471 | K127: 0.01547058824
B128: 19 | C128: 240 | D128: 129 | E128: 984 | F128: 246 | G128: 0.001117647059 | H128: 0.01411764706 | I128: 0.007588235294 | J128: 0.05788235294 | K128: 0.01447058824
B129: 10 | C129: 227 | D129: 88 | E129: 950 | F129: 172 | G129: 0.0005882352941 | H129: 0.01335294118 | I129: 0.005176470588 | J129: 0.05588235294 | K129: 0.01011764706
B130: 12 | C130: 225 | D130: 88 | E130: 834 | F130: 168 | G130: 0.0007058823529 | H130: 0.01323529412 | I130: 0.005176470588 | J130: 0.04905882353 | K130: 0.009882352941
B131: 16 | C131: 209 | D131: 86 | E131: 824 | F131: 153 | G131: 0.0009411764706 | H131: 0.01229411765 | I131: 0.005058823529 | J131: 0.04847058824 | K131: 0.009
B132: 33 | C132: 128 | D132: 86 | E132: 732 | F132: 126 | G132: 0.001941176471 | H132: 0.007529411765 | I132: 0.005058823529 | J132: 0.04305882353 | K132: 0.007411764706
B133: 38 | C133: 96 | D133: 82 | E133: 628 | F133: 126 | G133: 0.002235294118 | H133: 0.005647058824 | I133: 0.004823529412 | J133: 0.03694117647 | K133: 0.007411764706
B134: 111 | C134: 78 | D134: 72 | E134: 248 | F134: 104 | G134: 0.006529411765 | H134: 0.004588235294 | I134: 0.004235294118 | J134: 0.01458823529 | K134: 0.006117647059
B135: 77 | C135: 78 | D135: 41 | E135: 154 | F135: 86 | G135: 0.004529411765 | H135: 0.004588235294 | I135: 0.002411764706 | J135: 0.009058823529 | K135: 0.005058823529
B136: 139 | C136: 57 | D136: 33 | E136: 109 | F136: 82 | G136: 0.008176470588 | H136: 0.003352941176 | I136: 0.001941176471 | J136: 0.006411764706 | K136: 0.004823529412
B137: 61 | C137: 48 | D137: 28 | E137: 90 | F137: 64 | G137: 0.003588235294 | H137: 0.002823529412 | I137: 0.001647058824 | J137: 0.005294117647 | K137: 0.003764705882
B138: 139 | C138: 41 | D138: 21 | E138: 84 | F138: 43 | G138: 0.008176470588 | H138: 0.002411764706 | I138: 0.001235294118 | J138: 0.004941176471 | K138: 0.002529411765
B139: 66 | C139: 15 | D139: 16 | E139: 71 | F139: 35 | G139: 0.003882352941 | H139: 0.0008823529412 | I139: 0.0009411764706 | J139: 0.004176470588 | K139: 0.002058823529
C140: 11 | D140: 15 | E140: 56 | F140: 33 | G140: 0 | H140: 0.0006470588235 | I140: 0.0008823529412 | J140: 0.003294117647 | K140: 0.001941176471
D141: 10 | E141: -24 | F141: 23 | G141: 0 | H141: 0 | I141: 0.0005882352941 | J141: -0.001411764706 | K141: 0.001352941176
D142: 9 | E142: 1
D143: 5
A144: Average | B144: =AVERAGE(B122:B143) -> 67.22222222 | C144: 105.1578947 | D144: =AVERAGE(D122:D143) -> 309.7727273 | E144: =AVERAGE(E122:E143) -> 1025.380952 | F144: 506.6
A145: Maximum | B145: =MAX(B122:B144) -> 273 | C145: 374 | D145: =MAX(D122:D144) -> 4371 | E145: =MAX(E122:E144) -> 5867 | F145: 9419
A146: Minimum | B146: =MIN(B122:B145) -> 10 | C146: -894 | D146: =MIN(D122:D145) -> 5 | E146: =MIN(E122:E145) -> -24 | F146: -999
A147: Difference | B147: =B145-B146 -> 263 | C147: 1268 | D147: =D145-D146 -> 4366 | E147: =E145-E146 -> 5891 | F147: 10418
B148: Sample 1316 | C148: Sample 1317 | D148: Sample 1330 | E148: Sample 1331 | F148: Sample 1332 | G148: Sample 1316 | H148: Sample 1317 | I148: Sample 1330 | J148: Sample 1331 | K148: Sample 1332
B149: Recalc Age (ka) | C149: Recalc Age (ka) | D149: Recalc Age (ka) | E149: Recalc Age (ka) | F149: Recalc Age (ka) | G149: Error Ratio | H149: Error Ratio | I149: Error Ratio | J149: Error Ratio | K149: Error Ratio
B150: 107 | C150: -1399 | D150: 3372 | E150: -19111 | F150: None | G150: =(B150/1)/17 -> 6.294117647 | H150: =(C150/1)/17 -> -82.29411765 | I150: =(D150/1)/17 -> 198.3529412 | J150: =(E150/1)/17 -> -1124.176471
B151: 17 | C151: -110 | D151: 119 | E151: -151 | F151: None | G151: =(B151/1)/17 -> 1 | H151: =(C151/1)/17 -> -6.470588235 | I151: =(D151/1)/17 -> 7 | J151: =(E151/1)/17 -> -8.882352941
B152: 1 | C152: -17 | D152: 115 | E152: -121 | F152: None | G152: 0.05882352941 | H152: -1 | I152: 6.764705882 | J152: -7.117647059
B153: 2 | C153: -11 | D153: 134 | E153: -53 | F153: None | G153: 0.1176470588 | H153: -0.6470588235 | I153: 7.882352941 | J153: -3.117647059
B154: -5 | C154: -23 | D154: 32 | E154: 65 | F154: None | G154: -0.2941176471 | H154: -1.352941176 | I154: 1.882352941 | J154: 3.823529412
B155: -5 | C155: 40 | D155: 21 | E155: 162 | F155: None | G155: -0.2941176471 | H155: 2.352941176 | I155: 1.235294118 | J155: 9.529411765
B156: 1 | C156: 2 | D156: 16 | E156: 157 | F156: None | G156: 0.05882352941 | H156: 0.1176470588 | I156: 0.9411764706 | J156: 9.235294118
B157: 1 | C157: 23 | D157: 8 | E157: 174 | F157: None | G157: 0.05882352941 | H157: 1.352941176 | I157: 0.4705882353 | J157: 10.23529412
B158: -3 | C158: 8 | D158: 6 | E158: 193 | F158: None | G158: -0.1764705882 | H158: 0.4705882353 | I158: 0.3529411765 | J158: 11.35294118
B159: 5 | C159: 57 | D159: 6 | E159: 365 | F159: None | G159: 0.2941176471 | H159: 3.352941176 | I159: 0.3529411765 | J159: 21.47058824
B160: -7 | C160: 64 | D160: 0 | E160: 182 | F160: None | G160: -0.4117647059 | H160: 3.764705882 | I160: 0 | J160: 10.70588235
B161: 6 | C161: 40 | D161: 11 | E161: 200 | F161: None | G161: 0.3529411765 | H161: 2.352941176 | I161: 0.6470588235 | J161: 11.76470588
B162: -29 | C162: 23 | D162: 10 | E162: -15 | F162: None | G162: -1.705882353 | H162: 1.352941176 | I162: 0.5882352941 | J162: -0.8823529412
B163: -19 | C163: 4 | D163: 90 | E163: -3 | F163: None | G163: -1.117647059 | H163: 0.2352941176 | I163: 5.294117647 | J163: -0.1764705882
B164: -42 | C164: 40 | D164: 54 | E164: -41 | F164: None | G164: -2.470588235 | H164: 2.352941176 | I164: 3.176470588 | J164: -2.411764706
B165: -48 | C165: 22 | D165: 89 | E165: -89 | F165: None | G165: -2.823529412 | H165: 1.294117647 | I165: 5.235294118 | J165: -5.235294118
B166: -19 | C166: 30 | D166: 47 | E166: -35 | F166: None | G166: -1.117647059 | H166: 1.764705882 | I166: 2.764705882 | J166: -2.058823529
B167: -36 | C167: 75 | D167: 28 | E167: -40 | F167: None | G167: -2.117647059 | H167: 4.411764706 | I167: 1.647058824 | J167: -2.352941176
C168: -997 | D168: 41 | E168: -39 | F168: None | G168: 0 | H168: -58.64705882 | I168: 2.411764706 | J168: -2.294117647
D169: 59 | E169: -97 | F169: None | G169: 0 | H169: 0 | I169: 3.470588235 | J169: -5.705882353
D170: 95 | E170: 126 | G170: =(B170/1000)/17 -> 0 | H170: =(C170/1000)/17 -> 0 | I170: =(D170/1000)/17 -> 0.005588235294 | J170: =(E170/1000)/17 -> 0.007411764706
D171: 116 | G171: 0 | H171: 0 | I171: 0.006823529412 | J171: 0
A172: Average | B172: =AVERAGE(B150:B171) -> -4.055555556 | C172: =AVERAGE(C150:C171) -> -112.0526316 | D172: =AVERAGE(D150:D171) -> 203.1363636 | E172: =AVERAGE(E150:E171) -> -865.2857143
A173: Maximum | B173: =MAX(B150:B172) -> 107 | C173: =MAX(C150:C172) -> 75 | D173: =MAX(D150:D172) -> 3372 | E173: =MAX(E150:E172) -> 365
A174: Minimum | B174: =MIN(B150:B173) -> -48 | C174: =MIN(C150:C173) -> -1399 | D174: =MIN(D150:D173) -> 0 | E174: =MIN(E150:E173) -> -19111
A175: Difference | B175: =B173-B174 -> 155 | C175: =C173-C174 -> 1474 | D175: =D173-D174 -> 3372 | E175: =E173-E174 -> 19476

Sheet H15
A1: Table 1 | B1: Mount Erebus | Q1: 1972 | S1: Eruption Year | T1: Age (Ma) | U1: Eruption Year | V1: Age (Ma) | X1: 4935.473648
A2: Sample | B2: Rock Type | C2: Year/age | D2: 87Sr/86Sr | E2: 143Nd/144Nd | F2: εNd | G2: 176Hf/177Hf | H2: εHf | I2: 206Pb/204Pb | J2: 207Pb/204Pb | K2: 208Pb/204Pb | L2: 207Pb/206Pb | M2: Age | N2: Year Dated | O2: Historic Age | P2: Age Ratio | Q2: 1974 | S2: 1972 | T2: 4893.841674 | U2: 1986 | V2: 4894.120588 | X2: 4928.040799
A3: Historic | B3: bombs | P3: Millions | Q3: 1975 | S3: 1974 | T3: 4893.925733 | U3: 1989 | V3: 4893.906098 | X3: 4915.809948
A4: 25724 | B4: Phono. | C4: 1972 | D4: 0.703058 | E4: 0.512911 | F4: 5.3 | G4: 0.282971 | H4: 7 | I4: 19.953 | J4: 15.653 | K4: 39.524 | L4: =(J4/I4) -> 0.7844935599 | M4: =[1]!AgePb76(L4) -> 4893.841674 | N4: 2008 | O4: =(N4-C4) -> 36 | P4: =M4/O4 -> 135.9400465 | Q4: 1977 | S4: 1975 | T4: 4894.120588 | U4: 1991 | V4: 4894.347782 | X4: 4902.480699
A5: 25721 | B5: Phono. | C5: 1974 | D5: 0.703019 | E5: 0.5129 | F5: 5.1 | G5: 0.282949 | H5: 6.3 | I5: 19.948 | J5: 15.65 | K5: 39.519 | L5: =(J5/I5) -> 0.7845398035 | M5: =[1]!AgePb76(L5) -> 4893.925733 | N5: 2008 | O5: =(N5-C5) -> 34 | P5: =M5/O5 -> 143.9389921 | Q5: 1979 | S5: 1977 | T5: 4893.763122 | U5: 1992 | V5: 4894.068715 | X5: 4899.60061
A6: [L1] | C6: 1974 | G6: 0.282962 | H6: 6.7 | I6: 19.947 | J6: 15.652 | K6: 39.5 | L6: 0.7846794004 | M6: =[1]!AgePb76(L6) -> 4894.179451 | N6: 2008 | O6: 34 | P6: 143.9464544 | Q6: 1980 | S6: 1979 | T6: 4894.140211 | U6: 1993 | V6: 4894.029459 | X6: 4897.940353
A7: [L2] | C7: 1974 | I7: 19.944 | J7: 15.649 | K7: 39.506 | L7: 0.7846470116 | M7: =[1]!AgePb76(L7) -> 4894.120588 | N7: 2008 | O7: 34 | P7: 143.9447232 | Q7: 1981 | S7: 1980 | T7: 4893.913146 | U7: 1996 | V7: 4894.24398 | X7: 4896.032827
A8: 25723 | B8: Phono. | C8: 1975 | D8: 0.703019 | E8: 0.512886 | F8: 4.8 | G8: 0.282964 | H8: 6.8 | I8: 19.944 | J8: 15.649 | K8: 39.513 | L8: 0.7846470116 | M8: =[1]!AgePb76(L8) -> 4894.120588 | N8: 2008 | O8: 33 | P8: 148.3066845 | Q8: 1982 | S8: 1981 | T8: 4893.906098 | U8: 1997 | V8: 4894.315494 | X8: 4895.713977
A9: 77016 | B9: Phono. | C9: 1977 | D9: 0.703039 | E9: 0.512905 | F9: 5.2 | G9: 0.282954 | H9: 6.4 | I9: 19.949 | J9: 15.649 | K9: 39.517 | L9: 0.7844503484 | M9: =[1]!AgePb76(L9) -> 4893.763122 | N9: 2008 | O9: 31 | P9: 157.8633265 | Q9: 1983 | S9: 1982 | T9: 4894.068715 | U9: 1999 | V9: 4894.347782 | X9: 4895.011234
A10: 78325 | B10: Phono. | C10: 1977 | D10: 0.703031 | E10: 0.512887 | F10: 4.9 | G10: 0.282942 | H10: 6 | I10: 19.948 | J10: 15.649 | K10: 39.515 | L10: 0.7844896732 | M10: =[1]!AgePb76(L10) -> 4893.834609 | N10: 2008 | O10: 31 | P10: 157.8656325 | Q10: 1984 | S10: 1983 | T10: 4893.977592 | U10: 2000 | V10: 4894.38701 | X10: 4894.505732
A11: 79302 | B11: Phono. | C11: 1979 | D11: 0.703033 | E11: 0.512925 | F11: 5.6 | G11: 0.282951 | H11: 6.3 | I11: 19.945 | J11: 15.65 | K11: 39.512 | L11: 0.784657809 | M11: =[1]!AgePb76(L11) -> 4894.140211 | N11: 2008 | O11: 29 | P11: 168.7634556 | Q11: 1985 | S11: 1984 | T11: 4896.032827 | U11: 2001 | V11: 4895.713977 | X11: 4894.399696
A12: 80300 | B12: Phono. | C12: 1980 | D12: 0.703038 | E12: 0.512924 | F12: 5.6 | G12: 0.282936 | H12: 5.8 | I12: 19.952 | J12: 15.653 | K12: 39.508 | L12: 0.7845328789 | M12: =[1]!AgePb76(L12) -> 4893.913146 | N12: 2008 | O12: 28 | P12: 174.7826123 | Q12: 1986 | S12: 1985 | T12: 4894.152846 | U12: 2004 | V12: 4894.37433 | X12: 4894.38701
A13: 81401 | B13: Phono. | C13: 1981 | D13: 0.703024 | E13: 0.512906 | F13: 5.2 | G13: 0.282938 | H13: 5.9 | I13: 19.947 | J13: 15.649 | K13: 39.515 | L13: 0.7845290019 | M13: =[1]!AgePb76(L13) -> 4893.906098 | N13: 2008 | O13: 27 | P13: 181.2557814 | Q13: 1989 | X13: 4894.37433
A14: 82416 | B14: Phono. | C14: 1982 | E14: 0.512891 | F14: 4.9 | G14: 0.282954 | H14: 6.4 | I14: 19.946 | J14: 15.65 | K14: 39.519 | L14: 0.7846184699 | M14: =[1]!AgePb76(L14) -> 4894.068715 | N14: 2008 | O14: 26 | P14: 188.2334121 | Q14: 1991 | X14: 4894.347782
A15: 83220 | B15: Phono. | C15: 1983 | D15: 0.703039 | E15: 0.512908 | F15: 5.3 | G15: 0.282963 | H15: 6.8 | I15: 19.946 | J15: 15.649 | K15: 39.515 | L15: 0.7845683345 | M15: =[1]!AgePb76(L15) -> 4893.977592 | N15: 2008 | O15: 25 | P15: 195.7591037 | Q15: 1992 | X15: 4894.347782
A16: 84501 | B16: Phono. | C16: 1984 | D16: 0.703102 | E16: 0.512916 | F16: 5.4 | G16: 0.282958 | H16: 6.6 | I16: 19.916 | J16: 15.648 | K16: 39.489 | L16: 0.7856999397 | M16: =[1]!AgePb76(L16) -> 4896.032827 | N16: 2008 | O16: 24 | P16: 204.0013678 | Q16: 1993 | X16: 4894.315494
A17: [L1]d | C17: 1984 | I17: 19.897 | J17: 15.654 | K17: 39.486 | L17: 0.7867517716 | M17: =[1]!AgePb76(L17) -> 4897.940353 | N17: 2008 | O17: 24 | P17: 204.080848 | Q17: 1996 | X17: 4894.295877
A18: 84500 | B18: Phono. | C18: 1984 | D18: 0.703109 | E18: 0.512898 | F18: 5.1 | G18: 0.282961 | H18: 6.7 | I18: 19.929 | J18: 15.647 | K18: 39.491 | L18: 0.7851372372 | M18: =[1]!AgePb76(L18) -> 4895.011234 | N18: 2008 | O18: 24 | P18: 203.9588014 | Q18: 1997 | S18: Eruption | T18: True Age | U18: 207Pb/206Pb | V18: Age Ratio 106 | X18: 4894.24398
A19: 85009 | B19: Phono. | C19: 1985 | D19: 0.703061 | E19: 0.512904 | F19: 5.2 | G19: 0.282959 | H19: 6.6 | I19: 19.941 | J19: 15.647 | K19: 39.507 | L19: 0.784664761 | M19: =[1]!AgePb76(L19) -> 4894.152846 | N19: 2008 | O19: 23 | P19: 212.7892542 | Q19: 1999 | S19: 1972 | T19: 36 | U19: 4893.841674 | V19: 135.9400465 | X19: 4894.179451
A20: 86022 | B20: Phono. | C20: 1986 | D20: 0.703022 | E20: 0.512924 | F20: 5.6 | G20: 0.282965 | H20: 6.8 | I20: 19.944 | J20: 15.649 | K20: 39.513 | L20: 0.7846470116 | M20: =[1]!AgePb76(L20) -> 4894.120588 | N20: 2008 | O20: 22 | P20: 222.4600267 | Q20: 2000 | S20: 1974 | T20: 34 | U20: 4893.925733 | V20: 143.9389921 | X20: 4894.152846
A21: 89001 | B21: Phono. | C21: 1989 | D21: 0.703021 | E21: 0.51293 | F21: 5.7 | G21: 0.282946 | H21: 6.2 | I21: 19.947 | J21: 15.649 | K21: 39.517 | L21: 0.7845290019 | M21: =[1]!AgePb76(L21) -> 4893.906098 | N21: 2008 | O21: 19 | P21: 257.5740052 | Q21: 2001 | S21: 1974 | T21: 34 | U21: 4894.179451 | V21: 143.9464544 | X21: 4894.140211
A22: 91101 | B22: Phono. | C22: 1991 | D22: 0.703026 | E22: 0.512929 | F22: 5.7 | G22: 0.282943 | H22: 6 | I22: 19.937 | J22: 15.646 | K22: 39.506 | L22: 0.7847720319 | M22: =[1]!AgePb76(L22) -> 4894.347782 | N22: 2008 | O22: 17 | P22: 287.9028107 | Q22: 2004 | S22: 1974 | T22: 34 | U22: 4894.120588 | V22: 143.9447232 | X22: 4894.120588
A23: Er92KS | B23: Phono. | C23: 1992 | D23: 0.703035 | E23: 0.512912 | F23: 5.3 | G23: 0.282952 | H23: 6.4 | I23: 19.946 | J23: 15.65 | K23: 39.516 | L23: 0.7846184699 | M23: =[1]!AgePb76(L23) -> 4894.068715 | N23: 2008 | O23: 16 | P23: 305.8792947 | S23: 1975 | T23: 33 | U23: 4894.120588 | V23: 148.3066845 | X23: 4894.120588
A24: [L1] | C24: 1992 | G24: 0.282948 | H24: 6.2 | I24: 19.959 | J24: 15.665 | K24: 39.525 | L24: 0.7848589609 | M24: =[1]!AgePb76(L24) -> 4894.505732 | N24: 2008 | O24: 16 | P24: 305.9066082 | S24: 1977 | T24: 31 | U24: 4893.763122 | V24: 157.8633265 | X24: 4894.120588
A25: 93102 | B25: Phono. | C25: 1993 | D25: 0.703022 | E25: 0.512906 | F25: 5.2 | G25: 0.282952 | H25: 6.4 | I25: 19.944 | J25: 15.648 | K25: 39.505 | L25: 0.7845968712 | M25: =[1]!AgePb76(L25) -> 4894.029459 | N25: 2008 | O25: 15 | P25: 326.2686306 | S25: 1977 | T25: 31 | U25: 4893.834609 | V25: 157.8656325 | X25: 4894.100963
A26: [L1] | C26: 1993 | I26: 19.945 | J26: 15.648 | K26: 39.508 | L26: 0.7845575332 | M26: =[1]!AgePb76(L26) -> 4893.957959 | N26: 2008 | O26: 15 | P26: 326.2638639 | S26: 1979 | T26: 29 | U26: 4894.140211 | V26: 168.7634556 | X26: 4894.068715
A27: [L2] | C27: 1993 | I27: 19.943 | J27: 15.648 | K27: 39.504 | L27: 0.7846362132 | M27: =[1]!AgePb76(L27) -> 4894.100963 | N27: 2008 | O27: 15 | P27: 326.2733975 | S27: 1980 | T27: 28 | U27: 4893.913146 | V27: 174.7826123 | X27: 4894.068715
A28: Er96 | B28: Phono. | C28: 1996 | D28: 0.703026 | E28: 0.512906 | F28: 5.2 | G28: 0.282942 | H28: 6 | I28: 19.941 | J28: 15.648 | K28: 39.505 | L28: 0.784714909 | M28: =[1]!AgePb76(L28) -> 4894.24398 | N28: 2008 | O28: 12 | P28: 407.853665 | S28: 1981 | T28: 27 | U28: 4893.906098 | V28: 181.2557814 | X28: 4894.029459
A29: Er97 | B29: Phono. | C29: 1997 | D29: 0.703033 | E29: 0.512911 | F29: 5.3 | G29: 0.282935 | H29: 5.8 | I29: 19.94 | J29: 15.648 | K29: 39.509 | L29: 0.7847542628 | M29: =[1]!AgePb76(L29) -> 4894.315494 | N29: 2008 | O29: 11 | P29: 444.9377721 | S29: 1982 | T29: 26 | U29: 4894.068715 | V29: 188.2334121 | X29: 4893.977592
A30: [L] | C30: 1997 | I30: 19.935 | J30: 15.64 | K30: 39.507 | L30: 0.7845497868 | M30: =[1]!AgePb76(L30) -> 4893.943879 | N30: 2008 | O30: 11 | P30: 444.903989 | S30: 1983 | T30: 25 | U30: 4893.977592 | V30: 195.7591037 | X30: 4893.957959
A31: Er99 | B31: Phono. | C31: 1999 | D31: 0.703042 | E31: 0.51291 | F31: 5.3 | G31: 0.28296 | H31: 6.6 | I31: 19.937 | J31: 15.646 | K31: 39.505 | L31: 0.7847720319 | M31: =[1]!AgePb76(L31) -> 4894.347782 | N31: 2008 | O31: 9 | P31: 543.8164202 | S31: 1984 | T31: 24 | U31: 4896.032827 | V31: 204.0013678 | X31: 4893.943879
A32: [L1] | C32: 1999 | I32: 19.935 | J32: 15.645 | K32: 39.5 | L32: 0.784800602 | M32: =[1]!AgePb76(L32) -> 4894.399696 | N32: 2008 | O32: 9 | P32: 543.8221884 | S32: 1984 | T32: 24 | U32: 4897.940353 | V32: 204.080848 | X32: 4893.925733
A33: [L2] | C33: 1999 | I33: 19.939 | J33: 15.647 | K33: 39.507 | L33: 0.7847434676 | M33: =[1]!AgePb76(L33) -> 4894.295877 | N33: 2008 | O33: 9 | P33: 543.810653 | S33: 1984 | T33: 24 | U33: 4895.011234 | V33: 203.9588014 | X33: 4893.913146
A34: Er2000 | B34: Phono. | C34: 2000 | D34: 0.703043 | E34: 0.512905 | F34: 5.2 | G34: 0.282957 | H34: 6.5 | I34: 19.939 | J34: 15.648 | K34: 39.508 | L34: 0.7847936205 | M34: =[1]!AgePb76(L34) -> 4894.38701 | N34: 2008 | O34: 8 | P34: 611.7983763 | S34: 1985 | T34: 23 | U34: 4894.152846 | V34: 212.7892542 | X34: 4893.906098
A35: Er2001 | B35: Phono. | C35: 2001 | D35: 0.703018 | E35: 0.512903 | F35: 5.2 | G35: 0.282955 | H35: 6.5 | I35: 19.923 | J35: 15.65 | K35: 39.498 | L35: 0.7855242684 | M35: =[1]!AgePb76(L35) -> 4895.713977 | N35: 2008 | O35: 7 | P35: 699.3877111 | S35: 1986 | T35: 22 | U35: 4894.120588 | V35: 222.4600267 | X35: 4893.906098
A36: 2004 | B36: Phono. | C36: 2004 | D36: 0.703051 | E36: 0.512903 | F36: 5.2 | G36: 0.282962 | H36: 6.7 | I36: 19.943 | J36: 15.651 | K36: 39.515 | L36: 0.7847866419 | M36: =[1]!AgePb76(L36) -> 4894.37433 | N36: 2008 | O36: 4 | P36: 1223.593582 | S36: 1989 | T36: 19 | U36: 4893.906098 | V36: 257.5740052 | X36: 4893.841674
A37: Stage-3 | B37: EL | C37: phonolite | D37: lavas | P37: Units | S37: 1991 | T37: 17 | U37: 4894.347782 | V37: 287.9028107 | X37: 4893.834609
A38: E83452 | B38: Phono. | C38: 23000 | D38: 0.703017 | E38: 0.512931 | F38: 5.7 | G38: 0.282962 | H38: 6.7 | I38: 19.976 | J38: 15.659 | K38: 39.551 | L38: 0.7838906688 | M38: =[1]!AgePb76(L38) -> 4892.745295 | N38: 2008 | O38: =(C38-N38) -> 20992 | P38: =(M38*1000000)/O38 -> 233076.6623 | S38: 1992 | T38: 16 | U38: 4894.068715 | V38: 305.8792947 | X38: 4893.763122
A39: E87066 | B39: Phono. | C39: 17000 | D39: 0.703077 | E39: 0.512927 | F39: 5.6 | G39: 0.282955 | H39: 6.5 | I39: 19.957 | J39: 15.649 | K39: 39.522 | L39: 0.7841358922 | M39: =[1]!AgePb76(L39) -> 4893.191351 | N39: 2008 | O39: =(C39-N39) -> 14992 | P39: =(M39*1000000)/O39 -> 326386.8297 | S39: 1992 | T39: 16 | U39: 4894.505732 | V39: 305.9066082 | X39: 4893.289681
A40: E87085 | B40: Phono. | C40: 12000 | D40: 0.703088 | E40: 0.512872 | F40: 4.6 | G40: 0.282965 | H40: 6.8 | I40: 19.963 | J40: 15.651 | K40: 39.531 | L40: 0.7840004007 | M40: =[1]!AgePb76(L40) -> 4892.944914 | N40: 2008 | O40: 9992 | P40: 489686.2403 | S40: 1993 | T40: 15 | U40: 4894.029459 | V40: 326.2686306 | X40: 4893.22546
A41: E87020 | B41: Phono. | C41: 11000 | D41: 0.703085 | E41: 0.512909 | F41: 5.3 | G41: 0.282963 | H41: 6.8 | I41: 19.957 | J41: 15.649 | K41: 39.519 | L41: 0.7841358922 | M41: =[1]!AgePb76(L41) -> 4893.191351 | N41: 2008 | O41: 8992 | P41: 544171.636 | S41: 1993 | T41: 15 | U41: 4893.957959 | V41: 326.2638639 | X41: 4893.191351
A42: E87034 | B42: Phono. | C42: 11000 | D42: 0.703025 | E42: 0.512928 | F42: 5.7 | G42: 0.282943 | H42: 6.1 | I42: 19.968 | J42: 15.658 | K42: 39.544 | L42: 0.7841546474 | M42: =[1]!AgePb76(L42) -> 4893.22546 | N42: 2008 | O42: 8992 | P42: 544175.4293 | S42: 1993 | T42: 15 | U42: 4894.100963 | V42: 326.2733975 | X42: 4893.191351
A43: E87035 | B43: Phono. | C43: 10000 | E43: 0.512928 | F43: 5.7 | G43: 0.282948 | H43: 6.2 | I43: 19.962 | J43: 15.654 | K43: 39.535 | L43: 0.7841899609 | M43: =[1]!AgePb76(L43) -> 4893.289681 | N43: 2008 | O43: 7992 | P43: 612273.4836 | S43: 1996 | T43: 12 | U43: 4894.24398 | V43: 407.853665 | X43: 4893.119895
A44: E87004 | B44: Phono. | C44: 9000 | D44: 0.703088 | E44: 0.512912 | F44: 5.3 | G44: 0.282949 | H44: 6.3 | I44: 19.996 | J44: 15.673 | K44: 39.61 | L44: 0.7838067614 | M44: =[1]!AgePb76(L44) -> 4892.592635 | N44: 2008 | O44: 6992 | P44: 699741.5096 | S44: 1997 | T44: 11 | U44: 4894.315494 | V44: 444.9377721 | X44: 4893.036029
A45: E87054 | B45: Phono. | C45: 9000 | E45: 0.512894 | F45: 5 | G45: 0.282946 | H45: 6.2 | I45: 19.958 | J45: 15.649 | K45: 39.522 | L45: 0.7840966029 | M45: =[1]!AgePb76(L45) -> 4893.119895 | N45: 2008 | O45: 6992 | P45: 699816.9186 | S45: 1997 | T45: 11 | U45: 4893.943879 | V45: 444.903989 | X45: 4892.944914
A46: Stage-3 | B46: El | D46: lavas | N46: 2008 | S46: 1999 | T46: 9 | U46: 4894.347782 | V46: 543.8164202 | X46: 4892.745295
A47: E87083 | B47: Phono. | C47: 6000 | D47: 0.703005 | E47: 0.512904 | F47: 5.2 | G47: 0.282947 | H47: 6.2 | I47: 19.975 | J47: 15.657 | K47: 39.548 | L47: 0.7838297872 | M47: =[1]!AgePb76(L47) -> 4892.63453 | N47: 2008 | O47: 3992 | P47: 1225609.852 | S47: 1999 | T47: 9 | U47: 4894.399696 | V47: 543.8221884 | X47: 4892.63453
A48: E87051 | B48: Phono. | C48: 4000 | D48: 0.703008 | E48: 0.512904 | F48: 5.2 | G48: 0.282952 | H48: 6.4 | I48: 19.963 | J48: 15.652 | K48: 39.53 | L48: 0.7840504934 | M48: =[1]!AgePb76(L48) -> 4893.036029 | N48: 2008 | O48: 1992 | P48: 2456343.388 | S48: 1999 | T48: 9 | U48: 4894.295877 | V48: 543.810653 | X48: 4892.624617
A49: E87040 | B49: Phono. | C49: 1000 | D49: 0.703017 | E49: 0.512923 | F49: 5.6 | G49: 0.282963 | H49: 6.8 | I49: 19.993 | J49: 15.671 | K49: 39.6 | L49: 0.7838243385 | M49: =[1]!AgePb76(L49) -> 4892.624617 | N49: 2008 | O49: 1008 | P49: 4853794.262 | S49: 2000 | T49: 8 | U49: 4894.38701 | V49: 611.7983763 | X49: 4892.592635
A50: Stage-1 | B50: EL lavas | N50: 2008 | S50: 2001 | T50: 7 | U50: 4895.713977 | V50: 699.3877111 | X50: 4892.282397
A51: EL83432 | B51: Basanite | C51: 1311000 | D51: 0.702922 | E51: 0.512886 | F51: 4.8 | G51: 0.282978 | H51: 7.3 | I51: 20.006 | J51: 15.666 | K51: 39.701 | L51: 0.7830650805 | M51: =[1]!AgePb76(L51) -> 4891.242476 | N51: 2008 | O51: 1308992 | P51: 3736.648105 | Q51: =P51/1000000 -> 0.003736648105 | S51: 2004 | T51: 4 | U51: 4894.37433 | V51: 1223.593582 | X51: 4891.242476
A52: DVDP-2 | B52: lavas | N52: 2008 | X52: 4879.039349
A53: DVDP2–45.86 | B53: Te-Phon. | C53: 1200000 | D53: 0.703021 | E53: 0.512905 | F53: 5.2 | G53: 0.282924 | H53: 5.4 | I53: 19.629 | J53: 15.638 | K53: 39.206 | L53: 0.796678384 | M53: =[1]!AgePb76(L53) -> 4915.809948 | N53: 2008 | O53: 1197992 | P53: 4103.374603 | X53: 4875.250235
A54: DVDP2–61.23 | B54: Te-Phon. | C54: 1200000 | D54: 0.70304 | E54: 0.512884 | F54: 4.8 | G54: 0.282924 | H54: 5.4 | I54: 20.278 | J54: 15.702 | K54: 39.866 | L54: 0.7743367196 | M54: =[1]!AgePb76(L54) -> 4875.250235 | N54: 2008 | O54: 1197992 | P54: 4069.51819 | W54: Average | X54: =AVERAGE(X1:X53) -> 4895.392529
A55: DVDP2–76.38 | B55: Phon-Te. | C55: 1200000 | D55: 0.703081 | E55: 0.512877 | F55: 4.7 | G55: 0.282932 | H55: 5.7 | I55: 20.174 | J55: 15.663 | K55: 39.724 | L55: 0.7763953604 | M55: =[1]!AgePb76(L55) -> 4879.039349 | N55: 2008 | O55: 1197992 | P55: 4072.681077 | W55: Maximum | X55: =MAX(X1:X54) -> 4935.473648
A56: DVDP2–105.53 | B56: Basanite | C56: 1250000 | D56: 0.702991 | E56: 0.512929 | F56: 5.7 | G56: 0.282944 | H56: 6.1 | I56: 19.496 | J56: 15.666 | K56: 39.069 | L56: 0.803549446 | M56: =[1]!AgePb76(L56) -> 4928.040799 | N56: 2008 | O56: 1247992 | P56: 3948.775953 | W56: Minimum | X56: =MIN(X1:X55) -> 4875.250235
A57: Enriched | B57: Fe-series | N57: 2008 | W57: Difference | X57: =X55-X56 -> 60.22341314
A58: Ice-station | B58: Trachyte | C58: 159000 | D58: 0.704251 | E58: 0.512916 | F58: 5.4 | G58: 0.282923 | H58: 5.3 | I58: 19.366 | J58: 15.643 | K58: 39.129 | L58: 0.8077558608 | M58: =[1]!AgePb76(L58) -> 4935.473648 | N58: 2008 | O58: 156992 | P58: 31437.73981 | W58: Accuracy | X58: =1-(X57/X54) -> 0.9876979399
A59: MT Morning | N59: 2008
A60: MM-01A | B60: Basanite | C60: 20000 | D60: 0.703226 | E60: 0.51284 | F60: 3.9 | G60: 0.282932 | H60: 5.7 | I60: 19.835 | J60: 15.655 | K60: 39.575 | L60: 0.7892614066 | M60: =[1]!AgePb76(L60) -> 4902.480699 | N60: 2008 | O60: 17992 | P60: 272481.1415
A61: MM-02A | B61: Basanite | C61: 20000 | D61: 0.703314 | E61: 0.512902 | F61: 5.2 | G61: 0.282951 | H61: 6.3 | I61: 19.971 | J61: 15.65 | K61: 39.632 | L61: 0.7836362726 | M61: =[1]!AgePb76(L61) -> 4892.282397 | N61: 2008 | O61: 17992 | P61: 271914.3173
A62: MM-01A | B62: Basanite | C62: 20000 | D62: 0.703314 | E62: 0.512882 | F62: 4.8 | G62: 0.282956 | H62: 6.5 | I62: 19.884 | J62: 15.662 | K62: 39.59 | L62: 0.7876684772 | M62: =[1]!AgePb76(L62) -> 4899.60061 | N62: 2008 | O62: 17992 | P62: 272321.0655
L63: Average | M63: =AVERAGE(M4:M62) -> 4895.392529
L64: Maximum | M64: =MAX(M4:M63) -> 4935.473648
L65: Minimum | M65: =MIN(M4:M64) -> 4875.250235
L66: Difference | M66: =M64-M65 -> 60.22341314
L67: Accuracy | M67: =1-(M66/M63) -> 0.9876979399

Sheet H16
A1: Table 1 | B1: Mount Erebus | L1: Samoa | M1: Mt. Erebus
A2: Sample | B2: 87Sr/86Sr | C2: 143Nd/144Nd | D2: Epsilon Nd | E2: 208Pb/204Pb | F2: 207Pb/204Pb | G2: 206Pb/204Pb | H2: 207Pb/206Pb | I2: Age | L2: Pb Age (Ma) | M2: Pb Age (Ma)
A3: Samoa | L3: 4934.77311 | M3: 4893.977592
A4: 63-13 | B4: 0.70552 | C4: 0.512716 | D4: 1.5 | E4: 39.699 | F4: 15.624 | G4: 19.352 | H4: =(F4/G4) -> 0.8073584126 | I4: =[1]!AgePb76(H4) -> 4934.77311 | L4: 4935.424763 | M4: 4896.032827
A5: 68-30 | B5: 0.705215 | C5: 0.512734 | D5: 1.9 | E5: 39.589 | F5: 15.615 | G5: 19.332 | H5: =(F5/G5) -> 0.8077281192 | I5: =[1]!AgePb76(H5) -> 4935.424763 | L5: 4931.917673 | M5: 4894.24398
A6: 70-1 | B6: 0.705371 | C6: 0.512768 | D6: 2.5 | E6: 39.641 | F6: 15.608 | G6: 19.371 | H6: 0.80574054 | I6: =[1]!AgePb76(H6) -> 4931.917673 | L6: 4931.818682 | M6: 4894.38701
A7: 70-9 | B7: 0.705352 | C7: 0.512753 | D7: 2.2 | E7: 39.683 | F7: 15.619 | G7: 19.386 | H7: 0.8056845146 | I7: =[1]!AgePb76(H7) -> 4931.818682 | L7: 4934.51291
A8: 71-2 | B8: 0.705943 | C8: 0.512743 | D8: 2 | E8: 39.68 | F8: 15.605 | G8: 19.332 | H8: 0.8072108421 | I8: =[1]!AgePb76(H8) -> 4934.51291 | L8: 4931.993803
A9: 72-2 | B9: 0.705395 | C9: 0.51274 | D9: 2 | E9: 39.657 | F9: 15.604 | G9: 19.365 | H9: 0.8057836303 | I9: =[1]!AgePb76(H9) -> 4931.993803 | L9: 4944.245946
A10: 73-1 | B10: 0.70672 | C10: 0.512669 | D10: 0.6 | E10: 39.585 | F10: 15.617 | G10: 19.215 | H10: 0.8127504554 | I10: =[1]!AgePb76(H10) -> 4944.245946 | L10: 4934.533789
A11: 73-3 | B11: 0.705616 | C11: 0.512711 | D11: 1.4 | E11: 39.638 | F11: 15.602 | G11: 19.328 | H11: 0.8072226821 | I11: =[1]!AgePb76(H11) -> 4934.533789 | L11: 4944.178
A12: 73-12 | B12: 0.706653 | C12: 0.512686 | D12: 0.9 | E12: 39.529 | F12: 15.6 | G12: 19.195 | H12: 0.8127116437 | I12: =[1]!AgePb76(H12) -> 4944.178 | L12: 4936.895968
A13: 76-1 | B13: 0.707192 | C13: 0.512637 | D13: 0 | E13: 39.847 | F13: 15.636 | G13: 19.338 | H13: 0.8085634502 | I13: =[1]!AgePb76(H13) -> 4936.895968 | L13: 4937.32023
A14: 77-9 | B14: 0.70726 | C14: 0.512579 | D14: −1.2 | E14: 39.853 | F14: 15.635 | G14: 19.331 | H14: 0.8088045109 | I14: =[1]!AgePb76(H14) -> 4937.32023 | L14: 4945.348394
A15: 78-1 | B15: 0.708901 | C15: 0.512521 | D15: −2.3 | E15: 39.862 | F15: 15.647 | G15: 19.237 | H15: 0.8133804647 | I15: =[1]!AgePb76(H15) -> 4945.348394 | L15: 4975.787742
A16: SAVB6 | B16: 0.705786 | C16: 0.512716 | D16: 1.5 | E16: 39.121 | F16: 15.61 | G16: 18.785 | H16: 0.8309821666 | I16: =[1]!AgePb76(H16) -> 4975.787742 | K16: Average | L16: =AVERAGE(L3:L15) -> 4939.903924 | M16: =AVERAGE(M3:M15) -> 4894.660352
A17: Mt. Erebus | K17: Maximum | L17: =MAX(L3:L16) -> 4975.787742 | M17: =MAX(M3:M16) -> 4896.032827
A18: ER-83220 | B18: 0.703039 | C18: 0.512908 | D18: 5.3 | E18: 39.515 | F18: 15.649 | G18: 19.946 | H18: 0.7845683345 | I18: =[1]!AgePb76(H18) -> 4893.977592 | K18: Minimum | L18: =MIN(L3:L17) -> 4931.818682 | M18: =MIN(M3:M17) -> 4893.977592
A19: ER-84505 | B19: 0.703133 | C19: 0.512906 | D19: 5.2 | E19: 39.489 | F19: 15.648 | G19: 19.916 | H19: 0.7856999397 | I19: =[1]!AgePb76(H19) -> 4896.032827 | K19: Difference | L19: =L17-L18 -> 43.96905978 | M19: =M17-M18 -> 2.055235354
A20: ER-97KS | B20: 0.703033 | C20: 0.512911 | D20: 5.3 | E20: 39.509 | F20: 15.648 | G20: 19.941 | H20: 0.784714909 | I20: =[1]!AgePb76(H20) -> 4894.24398 | K20: Accuracy | L20: =1-(L19/L16) -> 0.9910992075 | M20: =1-(M19/M16) -> 0.9995801066
A21: ER-2000 | B21: 0.703043 | C21: 0.512905 | D21: 5.2 | E21: 39.508 | F21: 15.648 | G21: 19.939 | H21: 0.7847936205 | I21: =[1]!AgePb76(H21) -> 4894.38701
H26: Samoa | I26: Samoa | J26: Samoa | K26: Mt. Erebus
H27: Pb Age (Ma) | I27: Pb Age (Ma) | J27: Pb Age (Ma) | K27: Pb Age (Ma)
H28: 4934.77311 | I28: 4934.51291 | J28: 4944.178 | K28: 4893.977592
H29: 4935.424763 | I29: 4931.993803 | J29: 4936.895968 | K29: 4896.032827
H30: 4931.917673 | I30: 4944.245946 | J30: 4937.32023 | K30: 4894.24398
H31: 4931.818682 | I31: 4934.533789 | J31: 4945.348394 | K31: 4894.38701
A35: Table 2
A36: Sample | B36: [Th]μg/g | C36: [U]μg/g | D36: Th/U | E36: 238U/232Th | F36: 230Th/232Th | G36: 230Th/238U | H36: 234U/238U
A37: 63-13 (avg) | B37: 4.99 | C37: 1.13 | D37: 4.4 | E37: 0.689 | F37: 0.737 | G37: 1.07 | H37: 1.003 | I37: =[1]!Th230Age(G37, H37) -> 0
A38: 68-30 (avg) | B38: 3.52 | C38: 0.82 | D38: 4.31 | E38: 0.705 | F38: 0.763 | G38: 1.09 | H38: 1.004 | I38: =[1]!Th230Age(G38, H38) -> 0
A39: 70-1 | B39: 3.96 | C39: 1 | D39: 3.96 | E39: 0.767 | F39: 0.777 | G39: 1.01 | H39: 1.007 | I39: =[1]!Th230Age(G39, H39) -> 1000.712486
A40: 70-9 (avg) | B40: 4.2 | C40: 1 | D40: 4.2 | E40: 0.721 | F40: 0.757 | G40: 1.05 | H40: 1.005 | I40: =[1]!Th230Age(G40, H40) -> 0
A41: 71-2 (avg) | B41: 2.3 | C41: 0.54 | D41: 4.29 | E41: 0.707 | F41: 0.733 | G41: 1.04 | H41: 1.005 | I41: =[1]!Th230Age(G41, H41) -> 0
A42: 72-2 (avg) | B42: 5.15 | C42: 1.21 | D42: 4.25 | E42: 0.714 | F42: 0.757 | G42: 1.06 | H42: 1.001 | I42: =[1]!Th230Age(G42, H42) -> 0
A43: 73-1 (avg) | B43: 6 | C43: 1.24 | D43: 4.83 | E43: 0.628 | F43: 0.677 | G43: 1.08 | H43: 1.004 | I43: =[1]!Th230Age(G43, H43) -> 0
A44: 73-3 (avg) | B44: 4.83 | C44: 1.07 | D44: 4.5 | E44: 0.674 | F44: 0.735 | G44: 1.09 | H44: 1.003 | I44: =[1]!Th230Age(G44, H44) -> 0
A45: 73-12 (avg) | B45: 5.07 | C45: 0.98 | D45: 5.16 | E45: 0.588 | F45: 0.675 | G45: 1.15 | H45: 1.005 | I45: =[1]!Th230Age(G45, H45) -> 0
A46: 76-1 | B46: 6.37 | C46: 1.22 | D46: 5.24 | E46: 0.579 | F46: 0.611 | G46: 1.05 | I46: =[1]!Th230Age(G46, H46) -> 0
A47: 77-9 | B47: 6.68 | C47: 1.3 | D47: 5.15 | E47: 0.589 | F47: 0.649 | G47: 1.1 | I47: =[1]!Th230Age(G47, H47) -> 0
A48: 78-1 (avg) | B48: 5.79 | C48: 1.1 | D48: 5.26 | E48: 0.577 | F48: 0.598 | G48: 1.04 | H48: 1.004 | I48: =[1]!Th230Age(G48, H48) -> 0
A49: SAV-B6 (avg) | B49: 3.34 | C49: 0.74 | D49: 4.5 | E49: 0.675 | F49: 0.763 | G49: 1.13 | H49: 1.002 | I49: =[1]!Th230Age(G49, H49) -> 0
A50: 83220 | B50: 30.93 | C50: 8.94 | D50: 3.46 | E50: 0.877 | F50: 0.985 | G50: 1.12 | H50: 1.001 | I50: =[1]!Th230Age(G50, H50) -> 0
A51: ER-84505 | B51: 29.54 | C51: 8.43 | D51: 3.51 | E51: 0.865 | F51: 0.976 | G51: 1.13 | H51: 1.002 | I51: =[1]!Th230Age(G51, H51) -> 0
A52: ER-97KS | B52: 32.16 | C52: 9.27 | D52: 3.47 | E52: 0.874 | F52: 0.989 | G52: 1.13 | H52: 1.001 | I52: =[1]!Th230Age(G52, H52) -> 0
A53: ER-2000 | B53: 32.19 | C53: 9.19 | D53: 3.5 | E53: 0.866 | F53: 0.989 | G53: 1.14 | H53: 1.002 | I53: =[1]!Th230Age(G53, H53) -> 0

Sheet H17
H1: TABLE 1.
A2: TABLE 1. | B2: K-Ar | C2: K-Ar | D2: Helium | E2: Helium | H2: Maximum Age | I2: Minimum Age | J2: Difference | K2: Difference | L2: Difference
A3: Million Years | B3: Min Age | C3: Max Age | D3: Min Age | E3: Max Age | H3: Million Years | I3: Million Years | J3: Million Years | K3: Percentage | L3: Ratio
A4: Salt Lake Crater, Oahu | B4: 1230 | C4: 1960 | D4: 60 | H4: 1960 | I4: 60 | J4: =(H4-I4) -> 1900 | K4: =(H4/I4) -> 32.66666667 | L4: =(H4/I4) -> 32.66666667
A5: Salt Lake Crater, Oahu | B5: 930 | C5: 1580 | D5: 140 | H5: 1580 | I5: 140 | J5: =(H5-I5) -> 1440 | K5: =(H5/I5) -> 11.28571429 | L5: =(H5/I5) -> 11.28571429
A6: Salt Lake Crater, Oahu | B6: 140 | C6: 680 | D6: 2.6 | E6: 3.4 | H6: 680 | I6: 3.4 | J6: 676.6 | K6: 200 | L6: 200
A7: Salt Lake Crater, Oahu | B7: 1290 | C7: 2050 | D7: 41 | E7: 92 | H7: 2050 | I7: 41 | J7: 2009 | K7: 50 | L7: 50
A8: Salt Lake Crater, Oahu | B8: 92 | C8: 147 | D8: 44 | H8: 147 | I8: 44 | J8: 103 | K8: 3.340909091 | L8: 3.340909091
A9: Salt Lake Crater, Oahu | B9: 1360 | C9: 1900 | D9: 57 | H9: 1900 | I9: 57 | J9: 1843 | K9: 33.33333333 | L9: 33.33333333
A10: 1800 Kaupulehu Flow | B10: 1030 | C10: 1030 | D10: 140 | E10: 350 | H10: 2020 | I10: 3.4 | J10: 2016.6 | K10: 594.1176471 | L10: 594.1176471
A11: 1800 Kaupulehu Flow | B11: 2480 | C11: 2480 | D11: 670 | E11: 670 | H11: 3300 | I11: 3.4 | J11: 3296.6 | K11: 970.5882353 | L11: 970.5882353
D14: 1800 Kaupulehu flow.
A15: John G. Funkhouser
A16: Journal Of Geophysical Research
A17: Volume 73, Number 14, Pages 4602, 4603
A18: Radiogenic Helium And Argon
A19: 1968
M21: K-Ar
A22: TABLE 2. | B22: K/Ar | H22: Sample | I22: K-Ar | J22: K-Ar | K22: Helium | L22: Helium | M22: Min Age
A23: Million Years | B23: Age | H23: Location | I23: Min Age | J23: Max Age | K23: Min Age | L23: Max Age | M23: Error Ratio
A24: 1800 Kaupulehu Flow | B24: 2040 | H24: 1800 Kaupulehu Flow | I24: 1030 | J24: 1030 | K24: 140 | L24: 350 | M24: =(I24 * 1000000)/167 -> 6167664.671 | N24: 1800 Kaupulehu Flow
A25: 1800 Kaupulehu Flow | B25: 960 | H25: 1800 Kaupulehu Flow | I25: 2480 | J25: 2480 | K25: 670 | L25: 670 | M25: =(I25 * 1000000)/167 -> 14850299.4 | N25: 1800 Kaupulehu Flow
A26: 1800 Kaupulehu Flow | B26: 1500 | H26: 1800 Kaupulehu Flow | I26: 2040 | M26: 12215568.86 | N26: 1800 Kaupulehu Flow
A27: 1800 Kaupulehu Flow | B27: 1580 | H27: 1800 Kaupulehu Flow | I27: 960 | M27: 5748502.994 | N27: 1800 Kaupulehu Flow
A28: 1800 Kaupulehu Flow | B28: 791 | H28: 1800 Kaupulehu Flow | I28: 1500 | M28: 8982035.928 | N28: 1800 Kaupulehu Flow
A29: 1800 Kaupulehu Flow | B29: 160 | H29: 1800 Kaupulehu Flow | I29: 1580 | M29: 9461077.844 | N29: 1800 Kaupulehu Flow
A30: 1800 Kaupulehu Flow | B30: 2470 | H30: 1800 Kaupulehu Flow | I30: 791 | M30: 4736526.946 | N30: 1800 Kaupulehu Flow
A31: 1800 Kaupulehu Flow | B31: 2960 | H31: 1800 Kaupulehu Flow | I31: 160 | M31: 958083.8323 | N31: 1800 Kaupulehu Flow
A32: Salt Lake Crater, Oahu | B32: 232 | H32: 1800 Kaupulehu Flow | I32: 2470 | M32: 14790419.16 | N32: 1800 Kaupulehu Flow
A33: Salt Lake Crater, Oahu | B33: 2020 | H33: 1800 Kaupulehu Flow | I33: 2960 | M33: 17724550.9 | N33: 1800 Kaupulehu Flow
A34: Salt Lake Crater, Oahu | B34: 925 | H34: Salt Lake Crater, Oahu | I34: 1230 | J34: 1960 | K34: 60 | M34: 7365269.461 | N34: Salt Lake Crater, Oahu
A35: Salt Lake Crater, Oahu | B35: 3300 | H35: Salt Lake Crater, Oahu | I35: 930 | J35: 1580 | K35: 140 | M35: 5568862.275 | N35: Salt Lake Crater, Oahu
A36: Salt Lake Crater, Oahu | B36: 0.4 | H36: Salt Lake Crater, Oahu | I36: 140 | J36: 680 | K36: 2.6 | L36: 3.4 | M36: 838323.3533 | N36: Salt Lake Crater, Oahu
H37: Salt Lake Crater, Oahu | I37: 1290 | J37: 2050 | K37: 41 | L37: 92 | M37: 7724550.898 | N37: Salt Lake Crater, Oahu
H38: Salt Lake Crater, Oahu | I38: 92 | J38: 147 | K38: 44 | M38: 550898.2036 | N38: Salt Lake Crater, Oahu
H39: Salt Lake Crater, Oahu | I39: 1360 | J39: 1900 | K39: 57 | M39: 8143712.575 | N39: Salt Lake Crater, Oahu
H40: Salt Lake Crater, Oahu | I40: 232 | M40: 1389221.557 | N40: Salt Lake Crater, Oahu
H41: Salt Lake Crater, Oahu | I41: 2020 | M41: 12095808.38 | N41: Salt Lake Crater, Oahu
H42: Salt Lake Crater, Oahu | I42: 925 | M42: 5538922.156 | N42: Salt Lake Crater, Oahu
H43: Salt Lake Crater, Oahu | I43: 3300 | M43: 19760479.04 | N43: Salt Lake Crater, Oahu
H44: Salt Lake Crater, Oahu | I44: 0.4 | M44: 2395.209581 | N44: Salt Lake Crater, Oahu

Sheet H18
A1: Isotopes | B1: Eruption Year | C1: Eruption Year | D1: Eruption Year | E1: Eruption Year | F1: Eruption Year | G1: Eruption Year | H1: Eruption Year | I1: Eruption Year | J1: Eruption Year | K1: Eruption Year
A2: Ratios | B2: 1949 | C2: 1949 | D2: 1954 | E2: 1954 | F2: 1954 | G2: 1954 | H2: 1954 | I2: 1954 | J2: 1975 | K2: 1975
A3: 206Pb/204Pb | B3: 18.842 | C3: 18.802 | D3: 18.821 | E3: 18.838 | F3: 18.832 | G3: 18.828 | H3: 18.797 | I3: 18.841 | J3: 18.833 | K3: 18.805
A4: 207Pb/204Pb | B4: 15.635 | C4: 15.631 | D4: 15.629 | E4: 15.632 | F4: 15.632 | G4: 15.636 | H4: 15.629 | I4: 15.637 | J4: 15.63 | K4: 15.62
A5: 207Pb/206Pb | B5: =B4/B3 -> 0.8297951385 | C5: =C4/C3 -> 0.831347729 | D5: 0.8304022103 | E5: 0.829812082 | F5: 0.8300764656 | G5: 0.8304652645 | H5: 0.8314624674 | I5: 0.829945332 | J5: 0.8299261934 | K5: 0.8306301516
A6: Age | B6: =[1]!AgePb76(B5) -> 4973.756612 | C6: =[1]!AgePb76(C5) -> 4976.412637 | D6: =[1]!AgePb76(D5) -> 4974.795761 | E6: =[1]!AgePb76(E5) -> 4973.785626 | F6: =[1]!AgePb76(F5) -> 4974.238271 | G6: =[1]!AgePb76(G5) -> 4974.903648 | H6: =[1]!AgePb76(H5) -> 4976.608711 | I6: =[1]!AgePb76(I5) -> 4974.01378 | J6: =[1]!AgePb76(J5) -> 4973.981012 | K6: =[1]!AgePb76(K5) -> 4975.185729
A8: Eruption Year | B8: True Age | C8: Pb Age (Ma) | D8: Age Ratio (106) | E8: True Age | F8: Age Ratio (106) | G8: Year Dated | H8: Eruption Year
A9: 1949 | B9: 48 | C9: 4974 | D9: =F9 -> 103.625 | E9: =G9-H9 -> 48 | F9: =C9/E9 -> 103.625 | G9: 1997 | H9: 1949
B10: 48 | C10: 4976 | D10: =F10 -> 103.6666667 | E10: =G10-H10 -> 48 | F10: =C10/E10 -> 103.6666667 | G10: 1997 | H10: 1949
A11: 1954 | B11: 43 | C11: 4975 | D11: 115.6976744 | E11: 43 | F11: 115.6976744 | G11: 1997 | H11: 1954
B12: 43 | C12: 4974 | D12: 115.6744186 | E12: 43 | F12: 115.6744186 | G12: 1997 | H12: 1954
B13: 43 | C13: 4974 | D13: 115.6744186 | E13: 43 | F13: 115.6744186 | G13: 1997 | H13: 1954
B14: 43 | C14: 4975 | D14: 115.6976744 | E14: 43 | F14: 115.6976744 | G14: 1997 | H14: 1954
B15: 43 | C15: 4977 | D15: 115.744186 | E15: 43 | F15: 115.744186 | G15: 1997 | H15: 1954
B16: 43 | C16: 4974 | D16: 115.6744186 | E16: 43 | F16: 115.6744186 | G16: 1997 | H16: 1954
A17: 1975 | B17: 22 | C17: 4974 | D17: 226.0909091 | E17: 22 | F17: 226.0909091 | G17: 1997 | H17: 1975
B18: 22 | C18: 4975 | D18: 226.1363636 | E18: 22 | F18: 226.1363636 | G18: 1997 | H18: 1975
A19: Average | B19: =AVERAGE(B9:B18) -> 39.8 | C19: =AVERAGE(C9:C18) -> 4974.8
A20: Maximum | B20: =MAX(B9:B19) -> 48 | C20: =MAX(C9:C19) -> 4977
A21: Minimum | B21: =MIN(B9:B20) -> 22 | C21: =MIN(C9:C20) -> 4974
A22: Difference | B22: =B20-B21 -> 26 | C22: =C20-C21 -> 3
A23: Accuracy | B23: =1-(B22/B19) -> 0.3467336683 | C23: =1-(C22/C19) -> 0.9993969607

Sheet H19
A1: Lahaina Volcanics | B1: West Maui | C1: 87Sr/86Sr | D1: Error | E1: Sr | F1: 143Nd/144Nd | G1: Error | H1: Nd | I1: 206Pb/204Pb | J1: Error | K1: 207Pb/204Pb | L1: Error | M1: 208Pb/204Pb | N1: Error | O1: 207Pb/206Pb | P1: Age | R1: Age (ma) | S1: Age (ma) | U1: 206Pb/238U | V1: 206Pb/238U | W1: 208Pb/232Th | X1: 208Pb/232Th | Y1: 207Pb/206Pb | Z1: 207Pb/206Pb
A2: C-130 | B2: basanite | C2: 0.70315 | D2: 3 | E2: -22 | F2: 0.513086 | G2: 28 | H2: 8.7 | I2: 18.169 | J2: 11 | K2: 15.452 | L2: 14 | M2: 37.75 | N2: 49 | O2: =(K2/I2) -> 0.850459574 | P2: =[1]!AgePb76(O2) -> 5008.682191 | R2: 5008.682191 | S2: 4990.5824 | U2: Age (Ma) | V2: Age (Ma) | W2: Age (Ma) | X2: Age (Ma) | Y2: Age (Ma) | Z2: Age (Ma)
A3: C-115 | B3: basanite | C3: 0.70326 | D3: 2 | E3: -20.4 | F3: 0.513034 | G3: 20 | H3: 7.7 | I3: 18.191 | J3: 11 | K3: 15.46 | L3: 14 | M3: 37.833 | N3: 49 | O3: =(K3/I3) -> 0.8498708152 | P3: =[1]!AgePb76(O3) -> 5007.699643 | R3: 5007.699643 | S3: 4988.326925 | U3: 9923.620562 | V3: 4553.158892 | W3: 26473.17578 | X3: 9494.426539 | Y3: 5008.682191 | Z3: 4992.133614
A4: Honolua Volcanics | R4: 5003.492277 | S4: 4987.495763 | U4: 8129.097114 | V4: 4541.443548 | W4: 16457.31569 | X4: 9292.562109 | Y4: 5007.699643 | Z4: 4991.661612
A5: C-155 | B5: mugearite | C5: 0.70343 | D5: 4 | E5: -18 | F5: 0.513043 | G5: 8 | H5: 7.9 | I5: 18.513 | J5: 11 | K5: 15.494 | L5: 14 | M5: 38.05 | N5: 49 | O5: =(K5/I5) -> 0.8369254038 | P5: =[1]!AgePb76(O5) -> 4985.911095 | R5: 5001.762467 | S5: 4986.341475 | U5: 7250.350948 | V5: 4441.745664 | W5: 15405.11976 | X5: 9237.773643 | Y5: 5003.492277 | Z5: 4990.5824
A6: C-153 | B6: hawaiite | C6: 0.70353 | D6: 3 | E6: -16.6 | F6: 0.513041 | G6: 7 | H6: 7.8 | I6: 18.447 | J6: 11 | K6: 15.456 | L6: 14 | M6: 37.917 | N6: 49 | O6: 0.8378598146 | P6: =[1]!AgePb76(O6) -> 4987.495763 | R6: 4999.992158 | S6: 4986.157694 | U6: 6104.455837 | V6: 4353.55804 | W6: 12662.22784 | X6: 8819.076565 | Y6: 5001.762467 | Z6: 4988.326925
A7: C-150 | B7: mugearite | C7: 0.70349 | D7: 3 | E7: -17.2 | F7: 0.513065 | G7: 9 | H7: 8.3 | I7: 18.502 | J7: 11 | K7: 15.483 | L7: 14 | M7: 38.033 | N7: 49 | O7: 0.836828451 | P7: =[1]!AgePb76(O7) -> 4985.746565 | R7: 4998.254535 | S7: 4985.911095 | U7: 6027.58625 | V7: 3694.182856 | W7: 12452.54312 | X7: 8472.734216 | Y7: 4999.992158 | Z7: 4987.495763
A8: C-149 | B8: mugearite | C8: 0.70349 | D8: 3 | E8: -17.2 | F8: 0.513037 | G8: 64 | H8: 7.7 | I8: 18.509 | J8: 11 | K8: 15.489 | L8: 14 | M8: 38.03 | N8: 119 | O8: 0.8368361338 | P8: =[1]!AgePb76(O8) -> 4985.759604 | R8: 4996.005848 | S8: 4985.872135 | U8: 5960.692151 | V8: 3652.531772 | W8: 11952.71755 | X8: 7837.245845 | Y8: 4998.254535 | Z8: 4986.341475
A9: C-128 | B9: trachyte | C9: 0.70347 | D9: 3 | E9: -17.5 | F9: 0.513034 | G9: 20 | H9: 7.7 | I9: 18.492 | J9: 11 | K9: 15.476 | L9: 14 | M9: 38.008 | N9: 49 | O9: 0.8369024443 | P9: =[1]!AgePb76(O9) -> 4985.872135 | R9: 4995.106799 | S9: 4985.759604 | U9: 5836.685342 | V9: 3604.084105 | W9: 11268.8213 | X9: 7620.86677 | Y9: 4996.005848 | Z9: 4986.157694
A10: C-116 | B10: trachyte | C10: 0.70348 | D10: 5 | E10: -17.3 | F10: 0.513064 | G10: 7 | H10: 8.3 | I10: 18.523 | J10: 11 | K10: 15.471 | L10: 14 | M10: 37.961 | N10: 119 | O10: 0.8352318739 | P10: =[1]!AgePb76(O10) -> 4983.034241 | R10: 4992.658153 | S10: 4985.746565 | U10: 5274.840369 | V10: 3492.837869 | W10: 11138.7351 | X10: 7472.158515 | Y10: 4995.106799 | Z10: 4985.911095
A11: C-92 | B11: trachyte | C11: 0.7035 | D11: 3 | E11: -17 | F11: 0.513035 | G11: 16 | H11: 7.7 | I11: 18.482 | J11: 11 | K11: 15.466 | L11: 14 | M11: 37.957 | N11: 49 | O11: 0.8368141976 | P11: =[1]!AgePb76(O11) -> 4985.722376 | R11: 4992.483962 | S11: 4985.722376 | U11: 4951.740151 | V11: 3475.90126 | W11: 10581.87671 | X11: 7319.188625 | Y11: 4992.658153 | Z11: 4985.872135
A12: HHT79-1a | B12: (C-92) | C12: 0.70355 | D12: 4 | F12: 0.513033 | G12: 20 | I12: 18.487 | J12: 11 | K12: 15.462 | L12: 14 | M12: 37.947 | N12: 49 | O12: 0.8363715043 | P12: =[1]!AgePb76(O12) -> 4984.970849 | R12: 4992.133614 | S12: 4984.970849 | U12: 4582.819241 | V12: 3362.517586 | W12: 10063.00415 | X12: 7214.816775 | Y12: 4992.483962 | Z12: 4985.759604
A13: HHT79-2b | B13: alkali basalt | C13: 0.70354 | D13: 3 | F13: 0.513033 | G13: 20 | H13: 7.3 | I13: 18.506 | J13: 11 | K13: 15.56 | L13: 14 | M13: 38.04 | N13: 49 | O13: 0.8408083865 | P13: =[1]!AgePb76(O13) -> 4992.483962 | R13: 4991.661612 | S13: 4983.034241 | W13: 9494.426539 | X13: 6065.093742 | Y13: 4992.133614 | Z13: 4985.746565
A14: HMT79-2b | C14: 0.70352 | D14: 4 | F14: 0.513005 | G14: 16 | I14: 18.474 | J14: 16 | K14: 15.535 | L14: 16 | M14: 37.974 | O14: 0.8409115514 | P14: =[1]!AgePb76(O14) -> 4992.658153
A15: Wailuku Basalt
A16: HMT79-3 | B16: tholeiitic olivine | C16: 0.70349 | D16: 4 | E16: -17.2 | F16: 0.513014 | G16: 19 | H16: 7.3 | I16: 18.462 | J16: 11 | K16: 15.456 | L16: 14 | M16: 37.925 | N16: 50 | O16: =(K16/I16) -> 0.8371790705 | P16: =[1]!AgePb76(O16) -> 4986.341475
A17: C-119 | B17: tholeiitic olivine | C17: 0.70347 | D17: 4 | E17: -17.5 | F17: 0.513044 | G17: 28 | H17: 7.9 | I17: 18.426 | J17: 11 | K17: 15.472 | L17: 14 | M17: 37.904 | N17: 49 | O17: 0.8396830566 | P17: =[1]!AgePb76(O17) -> 4990.5824
A18: HHT79-2A | B18: (C-119) | C18: 0.70356 | D18: 3 | F18: 0.513025 | G18: 20 | I18: 18.462 | J18: 11 | K18: 15.454 | L18: 14 | M18: 37.899 | N18: 49 | O18: 0.8370707399 | P18: =[1]!AgePb76(O18) -> 4986.157694
A19: C-118 | B19: alkalic olivine | C19: 0.70364 | D19: 4 | F19: 0.513049 | G19: 12 | H19: 8 | I19: 18.258 | J19: 11 | K19: 15.471 | L19: 14 | M19: 37.762 | N19: 49 | O19: 0.8473545843 | P19: =[1]!AgePb76(O19) -> 5003.492277
A20: C-117 | B20: tholeiitic olivine | C20: 0.70359 | D20: 3 | E20: -15.8 | F20: 0.513007 | G20: 15 | H20: 7.2 | I20: 18.404 | J20: 15 | K20: 15.429 | L20: 14 | M20: 37.94 | N20: 49 | O20: 0.8383503586 | P20: =[1]!AgePb76(O20) -> 4988.326925
A21: C-114 | B21: alkalic olivine | C21: 0.70346 | D21: 4 | E21: -17.6 | F21: 0.513032 | G21: 22 | H21: 8.9 | I21: 18.412 | J21: 11 | K21: 15.472 | L21: 14 | M21: 37.906 | N21: 49 | O21: 0.8403215294 | P21: =[1]!AgePb76(O21) -> 4991.661612
A22: C-110 | B22: tholeiite | C22: 0.70363 | D22: 3 | F22: 0.513053 | G22: 13 | H22: 8.1 | I22: 18.309 | J22: 11 | K22: 15.476 | L22: 14 | M22: 37.874 | N22: 49 | O22: 0.8452673549 | P22: =[1]!AgePb76(O22) -> 4999.992158
A23: C-107 | B23: tholeiite | C23: 0.703118 | D23: 3 | E23: -17.3 | F23: 0.51307 | G23: 12 | H23: 8.1 | I23: 18.438 | J23: 11 | K23: 15.499 | L23: 14 | M23: 37.948 | N23: 119 | O23: 0.8406009329 | P23: =[1]!AgePb76(O23) -> 4992.133614
A24: C-100 | B24: tholeiite | C24: 0.70361 | D24: 4 | F24: 0.513027 | G24: 13 | H24: 7.5 | I24: 18.365 | J24: 11 | K24: 15.47 | L24: 14 | M24: 37.877 | N24: 119 | O24: 0.8423631909 | P24: =[1]!AgePb76(O24) -> 4995.106799
A25: East Maui | B25: (Haleakala)
A26: Hana Volcanics
A27: C-129 | B27: basanitoid | C27: 0.70325 | D27: 3 | E27: -20.6 | F27: 0.51307 | G27: 13 | H27: 8.4 | I27: 18.259 | J27: 11 | K27: 15.453 | L27: 14 | M27: 37.828 | N27: 49 | O27: =(K27/I27) -> 0.8463223616 | P27: =[1]!AgePb76(O27) -> 5001.762467
A28: Kula Volcanics
A29: C-127 | B29: hawaiite | C29: 0.70339 | D29: 4 | E29: -18.6 | F29: 0.51303 | G29: 15 | H29: 7.6 | I29: 18.351 | J29: 11 | K29: 15.468 | L29: 14 | M29: 37.938 | N29: 49 | O29: =(K29/I29) -> 0.8428968449 | P29: =[1]!AgePb76(O29) -> 4996.005848
A30: Honomanu Basalt
A31: C-122 | B31: tholeiite olivine | C31: 0.70378 | D31: 3 | E31: -13.1 | F31: 0.512976 | G31: 16 | H31: 6.6 | I31: 18.303 | J31: 11 | K31: 15.452 | L31: 14 | M31: 37.924 | N31: 119 | O31: =(K31/I31) -> 0.8442331858 | P31: =[1]!AgePb76(O31) -> 4998.254535
S32: 206Pb/238U | T32: 208Pb/232Th | U32: 207Pb/206Pb | X32: West Maui | Y32: 206Pb/238U | Z32: 208Pb/232Th | AA32: 207Pb/206Pb
A33: Lahaina Volcanics | L33: 238U/204Pb | M33: 232Th/238U | N33: 206Pb/238U | O33: 206Pb/204Pb | P33: 208Pb/204Pb | Q33: 232Th/204Pb | R33: 208Pb/232Th | S33: Age (ma) | T33: Age (ma) | U33: Age (ma) | X33: Rock Formation | Y33: Age (Ma) | Z33: Age (Ma) | AA33: Age (Ma)
A34: C-130 | B34: basanite | C34: 8.4 | D34: 245 | E34: 0.034 | F34: 4.59 | G34: 19.91 | H34: 0.23 | I34: 1.38 | J34: 0.39 | K34: 1.16 | L34: 17.7 | M34: 3.1 | N34: =O34/L34 -> 1.026497175 | O34: 18.169 | P34: 37.75 | Q34: =M34/(1/L34) -> 54.87 | R34: =P34/Q34 -> 0.6879897941 | S34: =[1]!AgePb6U8(N34) -> 4553.158892 | T34: =[1]!AgePb8Th2(R34) -> 10581.87671 | U34: 5008.682191 | X34: Lahaina Volcanics | Y34: 4553.158892 | Z34: 10581.87671 | AA34: 5008.682191
A35: C-115 | B35: basanite | C35: 43.8 | D35: 705 | E35: 0.062 | F35: 4.82 | G35: 25.94 | H35: 0.19 | I35: 3.03 | J35: 1.4 | K35: 4.05 | L35: 28.9 | M35: 3 | N35: =O35/L35 -> 0.6294463668 | O35: 18.191 | P35: 37.833 | Q35: =M35/(1/L35) -> 86.7 | R35: =P35/Q35 -> 0.436366782 | S35: =[1]!AgePb6U8(N35) -> 3147.399225 | T35: =[1]!AgePb8Th2(R35) -> 7319.188625 | U35: 5007.699643 | Y35: 3147.399225 | Z35: 7319.188625 | AA35: 5007.699643
A36: HMT79-5 | B36: (C-115) | C36: 40.5 | D36: 667 | E36: 0.061 | F36: 7.97 | G36: 39.42 | H36: 0.2 | I36: 4.51 | J36: 1.54 | K36: 5.6 | L36: 21.4 | M36: 3.7 | Q36: 79.18 | R36: 0 | X36: Honolua Volcanics | Y36: 7250.350948 | Z36: 11952.71755 | AA36: 4985.911095
A37: Honolua Volcanics | R37: 0 | U37: 4985.911095 | Y37: 4951.740151 | Z37: 9494.426539 | AA37: 4992.658153
A38: C-155 | B38: mugearite | C38: 49.8 | D38: 1331 | E38: 0.037 | F38: 17.62 | G38: 87.05 | H38: 0.2 | I38: 4.27 | J38: 1.22 | K38: 5.56 | L38: 18.1 | M38: 4.7 | N38: 1.02281768 | O38: 18.513 | P38: 38.05 | Q38: 85.07 | R38: 0.4472787116 | S38: =[1]!AgePb6U8(N38) -> 4541.443548 | T38: =[1]!AgePb8Th2(R38) -> 7472.158515 | U38: 4987.495763 | Y38: 4541.443548 | Z38: 9237.773643 | AA38: 4992.483962
J39: 1.18 | K39: 5.33 | M39: 4.7 | R39: 0 | U39: 4985.746565 | Y39: 4441.745664 | Z39: 8819.076565 | AA39: 4987.495763
A40: C-153 | B40: hawaiite | C40: 8.7 | D40: 499 | E40: 0.017 | F40: 9.06 | G40: 40.33 | H40: 0.22 | I40: 1.59 | J40: 0.46 | K40: 1.51 | L40: 18.6 | M40: 3.4 | N40: 0.9917741935 | O40: 18.447 | P40: 37.917 | Q40: 63.24 | R40: 0.599573055 | S40: =[1]!AgePb6U8(N40) -> 4441.745664 | T40: =[1]!AgePb8Th2(R40) -> 9494.426539 | U40: 4985.759604 | Y40: 3652.531772 | Z40: 8472.734216 | AA40: 4986.341475
A41: C-150 | B41: mugearite | C41: 44.1 | D41: 1149 | E41: 0.038 | F41: 15.15 | G41: 71 | H41: 0.21 | I41: 4.23 | J41: 1.66 | K41: 78.05 | L41: 24.7 | M41: 4.4 | N41: 0.7490688259 | O41: 18.502 | P41: 38.033 | Q41: 108.68 | R41: 0.3499539934 | S41: =[1]!AgePb6U8(N41) -> 3604.084105 | T41: =[1]!AgePb8Th2(R41) -> 6065.093742 | U41: 4985.872135 | Y41: 3604.084105 | Z41: 7837.245845 | AA41: 4985.872135
A42: C-149 | B42: mugearite | C42: 48.2 | D42: 1041 | E42: 0.046 | F42: 14.95 | G42: 64.91 | H42: 0.23 | I42: 5.04 | J42: 2.07 | K42: 6.14 | L42: 25.9 | M42: 3.1 | N42: 0.7146332046 | O42: 18.509 | P42: 38.03 | Q42: 80.29 | R42: 0.4736579898 | S42: =[1]!AgePb6U8(N42) -> 3475.90126 | T42: =[1]!AgePb8Th2(R42) -> 7837.245845 | U42: 4983.034241 | Y42: 3492.837869 | Z42: 7472.158515 | AA42: 4985.759604
A43: C-128 | B43: trachyte | C43: 59.1 | D43: 400 | E43: 0.148 | F43: 14.63 | G43: 78.24 | H43: 0.19 | I43: 7.27 | J43: 1.84 | K43: 7.24 | L43: 16 | M43: 4.1 | N43: 1.15575 | O43: 18.492 | P43: 38.008 | Q43: 65.6 | R43: 0.5793902439 | S43: =[1]!AgePb6U8(N43) -> 4951.740151 | T43: =[1]!AgePb8Th2(R43) -> 9237.773643 | U43: 4985.722376 | Y43: 3475.90126 | Z43: 6065.093742 | AA43: 4985.746565
A44: C-116 | B44: trachyte | C44: 64.5 | D44: 432 | E44: 0.149 | F44: 20.33 | G44: 98.84 | H44: 0.21 | I44: 6.15 | J44: 2.35 | K44: 7.45 | L44: 24.3 | M44: 3 | N44: 0.7622633745 | O44: 18.523 | P44: 37.961 | Q44: 72.9 | R44: 0.5207270233 | S44: =[1]!AgePb6U8(N44) -> 3652.531772 | T44: =[1]!AgePb8Th2(R44) -> 8472.734216 | U44: 4984.970849 | X44: Wailuku Basalt | Y44: 9923.620562 | Z44: 26473.17578 | AA44: 5003.492277
I45: 2.55 | J45: 8.42 | L45: 3.4 | Q45: 0 | R45: 0 | U45: 4992.483962 | Y45: 8129.097114 | Z45: 15405.11976 | AA45: 5001.762467
A46: C-92 | B46: trachyte | C46: 50 | D46: 1040 | E46: 0.048 | F46: 15.67 | G46: 81.33 | H46: 0.19 | I46: 4.56 | J46: 1.86 | K46: 4.84 | L46: 25.7 | M46: 2.7 | N46: 0.7191439689 | O46: 18.482 | P46: 37.957 | Q46: 69.39 | R46: 0.5470096556 | S46: =[1]!AgePb6U8(N46) -> 3492.837869 | T46: =[1]!AgePb8Th2(R46) -> 8819.076565 | U46: 4992.658153 | Y46: 6027.58625 | Z46: 12662.22784 | AA46: 4999.992158
A47: HHT79-2b | B47: basalt | C47: 3.4 | D47: 525 | E47: 0.006 | F47: 8.58 | G47: 31.05 | H47: 0.28 | I47: 2.04 | J47: 0.29 | K47: 1.46 | L47: 8.9 | M47: 5.3 | N47: 2.079325843 | O47: 18.506 | P47: 38.04 | Q47: 47.17 | R47: 0.8064447742 | S47: =[1]!AgePb6U8(N47) -> 7250.350948 | T47: =[1]!AgePb8Th2(R47) -> 11952.71755 | Y47: 5960.692151 | Z47: 12452.54312 | AA47: 4998.254535
A48: Wailuku Basalt | R48: 0 | U48: 4986.341475 | Y48: 5836.685342 | Z48: 11268.8213 | AA48: 4996.005848
A49: HMT79-3 | B49: olivine | C49: 0.6 | D49: 360 | E49: 0.002 | F49: 5.51 | G49: 20.51 | H49: 0.27 | I49: 0.95 | J49: 0.11 | K49: 0.7 | L49: 7.3 | M49: 6.1 | N49: 2.529041096 | O49: 18.462 | P49: 37.925 | Q49: 44.53 | R49: 0.8516730294 | S49: =[1]!AgePb6U8(N49) -> 8129.097114 | T49: =[1]!AgePb8Th2(R49) -> 12452.54312 | U49: 4990.5824 | Y49: 5274.840369 | Z49: 11138.7351 | AA49: 4995.106799
A50: basalt | B50: (C-120) | R50: 0 | U50: 4986.157694 | Y50: 4582.819241 | Z50: 10063.00415 | AA50: 4992.133614
A51: C-119 | B51: tholeiitic | C51: 7.7 | D51: 489 | E51: 0.016 | F51: 8.1 | G51: 25.94 | H51: 0.31 | I51: 1.16 | J51: 0.35 | K51: 1.15 | L51: 19.1 | M51: 3.4 | N51: 0.9647120419 | O51: 18.426 | P51: 37.904 | Q51: 64.94 | R51: 0.5836772405 | S51: =[1]!AgePb6U8(N51) -> 4353.55804 | T51: =[1]!AgePb8Th2(R51) -> 9292.562109 | U51: 5003.492277 | Y51: 4353.55804 | Z51: 9292.562109 | AA51: 4991.661612
A52: olivine | B52: basalt | R52: 0 | U52: 4988.326925 | X52: Hana Volcanics | Y52: 3694.182856 | Z52: 7620.86677
A53: C-118 | B53: alkalic olivine | C53: 1.4 | D53: 254 | E53: 0.006 | F53: 4.2 | G53: 16.49 | H53: 0.25 | I53: 1.2 | J53: 0.23 | K53: 0.61 | L53: 11.8 | M53: 2.8 | N53: 1.547288136 | O53: 18.258 | P53: 37.762 | Q53: 33.04 | R53: 1.142917676 | S53: =[1]!AgePb6U8(N53) -> 6027.58625 | T53: =[1]!AgePb8Th2(R53) -> 15405.11976 | U53: 4991.661612 | X53: Kula Volcanics | Y53: 3362.517586 | Z53: 7214.816775
A54: basalt | R54: 0 | U54: 4999.992158 | X54: Honmanu Basalt | Y54: 6104.455837 | Z54: 16457.31569
A55: C-117 | B55: tholeiitic | C55: 3.6 | D55: 382 | E55: 0.009 | F55: 4.14 | G55: 16.96 | H55: 0.24 | I55: 1.14 | J55: 0.22 | K55: 0.76 | L55: 12.1 | M55: 3.6 | N55: 1.520991736 | O55: 18.404 | P55: 37.94 | Q55: 43.56 | R55: 0.8709825528 | S55: =[1]!AgePb6U8(N55) -> 5960.692151 | T55: =[1]!AgePb8Th2(R55) -> 12662.22784 | U55: 4992.133614
A56: olivine | B56: basalt | R56: 0 | U56: 4995.106799
A57: C-114 | B57: olivine | C57: 3.1 | D57: 739 | E57: 0.004 | F57: 6.88 | G57: 27.41 | H57: 0.25 | I57: 1.37 | J57: 0.27 | K57: 1.23 | L57: 12.5 | M57: 4.7 | N57: 1.47296 | O57: 18.412 | P57: 37.906 | Q57: 58.75 | R57: 0.6452085106 | S57: =[1]!AgePb6U8(N57) -> 5836.685342 | T57: =[1]!AgePb8Th2(R57) -> 10063.00415
A58: basalt | R58: 0
A59: C-110 | B59: tholeiite | C59: 4.2 | D59: 319 | E59: 0.013 | F59: 4.93 | G59: 17.92 | H59: 0.27 | I59: 2.85 | J59: 0.23 | K59: 0.62 | L59: 5 | M59: 2.8 | N59: 3.6618 | O59: 18.309 | P59: 37.874 | Q59: 14 | R59: 2.705285714 | S59: =[1]!AgePb6U8(N59) -> 9923.620562 | T59: =[1]!AgePb8Th2(R59) -> 26473.17578 | U59: 5001.762467
A60: C-107 | B60: tholeiite | C60: 5.1 | D60: 356 | E60: 0.014 | F60: 6.97 | G60: 25.99 | H60: 0.27 | I60: 0.96 | J60: 0.27 | K60: 0.77 | L60: 17.8 | M60: 2.9 | N60: 1.035842697 | O60: 18.438 | P60: 37.948 | Q60: 51.62 | R60: 0.7351414181 | S60: =[1]!AgePb6U8(N60) -> 4582.819241 | T60: =[1]!AgePb8Th2(R60) -> 11138.7351
A61: C-100 | B61: tholeiite | C61: 3.1 | D61: 346 | E61: 0.009 | F61: 3.45 | G61: 13.07 | H61: 0.26 | I61: 0.87 | J61: 0.2 | K61: 0.68 | L61: 14.5 | M61: 3.5 | N61: 1.266551724 | O61: 18.365 | P61: 37.877 | Q61: 50.75 | R61: 0.7463448276 | S61: =[1]!AgePb6U8(N61) -> 5274.840369 | T61: =[1]!AgePb8Th2(R61) -> 11268.8213 | U61: 4996.005848
A62: EAST MAUl | R62: 0
A63: Hana Volcanics | R63: 0 | U63: 4998.254535
A64: C-129 | B64: basanitoid | C64: 23.9 | D64: 523 | E64: 0.046 | F64: 6.16 | G64: 27.58 | H64: 0.22 | I64: 1.63 | J64: 0.61 | K64: 2.09 | L64: 23.6 | M64: 3.5 | N64: 0.7736864407 | O64: 18.259 | P64: 37.828 | Q64: 82.6 | R64: 0.4579661017 | S64: =[1]!AgePb6U8(N64) -> 3694.182856 | T64: =[1]!AgePb8Th2(R64) -> 7620.86677
A65: H65-11 | B65: basalt | C65: 18.8 | D65: 582 | E65: 0.032 | F65: 6.01 | G65: 26.1 | H65: 0.23 | L65: 2.6 | Q65: 0 | R65: 0
A66: Kula Volcanics | R66: 0 | W66: 3147
A67: C-127 | B67: hawaiite | C67: 29.8 | D67: 831 | E67: 0.036 | F67: 7.53 | G67: 37.4 | H67: 0.2 | I67: 2.27 | J67: 0.97 | K67: 3.05 | L67: 26.8 | M67: 3.3 | N67: 0.684738806 | O67: 18.351 | P67: 37.938 | Q67: 88.44 | R67: 0.4289687924 | S67: =[1]!AgePb6U8(N67) -> 3362.517586 | T67: =[1]!AgePb8Th2(R67) -> 7214.816775 | W67: 3363
A68: H65-4 | B68: basalt | C68: 19.9 | D68: 616 | E68: 0.032 | F68: 6.83 | G68: 30.7 | H68: 0.22 | K68: 2.1 | R68: 0 | W68: 3476
A69: Honmanu Basalt | R69: 0 | W69: 3493
A70: C-122 | B70: olivine | C70: 4.72 | D70: 225 | E70: 0.021 | F70: 4.23 | G70: 14.71 | H70: 0.29 | I70: 1.08 | J70: 0.2 | K70: 0.51 | L70: 11.6 | M70: 2.6 | N70: 1.577844828 | O70: 18.303 | P70: 37.924 | Q70: 30.16 | R70: 1.257427056 | S70: =[1]!AgePb6U8(N70) -> 6104.455837 | T70: =[1]!AgePb8Th2(R70) -> 16457.31569 | W70: 3604
A71: basalt | R71: Average | S71: =AVERAGE(S34:S70) -> 5064.821371 | T71: =AVERAGE(T34:T70) -> 10823.88002 | U71: =AVERAGE(U34:U70) -> 4992.327266 | W71: 3653
A72: C-122 | C72: 4.11 | D72: 207 | E72: 0.02 | F72: 3.73 | G72: 12.3 | H72: 0.3 | K72: 0.8 | R72: Maximum | S72: =MAX(S34:S71) -> 9923.620562 | T72: =MAX(T34:T71) -> 26473.17578 | U72: =MAX(U34:U71) -> 5008.682191 | W72: 3694
R73: Minimum | S73: =MIN(S34:S72) -> 3147.399225 | T73: =MIN(T34:T72) -> 6065.093742 | U73: =MIN(U34:U72) -> 4983.034241 | W73: 4354
R74: Difference | S74: =S72-S73 -> 6776.221336 | T74: =T72-T73 -> 20408.08204 | U74: =U72-U73 -> 25.6479506 | W74: 4442
S75: 206Pb/238U | T75: 208Pb/232Th | U75: 207Pb/206Pb | W75: 4541
W76: 4553
W77: 4583
W78: 4952 | X78: 4952
W79: 4983 | X79: 4983
W80: 4985 | X80: 4985
W81: 4986 | X81: 4986
W82: 4986 | X82: 4986
W83: 4986 | X83: 4986
W84: 4986 | X84: 4986
W85: 4986 | X85: 4986
W86: 4986 | X86: 4986
W87: 4986 | X87: 4986
W88: 4987 | X88: 4987
W89: 4988 | X89: 4988
W90: 4991 | X90: 4991
W91: 4992 | X91: 4992
W92: 4992 | X92: 4992
W93: 4992 | X93: 4992
W94: 4993 | X94: 4993
W95: 4995 | X95: 4995
W96: 4996 | X96: 4996
W97: 4998 | X97: 4998
W98: 5000 | X98: 5000 | Y98: 5000
W99: 5002 | X99: 5002 | Y99: 5002
W100: 5003 | X100: 5003 | Y100: 5003
W101: 5008 | X101: 5008 | Y101: 5008
W102: 5009 | X102: 5009 | Y102: 5009
W103: 5275 | X103: 5275 | Y103: 5275
W104: 5837 | X104: 5837 | Y104: 5837
W105: 5961 | X105: 5961 | Y105: 5961
W106: 6028 | X106: 6028 | Y106: 6028
W107: 6065 | X107: 6065 | Y107: 6065
W108: 6104 | X108: 6104 | Y108: 6104
W109: 7215 | X109: 7215 | Y109: 7215
W110: 7250 | X110: 7250 | Y110: 7250
W111: 7319 | X111: 7319 | Y111: 7319
W112: 7472 | X112: 7472 | Y112: 7472
W113: 7621 | X113: 7621 | Y113: 7621
W114: 7837 | X114: 7837 | Y114: 7837
W115: 8129 | X115: 8129 | Y115: 8129
W116: 8473 | X116: 8473 | Y116: 8473
W117: 8819 | X117: 8819 | Y117: 8819
W118: 9238 | X118: 9238 | Y118: 9238
W119: 9293 | X119: 9293 | Y119: 9293
W120: 9494 | X120: 9494 | Y120: 9494
W121: 9924 | X121: 9924 | Y121: 9924
W122: 10063 | X122: 10063 | Y122: 10063 | Z122: 10063
W123: 10582 | X123: 10582 | Y123: 10582 | Z123: 10582
W124: 11139 | X124: 11139 | Y124: 11139 | Z124: 11139
W125: 11269 | X125: 11269 | Y125: 11269 | Z125: 11269
W126: 11953 | X126: 11953 | Y126: 11953 | Z126: 11953
W127: 12453 | X127: 12453 | Y127: 12453 | Z127: 12453
W128: 12662 | X128: 12662 | Y128: 12662 | Z128: 12662
W129: 15405 | X129: 15405 | Y129: 15405 | Z129: 15405
W130: 16457 | X130: 16457 | Y130: 16457 | Z130: 16457
W131: 26473 | X131: 26473 | Y131: 26473 | Z131: 26473
V132: Number Dates | W132: =COUNT(W66:W131) -> 66 | X132: =COUNT(X66:X131) -> 54 | Y132: =COUNT(Y66:Y131) -> 34 | Z132: =COUNT(Z66:Z131) -> 10

Sheet H20
A1: Table 6
A2: 206Pb/204Pb | B2: 19.088 | C2: 19.09 | D2: 19.141 | E2: 19.139 | F2: 19.102
A3: 207Pb/204Pb | B3: 15.74 | C3: 15.712 | D3: 15.782 | E3: 15.772 | F3: 15.731
A4: 207Pb/206Pb | B4: =(B3/B2) -> 0.8246018441 | C4: =(C3/C2) -> 0.8230487166 | D4: 0.8245128259 | E4: 0.824076493 | F4: 0.8235263323
A5: Age | B5: =[1]!AgePb76(B4) -> 4964.833877 | C5: =[1]!AgePb76(C4) -> 4962.153801 | D5: =[1]!AgePb76(D4) -> 4964.680412 | E5: =[1]!AgePb76(E4) -> 4963.927933 | F5: =[1]!AgePb76(F4) -> 4962.978546
A6: Eruption | B6: 1944 | C6: 1944 | D6: 1944 | E6: 1944 | F6: 1944
A7: Dated | B7: 2005 | C7: 2005 | D7: 2005 | E7: 2005 | F7: 2005
A8: Historic Age | B8: =B7-B6 -> 61 | C8: =C7-C6 -> 61 | D8: 61 | E8: 61 | F8: 61
A9: Error Ratio
A12: Pb Age (Ma) | B12: Historic Age | C12: Age Ratio (106)
A13: 4965 | B13: 61 | C13: =A13/B13 -> 81.39344262
A14: 4962 | B14: 61 | C14: =A14/B14 -> 81.3442623
A15: 4965 | B15: 61 | C15: 81.39344262
A16: 4964 | B16: 61 | C16: 81.37704918
A17: 4963 | B17: 61 | C17: 81.36065574

Sheet H21
A1: Table 2 | S1: 4951.463615
A2: Sample | B2: Th | C2: U | D2: (238U/232Th) | E2: (230Th/232Th) | F2: 2sm | G2: (230Th/232Th) | H2: (230Th/238U) | I2: 87Sr/86Sr | J2: 2sm | K2: 143Nd/144Nd | L2: 2sm | M2: 206Pb/204Pb | N2: 207Pb/204Pb | O2: 208Pb/204Pb | P2: 207Pb/206Pb | Q2: Age | S2: 4951.85063
A3: Palaeostromboli I | B3: (85 ka) | S3: 4951.989042
A4: STR-106 | B4: 12.29 | C4: 3.46 | D4: 0.854 | E4: 0.8228 | F4: 52 | G4: 0.786 | H4: 0.921 | I4: 0.705776 | J4: 7 | K4: 0.51259 | L4: 4 | M4: 19.024 | N4: 15.68 | O4: 39.117 | P4: =(N4/M4) -> 0.8242220353 | Q4: =[1]!AgePb76(P4) -> 4964.178975 | S4: 4955.271302
A5: STR-64 | B5: 15.52 | C5: 4.12 | D5: 0.806 | E5: 0.7864 | F5: 41 | G5: 0.763 | H5: 0.947 | I5: 0.705821 | J5: 6 | K5: 0.512566 | L5: 4 | M5: 18.988 | N5: 15.671 | O5: 39.059 | P5: =(N5/M5) -> 0.8253107226 | Q5: =[1]!AgePb76(P5) -> 4966.055335 | S5: 4956.732215
A6: STR-105 | B6: 16.66 | C6: 4.66 | D6: 0.849 | E6: 0.8187 | F6: 45 | G6: 0.783 | H6: 0.922 | I6: 0.705795 | J6: 7 | K6: 0.512591 | L6: 3 | M6: 18.994 | N6: 15.676 | O6: 39.076 | P6: 0.8253132568 | Q6: =[1]!AgePb76(P6) -> 4966.059699 | S6: 4956.938919
A7: Palaeostromboli II | B7: (60 ka) | S7: 4957.492028
A8: STR-123 | B8: 7.47 | C8: – | E8: 0.8158 | F8: 58 | I8: 0.705374 | J8: 6 | K8: 0.51256 | L8: 4 | M8: 19.063 | N8: 15.688 | O8: 39.137 | P8: 0.8229554635 | Q8: =[1]!AgePb76(P8) -> 4961.992712 | S8: 4957.492028
A9: STR-143 | B9: 6.99 | C9: 2.18 | D9: 0.945 | E9: 0.845 | F9: 58 | G9: 0.772 | H9: 0.816 | I9: 0.705094 | J9: 6 | K9: 0.512604 | L9: 4 | M9: 19.029 | N9: 15.675 | O9: 39.1 | P9: 0.8237427085 | Q9: =[1]!AgePb76(P9) -> 4963.352017 | S9: 4958.05208
A10: STR-66 | B10: 7.11 | C10: 1.96 | D10: 0.838 | E10: 0.8091 | F10: 55 | G10: 0.788 | H10: 0.94 | I10: 0.705335 | J10: 7 | K10: 0.512558 | L10: 4 | M10: 19.017 | N10: 15.68 | O10: 39.112 | P10: 0.8245254246 | Q10: =[1]!AgePb76(P10) -> 4964.702133 | S10: 4959.582136
A11: Palaeostromboli III | B11: (35 ka) | S11: 4960.052299
A12: STR-131 | B12: 12.56 | C12: 3.26 | D12: 0.788 | E12: 0.8091 | F12: 44 | G12: 0.817 | H12: 1.037 | I12: 0.706071 | J12: 7 | K12: 0.512538 | L12: 4 | M12: 19.121 | N12: 15.686 | O12: 39.144 | P12: 0.820354584 | Q12: =[1]!AgePb76(P12) -> 4957.492028 | S12: 4960.08096
A13: STR-27 | B13: 15.44 | C13: 4.04 | D13: 0.794 | E13: 0.8014 | F13: 48 | G13: 0.804 | H13: 1.013 | I13: 0.706096 | J13: 8 | K13: 0.512538 | L13: 5 | M13: 19.121 | N13: 15.686 | O13: 39.143 | P13: 0.820354584 | Q13: =[1]!AgePb76(P13) -> 4957.492028 | S13: 4960.097108
A14: STR-162 | B14: 20.3 | C14: 5.46 | D14: 0.817 | E14: 0.8193 | F14: 55 | G14: 0.82 | H14: 1.004 | I14: 0.706273 | J14: 6 | K14: 0.512524 | L14: 3 | M14: 19.126 | N14: 15.684 | O14: 39.139 | P14: 0.8200355537 | Q14: =[1]!AgePb76(P14) -> 4956.938919 | S14: 4960.159162
A15: Vancori | B15: (26–12 ka) | S15: 4960.246104
A16: STR-158 | B16: 11.98 | C16: 3.16 | D16: 0.8 | E16: 0.81 | F16: 40 | G16: 0.813 | H16: 1.016 | I16: 0.706041 | J16: 6 | K16: 0.512556 | L16: 5 | M16: 19.066 | N16: 15.673 | O16: 39.079 | P16: 0.8220392321 | Q16: =[1]!AgePb76(P16) -> 4960.40895 | S16: 4960.40895
A17: STR-52 | B17: 18.08 | C17: 4.92 | D17: 0.826 | E17: 0.8348 | F17: 57 | G17: 0.837 | H17: 1.013 | I17: 0.705815 | J17: 6 | K17: 0.512587 | L17: 5 | M17: 19.13 | N17: 15.685 | O17: 39.147 | P17: 0.8199163617 | Q17: =[1]!AgePb76(P17) -> 4956.732215 | S17: 4960.47351
A18: STR-55 | B18: 22.71 | C18: 6.12 | D18: 0.817 | E18: 0.8376 | F18: 51 | G18: 0.84 | H18: 1.028 | I18: 0.706026 | J18: 7 | K18: 0.512562 | L18: 4 | M18: 19.072 | N18: 15.674 | O18: 39.092 | P18: 0.8218330537 | Q18: =[1]!AgePb76(P18) -> 4960.052299 | S18: 4960.485753
A19: STR-34 | B19: 25.09 | C19: – | E19: 0.8453 | F19: 35 | I19: 0.70605 | J19: 6 | K19: 0.512562 | L19: 5 | M19: 19.146 | N19: 15.682 | O19: 39.144 | P19: 0.8190744803 | Q19: =[1]!AgePb76(P19) -> 4955.271302 | S19: 4960.697195
A20: Neostromboli | B20: (10 ka) | S20: 4961.810408
A21: STR-2 | B21: 18.77 | C21: 5.9 | D21: 0.953 | E21: 0.8828 | F21: 41 | G21: 0.876 | H21: 0.919 | I21: 0.70755 | J21: 6 | K21: 0.512474 | L21: 5 | M21: 19.082 | N21: 15.687 | O21: 39.104 | P21: 0.822083639 | Q21: =[1]!AgePb76(P21) -> 4960.485753 | S21: 4961.992712
A22: STR-4 | B22: 18.14 | C22: 4.93 | D22: 0.824 | E22: 0.8628 | F22: 41 | G22: 0.866 | H22: 1.051 | I22: 0.707544 | J22: 7 | K22: 0.512464 | L22: 4 | M22: 19.201 | N22: 15.685 | O22: 39.172 | P22: 0.8168845373 | Q22: =[1]!AgePb76(P22) -> 4951.463615 | S22: 4963.352017
A23: STR-87 | B23: 15.61 | C23: 4.06 | D23: 0.79 | E23: 0.8512 | F23: 43 | G23: 0.857 | H23: 1.085 | I23: 0.707222 | J23: 7 | K23: 0.512491 | L23: 4 | M23: 19.085 | N23: 15.685 | O23: 39.128 | P23: 0.8218496201 | Q23: =[1]!AgePb76(P23) -> 4960.08096 | S23: 4963.421138
A24: STR-20 | B24: 18.03 | C24: 4.81 | D24: 0.81 | E24: 0.8157 | F24: 64 | G24: 0.816 | H24: 1.007 | I24: 0.706825 | J24: 6 | K24: 0.512504 | L24: 5 | M24: 19.099 | N24: 15.691 | O24: 39.128 | P24: 0.8215613383 | Q24: =[1]!AgePb76(P24) -> 4959.582136 | S24: 4964.178975
A25: STR-76 | B25: 20.82 | C25: 5.68 | D25: 0.828 | E25: 0.8356 | F25: 47 | G25: 0.836 | H25: 1.01 | I25: 0.706625 | J25: 7 | K25: 0.512513 | L25: 5 | M25: 19.084 | N25: 15.686 | O25: 39.13 | P25: 0.8219450849 | Q25: =[1]!AgePb76(P25) -> 4960.246104 | S25: 4964.643297
A26: STR-116 | B26: 18.62 | C26: – | E26: 0.8661 | F26: 47 | I26: 0.707543 | J26: 6 | K26: 0.51246 | L26: 4 | M26: 19.086 | N26: 15.686 | O26: 39.132 | P26: 0.8218589542 | Q26: =[1]!AgePb76(P26) -> 4960.097108 | S26: 4964.702133
A27: STR-50 | B27: 18.61 | C27: 4.33 | D27: 0.706 | E27: 0.8263 | F27: 35 | G27: 0.838 | H27: 1.185 | I27: 0.706832 | J27: 6 | K27: 0.512496 | L27: 5 | M27: 19.197 | N27: 15.686 | O27: 39.167 | P27: 0.8171068396 | Q27: =[1]!AgePb76(P27) -> 4951.85063 | S27: 4965.973412
A28: STR-61 | B28: 18.68 | C28: 4.77 | D28: 0.774 | E28: 0.8261 | F28: 87 | G28: 0.831 | H28: 1.073 | I28: 0.706626 | J28: 8 | K28: 0.512511 | L28: 4 | M28: 19.122 | N28: 15.693 | O28: 39.161 | P28: 0.8206777534 | Q28: =[1]!AgePb76(P28) -> 4958.05208 | S28: 4966.055335
A29: STR-62 | B29: 25.25 | C29: 6.57 | D29: 0.789 | E29: 0.8375 | F29: 38 | G29: 0.842 | H29: 1.067 | I29: 0.707274 | J29: 8 | K29: 0.512485 | L29: 3 | M29: 19.039 | N29: 15.684 | O29: 39.126 | P29: 0.8237827617 | Q29: =[1]!AgePb76(P29) -> 4963.421138 | S29: 4966.059699
A30: S. Bartolo | B30: (2 ka) | R30: Average | S30: =AVERAGE(S1:S29) -> 4960.060488
A31: STR-63 | B31: 11.4 | C31: 3.23 | D31: 0.859 | E31: 0.8319 | F31: 88 | G31: 0.831 | H31: 0.967 | I31: 0.706255 | J31: 7 | K31: 0.512559 | L31: 4 | M31: 19 | N31: 15.68 | O31: 39.091 | P31: 0.8252631579 | Q31: =[1]!AgePb76(P31) -> 4965.973412 | R31: Maximum | S31: =MAX(S1:S30) -> 4966.059699
A32: STR-72 | B32: 10.55 | C32: 2.97 | D32: 0.853 | E32: 0.8399 | F32: 104 | G32: 0.84 | H32: 0.984 | I32: 0.706252 | J32: 6 | K32: 0.512558 | L32: 5 | M32: 19.019 | N32: 15.681 | O32: 39.116 | P32: 0.8244912982 | Q32: =[1]!AgePb76(P32) -> 4964.643297 | R32: Minimum | S32: =MIN(S1:S31) -> 4951.463615
A33: Recent | B33: (0 ka) | R33: Difference | S33: =S31-S32 -> 14.59608417
A34: STR-9/96d | B34: 12.47 | C34: 3.23 | D34: 0.785 | E34: 0.8994 | F34: 90 | G34: 0.899 | H34: 1.145 | I34: 0.706112 | J34: 6 | K34: 0.512573 | L34: 3 | M34: 19.178 | N34: 15.672 | O34: 39.125 | P34: 0.8171863594 | Q34: =[1]!AgePb76(P34) -> 4951.989042 | R34: Accuracy | S34: =1-(S33/S30) -> 0.997057277
A35: STR-3/95b | B35: 14.8 | C35: 3.91 | D35: 0.801 | E35: 0.8609 | F35: 82 | G35: 0.861 | H35: 1.075 | I35: 0.706163 | J35: 7 | K35: 0.512558 | L35: 4 | M35: 19.067 | N35: 15.677 | O35: 39.06 | P35: 0.8222059055 | Q35: =[1]!AgePb76(P35) -> 4960.697195
A36: STR-4/96a | B36: 15.1 | C36: 3.98 | D36: 0.799 | E36: 0.8619 | F36: 69 | G36: 0.862 | H36: 1.079 | I36: 0.706162 | J36: 6 | K36: 0.512563 | L36: 4 | M36: 19.046 | N36: 15.672 | O36: 39.063 | P36: 0.8228499422 | Q36: =[1]!AgePb76(P36) -> 4961.810408
A37: STR-24 | B37: 15.71 | C37: 4.18 | D37: 0.807 | E37: 0.892 | F37: 81 | G37: 0.892 | H37: 1.106 | I37: 0.706246 | J37: 8 | K37: 0.51255 | L37: 3 | M37: 19.07 | N37: 15.677 | O37: 39.067 | P37: 0.82207656 | Q37: =[1]!AgePb76(P37) -> 4960.47351
A38: STR-9/96e | B38: 15.34 | C38: 4.01 | D38: 0.793 | E38: 0.8748 | F38: 46 | G38: 0.875 | H38: 1.103 | I38: 0.706163 | J38: 7 | K38: 0.512563 | L38: 4 | M38: 19.073 | N38: 15.676 | O38: 39.091 | P38: 0.8218948251 | Q38: =[1]!AgePb76(P38) -> 4960.159162
A42: Palaeostromboli I | B42: Palaeostromboli II | C42: Palaeostromboli III | D42: Vancori | E42: Neostromboli | F42: S. Bartolo | G42: Recent
A43: (85 ka) | B43: (60 ka) | C43: (35 ka) | D43: (26–12 ka) | E43: (10 ka) | F43: (2 ka) | G43: (0 ka)
A44: 4964 | B44: 4962 | C44: 4957 | D44: 4960 | E44: 4960 | F44: 4966 | G44: 4952
A45: 4966 | B45: 4963 | C45: 4957 | D45: 4957 | E45: 4951 | F45: 4965 | G45: 4961
A46: 4966 | B46: 4965 | C46: 4957 | D46: 4960 | E46: 4960 | G46: 4962
D47: 4955 | E47: 4960 | G47: 4960
E48: 4960 | G48: 4960
E49: 4960
E50: 4952
E51: 4958
E52: 4963

Sheet H22
A1: Table 3. | H1: Age (Ma) | K1: Volcano | L1: Pb Age (Ma) | M1: Volcano | N1: Pb Age (Ma)
A2: Volcano | B2: SiO2(WR) | C2: 87Sr/86Sr | D2: 206Pb/204Pb | E2: 207Pb/204Pb | F2: 208Pb/204Pb | G2: 143Nd/144Nd | H2: 207Pb/206Pb | K2: Shiveluch | L2: 5005 | M2: Bolshoi Semiachik | N2: 4999
A3: Shiveluch | L3: 5001 | N3: 4997
A4: B544/N | B4: 47.23 | C4: 0.70341 | D4: 18.258 | E4: 15.491 | F4: 37.901 | H4: =[1]!AgePb76(E4/D4) -> 5005.325531 | L4: 4997 | M4: Avachinsky | N4: 4995
A5: B541/2v | B5: 54.71 | C5: 0.70335 | D5: 18.331 | E5: 15.509 | F5: 37.945 | G5: 0.51314 | H5: =[1]!AgePb76(E5/D5) -> 5001.310924 | L5: 5002 | M5: Mutnovsky | N5: 5000
A6: B547 | B6: 60.95 | C6: 0.70335 | D6: 18.362 | E6: 15.493 | F6: 37.932 | H6: =[1]!AgePb76(E6/D6) -> 4997.447632 | K6: Bezymianny | L6: 5022 | N6: 5000
A7: B548b | B7: 62.58 | C7: 0.70341 | D7: 18.304 | E7: 15.49 | F7: 37.885 | G7: 0.513097 | H7: =[1]!AgePb76(E7/D7) -> 5001.663107 | L7: 5006 | N7: 4999
A8: Bezymianny | L8: 5005 | N8: 5000
A9: B580 | B9: 58.91 | C9: 0.70361 | D9: 18.057 | E9: 15.502 | F9: 37.753 | H9: =[1]!AgePb76(E9/D9) -> 5022.034588 | L9: 5006 | M9: Ksudach | N9: 5001
A10: B574/A | B10: 56 | C10: 0.70358 | D10: 18.251 | E10: 15.488 | F10: 37.862 | G10: 0.51309 | H10: =[1]!AgePb76(E10/D10) -> 5005.594833 | K10: Tolbachik | L10: 5004 | N10: 5001
A11: B-584 | B11: 64.62 | C11: 0.70359 | D11: 18.267 | E11: 15.491 | F11: 37.891 | G11: 0.5131 | H11: =[1]!AgePb76(E11/D11) -> 5004.626231 | K11: Uzon | L11: 4998 | N11: 5031
A12: B600 | B12: 55.81 | C12: 0.70354 | D12: 18.261 | E12: 15.496 | F12: 37.935 | H12: =[1]!AgePb76(E12/D12) -> 5005.55032 | L12: 4998 | N12: 4999
A13: Tolbachik | L13: 5001 | N13: 4985
A14: TOL-2 | B14: 50.84 | C14: 0.70344 | D14: 18.356 | E14: 15.564 | F14: 38.035 | G14: 0.513075 | H14: =[1]!AgePb76(E14/D14) -> 5004.400609 | L14: 5000 | N14: 5025
A15: Uzon | L15: 4999 | M15: Pauzhetka | N15: 4999
A16: 87L-103 | B16: 61.1 | C16: 0.703297 | D16: 18.376 | E16: 15.515 | F16: 38.095 | G16: 0.513071 | H16: =[1]!AgePb76(E16/D16) -> 4998.379966 | K16: Maly Semyachik | L16: 4996
A17: 99L-101 | B17: 67.53 | C17: 0.703346 | D17: 18.376 | E17: 15.515 | F17: 38.099 | G17: 0.513066 | H17: =[1]!AgePb76(E17/D17) -> 4998.379966
A18: D493-74 | B18: 72.1 | C18: 0.703494 | D18: 18.332 | E18: 15.501 | F18: 38.033 | G18: 0.513067 | H18: =[1]!AgePb76(E18/D18) -> 5000.501224
A19: D388i-74 | B19: 71.4 | C19: 0.703369 | D19: 18.367 | E19: 15.52 | F19: 38.11 | G19: 0.51307 | H19: =[1]!AgePb76(E19/D19) -> 4999.532645
A20: D368-74 | B20: 70.96 | C20: 0.703357 | D20: 18.361 | E20: 15.507 | F20: 38.075 | G20: 0.513072 | H20: =[1]!AgePb76(E20/D20) -> 4998.806994
A21: Maly Semyachik
A22: 5230/1 | B22: 66.78 | C22: 0.703193 | D22: 18.389 | E22: 15.498 | F22: 38.051 | G22: 0.513111 | H22: =[1]!AgePb76(E22/D22) -> 4995.819912
A23: Bolshoi Semiachik
A24: 90L-8 | B24: 63.82 | C24: 0.703443 | D24: 18.365 | E24: 15.513 | F24: 38.091 | G24: 0.513035 | H24: =[1]!AgePb76(E24/D24) -> 4999.046893
A25: 84L-103 | B25: 70.64 | C25: 0.703444 | D25: 18.379 | E25: 15.501 | F25: 38.067 | G25: 0.513065 | H25: =[1]!AgePb76(E25/D25) -> 4996.866826
A26: Avachinsky
A27: TOL-3 | B27: 51.85 | C27: 0.70335 | D27: 18.427 | E27: 15.526 | F27: 38.155 | G27: 0.51307 | H27: =[1]!AgePb76(E27/D27) -> 4995.451864
A28: Mutnovsky
A29: B618/3 | B29: 50.02 | C29: 0.70338 | D29: 18.358 | E29: 15.52 | F29: 38.141 | G29: 0.513113 | H29: =[1]!AgePb76(E29/D29) -> 5000.228291
A30: B615/B | B30: 51.52 | C30: 0.70315 | D30: 18.333 | E30: 15.498 | F30: 38.073 | H30: =[1]!AgePb76(E30/D30) -> 5000.149096
A31: B610A | B31: 59.49 | C31: 0.70338 | D31: 18.35 | E31: 15.5 | F31: 38.11 | G31: 0.51306 | H31: =[1]!AgePb76(E31/D31) -> 4999.016726
A32: B615A | B32: 51.52 | C32: 0.70329 | D32: 18.34 | E32: 15.507 | F32: 38.099 | H32: =[1]!AgePb76(E32/D32) -> 5000.431249
A33: Ksudach
A34: C977 | B34: 62.99 | C34: 0.703318 | D34: 18.319 | E34: 15.496 | F34: 38.093 | H34: =[1]!AgePb76(E34/D34) -> 5001.050167
A35: KA-38a/7 | B35: 49.35 | C35: 0.70331 | D35: 18.35 | E35: 15.521 | F35: 38.163 | G35: 0.51307 | H35: =[1]!AgePb76(E35/D35) -> 5000.938355
A36: KA110-7 | B36: 58.56 | C36: 0.70322 | D36: 18.043 | E36: 15.585 | F36: 38.098 | H36: =[1]!AgePb76(E36/D36) -> 5030.704339
A37: KA25A-7 | B37: 67.15 | C37: 0.70325 | D37: 18.349 | E37: 15.5 | F37: 38.117 | G37: 0.513063 | H37: =[1]!AgePb76(E37/D37) -> 4999.094078
A38: KA39/7 | B38: 48.21 | C38: 0.70339 | D38: 18.568 | E38: 15.528 | F38: 38.091 | H38: =[1]!AgePb76(E38/D38) -> 4984.811154
A39: KA1/7 | B39: 56.79 | C39: 0.70326 | D39: 18.095 | E39: 15.572 | F39: 37.945 | H39: =[1]!AgePb76(E39/D39) -> 5025.441848
A40: Pauzhetka
A41: 83L20 | B41: 70.34 | C41: 0.703255 | D41: 18.358 | E41: 15.504 | F41: 38.141 | G41: 0.513056 | H41: =[1]!AgePb76(E41/D41) -> 4998.764303

Sheet H23
A1: Table 2 | U1: Thousand Years
A2: Eruption | B2: Sample | C2: Th(ppm) | D2: U(ppm) | E2: 226Ra(fg/g) | F2: 2σm | G2: 231Pa(fg/g) | H2: 2σm | I2: (238U/232Th) | J2: 2σm | K2: (230Th/232Th) | L2: 2σm | M2: (230Th/238U) | N2: 2σm | O2: (234U/238U) | P2: (231Pa/235U) | Q2: 2σm | R2: (226Ra/230Th) | S2: t=0 | T2: 2σm | U2: 230Th Age
A3: 2008 | B3: 508 | C3: 1.37 | D3: 0.49 | E3: 169.8 | F3: 1 | G3: 276.9 | H3: 1.8 | I3: 1.085 | J3: 0.001 | K3: 0.875 | L3: 0.004 | M3: 0.807 | N3: 0.004 | O3: 1.001 | P3: 0.001 | Q3: 1.712 | R3: 0.006 | S3: 1.269 | T3: 0.013 | U3: =[1]!Th230Age(M3, O3) -> 178.3526045
A4: 1957 | B4: 12c | C4: 1.38 | D4: 0.47 | E4: 173.5 | F4: 1.1 | G4: 250.9 | H4: 1.8 | I4: 1.034 | J4: 0.001 | K4: 0.875 | L4: 0.003 | M4: 0.846 | N4: 0.003 | O4: 1.003 | P4: 0.003 | Q4: 1.62 | R4: 0.006 | S4: 1.298 | T4: 0.011 | U4: =[1]!Th230Age(M4, O4) -> 201.2642067
A5: 1957 | B5: 61 | C5: 1.07 | D5: 0.39 | E5: 141.9 | F5: 1 | G5: 236.3 | H5: 2.1 | I5: 1.119 | J5: 0.001 | K5: 0.9 | L5: 0.003 | M5: 0.804 | N5: 0.004 | O5: 1 | P5: 0.002 | Q5: 1.818 | R5: 0.008 | S5: 1.343 | T5: 0.013 | U5: =[1]!Th230Age(M5, O5) -> 177.2263527
A6: 1780 | B6: 33 | C6: 1.44 | D6: 0.47 | E6: 175.8 | F6: 0.9 | G6: 247.5 | H6: 2 | I6: 0.999 | J6: 0.001 | K6: 0.855 | L6: 0.002 | M6: 0.857 | N6: 0.003 | O6: 1 | P6: 0.003 | Q6: 1.582 | R6: 0.006 | S6: 1.309 | T6: 0.01 | U6: =[1]!Th230Age(M6, O6) -> 211.5125362
A7: 1780 | B7: 89 | C7: 1.64 | D7: 0.57 | E7: 193 | F7: 1 | G7: 311.4 | H7: 2.2 | I7: 1.044 | J7: 0.001 | K7: 0.867 | L7: 0.003 | M7: 0.831 | N7: 0.004 | O7: 1.005 | P7: 0.002 | Q7: 1.671 | R7: 0.006 | S7: 1.25 | T7: 0.011 | U7: =[1]!Th230Age(M7, O7) -> 190.1298559
A8: 1780 | B8: 19 | C8: 1.08 | D8: 0.39 | E8: 131 | F8: 0.8 | G8: 227.5 | H8: 2 | I8: 1.1 | J8: 0.001 | K8: 0.9 | L8: 0.003 | M8: 0.818 | N8: 0.004 | O8: 1.003 | P8: 0.002 | Q8: 1.767 | R8: 0.008 | S8: 1.247 | T8: 0.012 | U8: =[1]!Th230Age(M8, O8) -> 183.5153438
A9: 1780 | B9: 208 | C9: 0.97 | D9: 0.36 | E9: 117.2 | F9: 0.6 | G9: 214.5 | H9: 1.7 | I9: 1.117 | J9: 0.001 | K9: 0.895 | L9: 0.003 | M9: 0.802 | N9: 0.004 | O9: 1.003 | P9: 0.002 | Q9: 1.833 | R9: 0.007 | S9: 1.254 | T9: 0.011 | U9: =[1]!Th230Age(M9, O9) -> 174.5367996
A10: 1751 | B10: 7 | C10: 1.15 | D10: 0.41 | E10: 140 | F10: 0.7 | G10: 235.3 | H10: 2.2 | I10: 1.091 | J10: 0.001 | K10: 0.893 | L10: 0.003 | M10: 0.819 | N10: 0.004 | O10: 0.999 | P10: 0.003 | Q10: 1.725 | R10: 0.008 | S10: 1.249 | T10: 0.01 | U10: =[1]!Th230Age(M10, O10) -> 186.4899032
A11: 1903 | B11: 95 | C11: 2.44 | D11: 0.73 | E11: 277.5 | F11: 1.9 | G11: 334.9 | H11: 2.8 | I11: 0.914 | J11: 0.001 | K11: 0.827 | L11: 0.003 | M11: 0.905 | N11: 0.004 | O11: 0.999 | P11: 0.003 | Q11: 1.384 | R11: 0.006 | S11: 1.248 | T11: 0.012 | U11: =[1]!Th230Age(M11, O11) -> 257.3295039
A12: 1640 | B12: 31 | C12: 2.27 | D12: 0.79 | E12: 236.8 | F12: 1.5 | G12: 401.3 | H12: 3 | I12: 1.052 | J12: 0.001 | K12: 0.903 | L12: 0.003 | M12: 0.858 | N12: 0.003 | O12: 0.999 | P12: 0.003 | Q12: 1.551 | R12: 0.006 | S12: 1.047 | T12: 0.009 | U12: =[1]!Th230Age(M12, O12) -> 213.1004761
A13: 1640 | B13: 385 | C13: 2.52 | D13: 0.82 | E13: 256.4 | F13: 1.3 | G13: 393.3 | H13: 3.4 | I13: 0.988 | J13: 0.001 | K13: 0.861 | L13: 0.003 | M13: 0.871 | N13: 0.004 | O13: 1.002 | P13: 0.002 | Q13: 1.457 | R13: 0.006 | S13: 1.085 | T13: 0.01 | U13: =[1]!Th230Age(M13, O13) -> 220.8935734
A14: 1640 | B14: 252 | C14: 1.21 | D14: 0.43 | E14: 137.5 | F14: 0.7 | G14: 239.2 | H14: 2.1 | I14: 1.086 | J14: 0.001 | K14: 0.883 | L14: 0.003 | M14: 0.813 | N14: 0.004 | O14: 1.002 | P14: 0.002 | Q14: 1.683 | R14: 0.007 | S14: 1.201 | T14: 0.011 | U14: =[1]!Th230Age(M14, O14) -> 181.1940687
A15: 1903 | B15: 85 | C15: 1.61 | D15: 0.52 | E15: 184.8 | F15: 0.8 | G15: 264.5 | H15: 1.9 | I15: 0.98 | J15: 0.001 | K15: 0.857 | L15: 0.003 | M15: 0.874 | N15: 0.004 | O15: 0.997 | P15: 0.002 | Q15: 1.545 | R15: 0.006 | S15: 1.225 | T15: 0.011 | U15: =[1]!Th230Age(M15, O15) -> 228.1811154
A16: 1852 | B16: 76 | C16: 1.54 | D16: 0.53 | E16: 182.7 | F16: 1.2 | G16: 294.4 | H16: 2.7 | I16: 1.055 | J16: 0.001 | K16: 0.863 | L16: 0.003 | M16: 0.817 | N16: 0.004 | O16: 0.999 | P16: 0.003 | Q16: 1.673 | R16: 0.008 | S16: 1.256 | T16: 0.012 | U16: =[1]!Th230Age(M16, O16) -> 185.2861591
A17: 1852 | B17: 74c | C17: 2.24 | D17: 0.72 | E17: 246.6 | F17: 1.4 | G17: 360.9 | H17: 2.7 | I17: 0.971 | J17: 0.001 | K17: 0.869 | L17: 0.003 | M17: 0.895 | N17: 0.004 | O17: 1.002 | P17: 0.001 | Q17: 1.528 | R17: 0.006 | S17: 1.159 | T17: 0.011 | U17: =[1]!Th230Age(M17, O17) -> 242.7742608
A18: 1852 | B18: 23 | C18: 1.14 | D18: 0.41 | E18: 135.4 | F18: 0.8 | G18: 238.2 | H18: 3 | I18: 1.091 | J18: 0.001 | K18: 0.892 | L18: 0.003 | M18: 0.818 | N18: 0.004 | O18: 0.999 | P18: 0.002 | Q18: 1.764 | R18: 0.011 | S18: 1.222 | T18: 0.012 | U18: =[1]!Th230Age(M18, O18) -> 185.8863648
A21: Eruption | B21: 230Th/238U | C21: Historic Age | D21: Age Ratio | E21: Year
A22: Year | B22: Age 103 Years | C22: Years | D22: 103 | E22: Dated
A23: 1640 | B23: 213.1004761 | C23: =E23-A23 -> 371 | D23: =B23/C23 -> 0.5743948142 | E23: 2011
A24: 1640 | B24: 220.8935734 | C24: 371 | D24: 0.5954004674 | E24: 2011
A25: 1640 | B25: 181.1940687 | C25: 371 | D25: 0.4883937162 | E25: 2011
A26: 1751 | B26: 186.4899032 | C26: 260 | D26: 0.7172688586 | E26: 2011
A27: 1780 | B27: 211.5125362 | C27: 231 | D27: 0.915638685 | E27: 2011
A28: 1780 | B28: 190.1298559 | C28: 231 | D28: 0.8230729691 | E28: 2011
A29: 1780 | B29: 183.5153438 | C29: 231 | D29: 0.7944387177 | E29: 2011
A30: 1780 | B30: 174.5367996 | C30: 231 | D30: 0.755570561 | E30: 2011
A31: 1852 | B31: 185.2861591 | C31: 159 | D31: 1.165321755 | E31: 2011
A32: 1852 | B32: 242.7742608 | C32: 159 | D32: 1.526882143 | E32: 2011
A33: 1852 | B33: 185.8863648 | C33: 159 | D33: 1.169096634 | E33: 2011
A34: 1903 | B34: 257.3295039 | C34: 108 | D34: 2.382680592 | E34: 2011
A35: 1903 | B35: 228.1811154 | C35: 108 | D35: 2.112788106 | E35: 2011
A36: 1957 | B36: 201.2642067 | C36: 54 | D36: 3.727114938 | E36: 2011
A37: 1957 | B37: 177.2263527 | C37: 54 | D37: 3.281969495 | E37: 2011
A38: 2008 | B38: 178.3526045 | C38: 3 | D38: 59.45086818 | E38: 2011
B39: =MIN(B23:B38) -> 174.5367996
B40: =MAX(B23:B39) -> 257.3295039

Sheet H24
A1: Table 1 | P1: Volcano | Q1: Eruption | R1: Pb Age (Ma) | S1: Historical Age | T1: Age Ratio(106)
A2: Sample | B2: Kiska-62 | C2: 54–445 | D2: 54–452 | E2: 52–496 | F2: KG21 | G2: KAN5–8 | H2: K81-7A | I2: 99SJP01 | J2: 46ABy531 | K2: UM21 | P2: Akutan | Q2: 1850 | R2: 4960 | S2: 153 | T2: 32
A3: Volcano | B3: Kiska | C3: Kiska | D3: Segula | E3: Little Sitkin | F3: Kanaga | G3: Kanaga | H3: Kasatochi | I3: Seguam | J3: Umnak | K3: Okmok | Q3: 1978 | R3: 4961 | S3: 25 | T3: 198
A4: Age | B4: 1962 | C4: Historic | D4: Historic | E4: 1900 | F4: 1850 | G4: 1900 | H4: 1899 | I4: Historic | J4: 1946 | K4: 1946 | P4: Aniakchak | Q4: -1500 | R4: 4966 | S4: 3503 | T4: 1
A5: 206Pb/204Pb | B5: 18.839 | C5: 18.234 | D5: 18.661 | E5: 18.495 | F5: 18.779 | G5: 18.77 | H5: 18.873 | I5: 18.893 | J5: 18.718 | K5: 18.813 | Q5: -1500 | R5: 4967 | S5: 3503 | T5: 1
A6: 207Pb/204Pb | B6: 15.595 | C6: 15.493 | D6: 15.54 | E6: 15.562 | F6: 15.544 | G6: 15.529 | H6: 15.561 | I6: 15.583 | J6: 15.539 | K6: 15.533 | Q6: -1500 | R6: 4966 | S6: 3503 | T6: 1
A7: 207Pb/206Pb | B7: =(B6/B5) -> 0.8278040236 | C7: =(C6/C5) -> 0.8496764286 | D7: 0.8327528 | E7: 0.8414165991 | F7: 0.8277331061 | G7: 0.8273308471 | H7: 0.8245112065 | I7: 0.824802837 | J7: 0.830163479 | K7: 0.8256524744 | P7: Augustine | Q7: -500 | R7: 4967 | S7: 2503 | T7: 2
A8: Pb/Pb Age | B8: =[1]!AgePb76(B7) -> 4970.34266 | C8: =[1]!AgePb76(C7) -> 5007.375083 | D8: =[1]!AgePb76(D7) -> 4978.811759 | E8: =[1]!AgePb76(E7) -> 4993.510584 | F8: =[1]!AgePb76(F7) -> 4970.220905 | G8: =[1]!AgePb76(G7) -> 4969.530072 | H8: =[1]!AgePb76(H7) -> 4964.677621 | I8: =[1]!AgePb76(I7) -> 4965.180318 | J8: =[1]!AgePb76(J7) -> 4974.387212 | K8: =[1]!AgePb76(K7) -> 4966.643804 | P8: Bogoslof | Q8: 1796 | R8: 4968 | S8: 207 | T8: 24
A9: Historical Age | B9: =2003-B4 -> 41 | C9: ? | D9: ? | E9: =2003-E4 -> 103 | F9: 153 | G9: 103 | H9: 104 | I9: ? | J9: 57 | K9: 57 | P9: Buzzard Creek | Q9: -1000 | R9: 4949 | S9: 3003 | T9: 2
A10: Age Ratio | B10: =B8/B9 -> 121.2278698 | C10: ? | D10: ? | E10: =E8/E9 -> 48.48068528 | F10: 32.48510395 | G10: 48.24786477 | H10: 47.73728481 | I10: ? | J10: 87.26995108 | K10: 87.13410182 | P10: Kanaga | Q10: 1850 | R10: 4970 | S10: 153 | T10: 32
Q11: 1900 | R11: 4970 | S11: 103 | T11: 48
P12: Kasatochi | Q12: 1899 | R12: 4965 | S12: 104 | T12: 48
A13: Sample | B13: Bogoslof | C13: 96PN08 | D13: AK81-35 | E13: 96PS23 | F13: NW951 | G13: SAR-7 | H13: 99SH08 | I13: PAV-86 | J13: 92CNA22 | K13: NA94-5 | L13: 94AMC2 | M13: UK-25B | P13: Katmai | Q13: 1912 | R13: 4966 | S13: 91 | T13: 55
A14: Volcano | B14: Bogoslof | C14: Makushin | D14: Akutan | E14: Akutan | F14: Westdahl | G14: Westdahl | H14: Shishaldin | I14: Pavlof | J14: Aniakchak | K14: Aniakchak | L14: Aniakchak | M14: Ukinrek | P14: Kiska | Q14: 1962 | R14: 4970 | S14: 41 | T14: 121
A15: Age | B15: 1796 | C15: Historic | D15: 1850 | E15: 1978 | F15: 1991 | G15: Active | H15: 1999 | I15: 1996 | J15: -1500 | K15: -1500 | L15: -1500 | M15: 1977 | N15: Negative Date = BC | Q15: Historic | R15: 5007 | S15: ? | T15: ?
A16: 206Pb/204Pb | B16: 18.832 | C16: 18.873 | D16: 18.981 | E16: 18.963 | F16: 18.861 | G16: 18.854 | H16: 18.732 | I16: 18.881 | J16: 18.854 | K16: 18.839 | L16: 18.866 | M16: 18.753 | P16: Little Sitkin | Q16: 1900 | R16: 4994 | S16: 103 | T16: 48
A17: 207Pb/204Pb | B17: 15.566 | C17: 15.582 | D17: 15.602 | E17: 15.591 | F17: 15.565 | G17: 15.555 | H17: 15.523 | I17: 15.573 | J17: 15.565 | K17: 15.559 | L17: 15.565 | M17: 15.549 | P17: Makushin | Q17: Historic | R17: 4967 | S17: ? | T17: ?
A18: 207Pb/206Pb | B18: =(B17/B16) -> 0.8265717927 | C18: =(C17/C16) -> 0.8256239072 | D18: =(D17/D16) -> 0.8219798746 | E18: =(E17/E16) -> 0.8221800348 | F18: =(F17/F16) -> 0.825247866 | G18: =(G17/G16) -> 0.8250238676 | H18: =(H17/H16) -> 0.8286888747 | I18: =(I17/I16) -> 0.8247974154 | J18: =(J17/J16) -> 0.825554259 | K18: =(K17/K16) -> 0.8258930941 | L18: 0.825029153 | M18: 0.8291473364 | P18: Okmok | Q18: 1946 | R18: 4967 | S18: 57 | T18: 87
A19: Pb/Pb Age | B19: =[1]!AgePb76(B18) -> 4968.225511 | C19: =[1]!AgePb76(C18) -> 4966.594623 | D19: =[1]!AgePb76(D18) -> 4960.306282 | E19: =[1]!AgePb76(E18) -> 4960.652458 | F19: =[1]!AgePb76(F18) -> 4965.947073 | G19: =[1]!AgePb76(G18) -> 4965.561194 | H19: =[1]!AgePb76(H18) -> 4971.860896 | I19: =[1]!AgePb76(I18) -> 4965.170975 | J19: =[1]!AgePb76(J18) -> 4966.474711 | K19: =[1]!AgePb76(K18) -> 4967.057976 | L19: =[1]!AgePb76(L18) -> 4965.5703 | M19: =[1]!AgePb76(M18) -> 4972.646852 | P19: Pavlof | Q19: 1996 | R19: 4965 | S19: 7 | T19: 709
A20: Historical Age | B20: =2003-B15 -> 207 | C20: ? | D20: 153 | E20: 25 | F20: 12 | G20: ? | H20: 4 | I20: 7 | J20: 3503 | K20: 3503 | L20: 3503 | M20: 26 | P20: Redoubt | Q20: 1989 | R20: 4972 | S20: 14 | T20: 355
A21: Age Ratio | B21: =B19/B20 -> 24.00108942 | C21: ? | D21: 32.4203025 | E21: 198.4260983 | F21: 413.8289227 | G21: ? | H21: 1242.965224 | I21: 709.3101392 | J21: 1.417777537 | K21: 1.417944041 | L21: 1.417519355 | M21: 191.2556481 | Q21: 1989 | R21: 4973 | S21: 14 | T21: 355
P22: Seguam | Q22: Historic | R22: 4965 | S22: ? | T22: ?
P23: Segula | Q23: Historic | R23: 4979 | S23: ? | T23: ?
A24: Sample | B24: 97NT18 | C24: 97NT28 | D24: 97ND02 | E24: 89A16B | F24: RDSS-3 | G24: 90CNR12 | H24: 85CNS17 | I24: 92JBS02 | J24: CNBC01 | P24: Shishaldin | Q24: 1999 | R24: 4972 | S24: 4 | T24: 1243
A25: Volcano | B25: Trident | C25: Trident | D25: Katmai | E25: Augustine | F25: Redoubt | G25: Redoubt | H25: Spurr | I25: Spurr | J25: Buzzard Creek | P25: Spurr | Q25: 1953 | R25: 4969 | S25: 50 | T25: 99
A26: Age | B26: 1953 | C26: 1953 | D26: 1912 | E26: -500 | F26: 1989 | G26: 1989 | H26: 1953 | I26: 1992 | J26: -1000 | K26: Negative Date = BC | Q26: 1992 | R26: 4972 | S26: 11 | T26: 452
A27: 206Pb/204Pb | B27: 18.862 | C27: 18.859 | D27: 18.879 | E27: 18.845 | F27: 18.768 | G27: 18.752 | H27: 18.833 | I27: 18.782 | J27: 19.208 | P27: Trident | Q27: 1953 | R27: 4967 | S27: 50 | T27: 99
A28: 207Pb/204Pb | B28: 15.58 | C28: 15.571 | D28: 15.581 | E28: 15.566 | F28: 15.557 | G28: 15.555 | H28: 15.573 | I28: 15.564 | J28: 15.66 | Q28: 1953 | R28: 4967 | S28: 50 | T28: 99
A29: 207Pb/206Pb | B29: =(B28/B27) -> 0.8259993638 | C29: =(C28/C27) -> 0.8256535341 | D29: =(D28/D27) -> 0.8253085439 | E29: =(E28/E27) -> 0.8260015919 | F29: =(F28/F27) -> 0.8289109122 | G29: =(G28/G27) -> 0.8295115188 | H29: =(H28/H27) -> 0.8268995911 | I29: =(I28/I27) -> 0.8286657438 | J29: =(J28/J27) -> 0.8152852978 | P29: Ukinrek | Q29: 1977 | R29: 4973 | S29: 26 | T29: 191
A30: Pb/Pb Age | B30: =[1]!AgePb76(B29) -> 4967.240854 | C30: =[1]!AgePb76(C29) -> 4966.645628 | D30: =[1]!AgePb76(D29) -> 4966.051582 | E30: =[1]!AgePb76(E29) -> 4967.244688 | F30: =[1]!AgePb76(F29) -> 4972.2416 | G30: =[1]!AgePb76(G29) -> 4973.270852 | H30: =[1]!AgePb76(H29) -> 4968.789043 | I30: =[1]!AgePb76(I29) -> 4971.82123 | J30: =[1]!AgePb76(J29) -> 4948.676129 | P30: Umnak | Q30: 1946 | R30: 4974 | S30: 57 | T30: 87
A31: Historical Age | B31: =2003-B26 -> 50 | C31: 50 | D31: 91 | E31: 2503 | F31: 14 | G31: 14 | H31: 50 | I31: 11 | J31: 3003 | P31: Westdahl | Q31: 1991 | R31: 4966 | S31: 12 | T31: 414
A32: Age Ratio | B32: =B30/B31 -> 99.34481708 | C32: 99.33291256 | D32: 54.57199541 | E32: 1.984516456 | F32: 355.1601143 | G32: 355.2336323 | H32: 99.37578086 | I32: 451.9837482 | J32: 1.647910799 | Q32: Active | R32: 4966 | S32: ? | T32: ?
Q33: Average | R33: =AVERAGE(R2:R32) -> 4969.677419
Q34: Maximum | R34: =MAX(R2:R33) -> 5007
Q35: Minimum | R35: =MIN(R2:R34) -> 4949
Q36: Difference | R36: =R34-R35 -> 58
A37: Volcano | B37: Age | C37: Pb/Pb Age | D37: Historical Age | E37: Age Ratio(106) | Q37: Accuracy | R37: =1-(R36/R33) -> 0.9883292224
A38: Kiska | B38: 1962 | C38: 4970 | D38: 41 | E38: 121
A39: Kiska | B39: Historic | C39: 5007 | D39: ? | E39: ?
A40: Segula | B40: Historic | C40: 4979 | D40: ? | E40: ?
A41: Little Sitkin | B41: 1900 | C41: 4994 | D41: 103 | E41: 48
A42: Kanaga | B42: 1850 | C42: 4970 | D42: 153 | E42: 32
A43: Kanaga | B43: 1900 | C43: 4970 | D43: 103 | E43: 48
A44: Kasatochi | B44: 1899 | C44: 4965 | D44: 104 | E44: 48
A45: Seguam | B45: Historic | C45: 4965 | D45: ? | E45: ?
A46: Umnak | B46: 1946 | C46: 4974 | D46: 57 | E46: 87
A47: Okmok | B47: 1946 | C47: 4967 | D47: 57 | E47: 87
A48: Bogoslof | B48: 1796 | C48: 4968 | D48: 207 | E48: 24
A49: Makushin | B49: Historic | C49: 4967 | D49: ? | E49: ?
A50: Akutan | B50: 1850 | C50: 4960 | D50: 153 | E50: 32
A51: Akutan | B51: 1978 | C51: 4961 | D51: 25 | E51: 198
A52: Westdahl | B52: 1991 | C52: 4966 | D52: 12 | E52: 414
A53: Westdahl | B53: Active | C53: 4966 | D53: ? | E53: ?
A54: Shishaldin | B54: 1999 | C54: 4972 | D54: 4 | E54: 1243
A55: Pavlof | B55: 1996 | C55: 4965 | D55: 7 | E55: 709
A56: Aniakchak | B56: -1500 | C56: 4966 | D56: 3503 | E56: 1
A57: Aniakchak | B57: -1500 | C57: 4967 | D57: 3503 | E57: 1
A58: Aniakchak | B58: -1500 | C58: 4966 | D58: 3503 | E58: 1
A59: Ukinrek | B59: 1977 | C59: 4973 | D59: 26 | E59: 191
A60: Trident | B60: 1953 | C60: 4967 | D60: 50 | E60: 99
A61: Trident | B61: 1953 | C61: 4967 | D61: 50 | E61: 99
A62: Katmai | B62: 1912 | C62: 4966 | D62: 91 | E62: 55
A63: Augustine | B63: -500 | C63: 4967 | D63: 2503 | E63: 2
A64: Redoubt | B64: 1989 | C64: 4972 | D64: 14 | E64: 355
A65: Redoubt | B65: 1989 | C65: 4973 | D65: 14 | E65: 355
A66: Spurr | B66: 1953 | C66: 4969 | D66: 50 | E66: 99
A67: Spurr | B67: 1992 | C67: 4972 | D67: 11 | E67: 452
A68: Buzzard Creek | B68: -1000 | C68: 4949 | D68: 3003 | E68: 2
